Workbook

Sheet Video Points
B2: Stucturing Analysis
B4: Debt Structuring Model
B5: Basic Sculpting and Re-finance Sculpting
B6: Meaning of LLCR and PLCR using Cash Sweep
B7: Debt to Capital Constraint with Alternative Methods for Debt Repayment
B9: Data Tables and Scenario analysis with goal seek and circular reference
B10: Presentation of Scenario analysis with LCOE and Candlestick Chart
B11: Real and Nominal Carrying Charge Rate
B13: Balloon Payment
B14: Structuring as two facilities | F14: DSCR=CFADS/(DS + Balloon DS) | I14: DS + Balloon DS = CFADS/DSCR | M14: DS Sculpting = CFADS/DSCR - Ballon DS
B15: Percent and Circular Reference | F15: Balloon % of Sculpt = Ballon % of Total/(1-Sculpt %)
B16: Only include the interest expense in the analysis because the final ballon payment is after sculpt
B19: Cash Sweep and Reserve Account | F19: Model like defatult if no sweep
B20: Analysis of Importance and Carring Change Rate
B22: Funding Analysis
B23: Circular Reference easily resolved
B24: EBL and circular reference
B25: Analysis of EBL
B27: Circularity from LC Fees and Balloon Reserve

Sheet Analysis Chart
N1: Project IRR (Cap Exp) | O1: ='Scenario & Sensitivity'!$E$5 -> 0.05422333418
N2: DSCR - Min | O2: ='Scenario & Sensitivity'!E42 -> 1.1
N3: Balloon Percent | O3: ='Scenario & Sensitivity'!J2 -> 0
N4: Sweep for Balloon | O4: ='Scenario & Sensitivity'!J3 -> 0
N5: Years Before Sweep | O5: ='Scenario & Sensitivity'!J4 -> 5
N6: Max Debt to Cap | O6: ='Scenario & Sensitivity'!$F$42 -> 0.85
N7: Developer Fee | O7: ='Scenario & Sensitivity'!$K$40 -> 0
N8: LIBOR | O8: ='Scenario & Sensitivity'!$J$42 -> 0.0155
N9: Credit Spread
N10: Tenure (Years) | O10: ='Scenario & Sensitivity'!G42 -> 18
N11: Constraint Method
N13: Structure Scenario
N15: EBITDA Trend
N17: Note: The constraint method refers the method of sculpting when the debt to cap
N18: constraint is in place. True means the sculpting continues at a lower level. False
N19: means that the same DSCR is used and the debt term becomes shorter.
N21: DSCR Result | O21: ='Debt Structuring'!E218 -> 1.12960926
N22: Debt/Cap Resuult | O22: =1-'Debt Structuring'!F69 -> 0.85
N23: Equity IRR Result | O23: ='Debt Structuring'!G148 -> 0.0978089269
N24: Debt IRR Result | O24: ='Debt Structuring'!G198 -> 0.033

Sheet Debt Structuring
A2: Period | H2: 0 | I2: 1 | J2: 2 | K2: 3 | L2: 4 | M2: 5 | N2: 6 | O2: 7 | P2: 8 | Q2: 9 | R2: 10 | S2: 11 | T2: 12 | U2: 13 | V2: 14 | W2: 15 | X2: 16 | Y2: 17 | Z2: 18 | AA2: 19 | AB2: 20 | AC2: 21 | AD2: 22 | AE2: 23 | AF2: 24 | AG2: 25 | AH2: 26 | AI2: 27 | AJ2: 28 | AK2: 29 | AL2: 30 | AM2: 31 | AN2: 32 | AO2: 33 | AP2: 34 | AQ2: 35 | AR2: 36 | AS2: 37 | AT2: 38 | AU2: 39 | AV2: 40
B3: Construction Switch | E3: Eq IRR | F3: =G148 -> 0.0978089269 | G3: =F8 -> 1 | H3: =H2<$G$3 -> TRUE | I3: FALSE | J3: FALSE | K3: FALSE | L3: FALSE | M3: FALSE | N3: FALSE | O3: FALSE | P3: FALSE | Q3: FALSE | R3: FALSE | S3: FALSE | T3: FALSE | U3: FALSE | V3: FALSE | W3: FALSE | X3: FALSE | Y3: FALSE | Z3: FALSE | AA3: FALSE | AB3: FALSE | AC3: FALSE | AD3: FALSE | AE3: FALSE | AF3: FALSE | AG3: FALSE | AH3: FALSE | AI3: FALSE | AJ3: FALSE | AK3: FALSE | AL3: FALSE | AM3: FALSE | AN3: FALSE | AO3: FALSE | AP3: FALSE | AQ3: FALSE | AR3: FALSE | AS3: FALSE | AT3: FALSE | AU3: FALSE | AV3: FALSE
B4: Operating Switch | F4: =COUNTIF(H4:AV4,TRUE)=G4 -> TRUE | G4: =F9 -> 25 | H4: =AND(H2>=$G$3,H2<=$G$4) -> FALSE | I4: TRUE | J4: TRUE | K4: TRUE | L4: TRUE | M4: TRUE | N4: TRUE | O4: TRUE | P4: TRUE | Q4: TRUE | R4: TRUE | S4: TRUE | T4: TRUE | U4: TRUE | V4: TRUE | W4: TRUE | X4: TRUE | Y4: TRUE | Z4: TRUE | AA4: TRUE | AB4: TRUE | AC4: TRUE | AD4: TRUE | AE4: TRUE | AF4: TRUE | AG4: TRUE | AH4: FALSE | AI4: FALSE | AJ4: FALSE | AK4: FALSE | AL4: FALSE | AM4: FALSE | AN4: FALSE | AO4: FALSE | AP4: FALSE | AQ4: FALSE | AR4: FALSE | AS4: FALSE | AT4: FALSE | AU4: FALSE | AV4: FALSE
A6: Assumptions
B7: Timing
C8: Construction Period | E8: Years | F8: 1
C9: Operating Period | E9: Years | F9: 25
B11: Operating Assumptions
C12: Capex | E12: USD m | F12: 1600
C13: Dev Fee & Others | E13: USD m | F13: ='Scenario & Sensitivity'!K42 -> 0
C14: Year | H14: ='Scenario & Sensitivity'!F78 -> 0 | I14: ='Scenario & Sensitivity'!G78 -> 1 | J14: ='Scenario & Sensitivity'!H78 -> 2 | K14: ='Scenario & Sensitivity'!I78 -> 3 | L14: ='Scenario & Sensitivity'!J78 -> 4 | M14: ='Scenario & Sensitivity'!K78 -> 5 | N14: ='Scenario & Sensitivity'!L78 -> 6 | O14: ='Scenario & Sensitivity'!M78 -> 7 | P14: ='Scenario & Sensitivity'!N78 -> 8 | Q14: ='Scenario & Sensitivity'!O78 -> 9 | R14: ='Scenario & Sensitivity'!P78 -> 10 | S14: ='Scenario & Sensitivity'!Q78 -> 11 | T14: ='Scenario & Sensitivity'!R78 -> 12 | U14: ='Scenario & Sensitivity'!S78 -> 12 | V14: ='Scenario & Sensitivity'!T78 -> 13 | W14: ='Scenario & Sensitivity'!U78 -> 14 | X14: ='Scenario & Sensitivity'!V78 -> 15 | Y14: ='Scenario & Sensitivity'!W78 -> 16 | Z14: ='Scenario & Sensitivity'!X78 -> 17 | AA14: ='Scenario & Sensitivity'!Y78 -> 18 | AB14: ='Scenario & Sensitivity'!Z78 -> 19 | AC14: ='Scenario & Sensitivity'!AA78 -> 20 | AD14: ='Scenario & Sensitivity'!AB78 -> 21 | AE14: ='Scenario & Sensitivity'!AC78 -> 22 | AF14: ='Scenario & Sensitivity'!AD78 -> 23 | AG14: ='Scenario & Sensitivity'!AE78 -> 24 | AH14: ='Scenario & Sensitivity'!AF78 -> 25 | AI14: ='Scenario & Sensitivity'!AG78 -> 26 | AJ14: ='Scenario & Sensitivity'!AH78 -> 27 | AK14: ='Scenario & Sensitivity'!AI78 -> 28 | AL14: ='Scenario & Sensitivity'!AJ78 -> 29 | AM14: ='Scenario & Sensitivity'!AK78 -> 30
C15: EBITDA | E15: USD m | I15: ='Scenario & Sensitivity'!G84 -> 80 | J15: ='Scenario & Sensitivity'!J84 -> 85 | K15: ='Scenario & Sensitivity'!K84 -> 90 | L15: ='Scenario & Sensitivity'!L84 -> 95 | M15: ='Scenario & Sensitivity'!M84 -> 100 | N15: ='Scenario & Sensitivity'!N84 -> 100 | O15: ='Scenario & Sensitivity'!O84 -> 100 | P15: ='Scenario & Sensitivity'!P84 -> 100 | Q15: ='Scenario & Sensitivity'!Q84 -> 130 | R15: ='Scenario & Sensitivity'!R84 -> 130 | S15: ='Scenario & Sensitivity'!S84 -> 130 | T15: ='Scenario & Sensitivity'!T84 -> 130 | U15: ='Scenario & Sensitivity'!U84 -> 140 | V15: ='Scenario & Sensitivity'!V84 -> 140 | W15: ='Scenario & Sensitivity'!W84 -> 140 | X15: ='Scenario & Sensitivity'!X84 -> 140 | Y15: ='Scenario & Sensitivity'!Y84 -> 140 | Z15: ='Scenario & Sensitivity'!Z84 -> 150 | AA15: ='Scenario & Sensitivity'!AA84 -> 150 | AB15: ='Scenario & Sensitivity'!AB84 -> 150 | AC15: ='Scenario & Sensitivity'!AC84 -> 150 | AD15: ='Scenario & Sensitivity'!AD84 -> 150 | AE15: ='Scenario & Sensitivity'!AE84 -> 150 | AF15: ='Scenario & Sensitivity'!AF84 -> 150 | AG15: ='Scenario & Sensitivity'!AG84 -> 150 | AH15: ='Scenario & Sensitivity'!AH84 -> 150 | AI15: ='Scenario & Sensitivity'!AI84 -> 150 | AJ15: ='Scenario & Sensitivity'!AJ84 -> 150 | AK15: ='Scenario & Sensitivity'!AK84 -> 150 | AL15: ='Scenario & Sensitivity'!AL84 -> 150 | AM15: ='Scenario & Sensitivity'!AM84 -> 150
B17: Financing Assumptions
C18: Debt Size
D19: Debt to Capital - Max | F19: ='Scenario & Sensitivity'!F42 -> 0.85
D20: DSCR - Min | F20: ='Scenario & Sensitivity'!E42 -> 1.1
D22: Balloon Size | F22: =G22/100 -> 0 | G22: 0
D23: Sculpt Size | F23: =1-F22 -> 1 | I23: Equity IRR | K23: =G148 -> 0.0978089269
D24: Balloon Factor -- Percent of Sculpted NPV | F24: =F22/(1-F22) -> 0
D26: Sculpted Debt | E26: =F26/F28 -> 1 | F26: =G117 -> 1360
D27: Ballon Debt | E27: =F27/F28 -> 0 | F27: =IF(G186,G188,H30) -> 0
D28: Total Debt | E28: =F28/F28 -> 1 | F28: =SUM(F26:F27) -> 1360
C30: Citcular Reference Results | H30: =Balloon(100:100,54:54,84:84,G164,F22) -> 0 | I30: 1360 | J30: 0 | K30: 0
C32: Repayment
D33: Repayment Tenor | E33: Years | F33: ='Scenario & Sensitivity'!G42 -> 18 | K33: Total Debt | M33: LLCR = PV CF/Debt
D34: Balloon Tenor | E34: Years | F34: =F33 -> 18 | K34: Total LLCR | M34: LLCR 1 = PV CF/(Debt + Balloon)
D36: Constrained Debt to Capital with DSCR Adjustment | F36: FALSE
D37: Debt to capital constraint with Tenor Adjustment | F37: =NOT(F36) -> TRUE
C39: Interest Rate
D40: Fixed Margin Switch | E40: TRUE | F40: =G41-F41 -> 1 | G40: =H41-G41 -> 4 | H40: =I41-H41 -> 5 | I40: 10 | J40: =F33-J41 -> -2 | K40: 0
D41: Year | F41: 0 | G41: 1 | H41: 5 | I41: 10 | J41: 20
D42: SIBOR Rate | F42: ='Scenario & Sensitivity'!J42 -> 0.0155 | G42: =F42 -> 0.0155 | H42: =G42 -> 0.0155 | I42: =H42 -> 0.0155 | J42: =I42 -> 0.0155
D43: Applied Margin | E43: =E40 -> TRUE | F43: ='Scenario & Sensitivity'!F72 -> 0.0175 | G43: ='Scenario & Sensitivity'!G72 -> 0.0175 | H43: ='Scenario & Sensitivity'!H72 -> 0.0175 | I43: ='Scenario & Sensitivity'!I72 -> 0.0175 | J43: ='Scenario & Sensitivity'!J72 -> 0.0175
D44: Total | F44: =SUM(F42,F43) -> 0.033 | G44: =SUM(G42,G43) -> 0.033 | H44: =SUM(H42,H43) -> 0.033 | I44: =SUM(I42,I43) -> 0.033 | J44: =SUM(J42,J43) -> 0.033
D46: Weighted Average Margin | F46: =SUMPRODUCT(F43:J43,F40:J40)/F33 -> 0.0175
C48: Credit Enhancements
D49: Cash Sweep | F49: =F33-F50 -> 13
D50: Sweep Before Ballon | E50: Year | F50: =H50 -> 5 | H50: 5
D51: Sweep Percentage | E51: % | F51: =H51/100 -> 0 | H51: 0
A53: Operating Cash Flows
B54: CFADS | H54: =interpolate_look_up(H2,14:14,15:15)*H4 -> 0 | I54: =interpolate_look_up(I2,14:14,15:15)*I4 -> 80 | J54: 85 | K54: 90 | L54: 95 | M54: 100 | N54: 100 | O54: 100 | P54: 100 | Q54: 130 | R54: 130 | S54: 130 | T54: 130 | U54: 140 | V54: 140 | W54: 140 | X54: 140 | Y54: 150 | Z54: 150 | AA54: 150 | AB54: 150 | AC54: 150 | AD54: 150 | AE54: 150 | AF54: 150 | AG54: 150 | AH54: 0 | AI54: 0 | AJ54: 0 | AK54: 0 | AL54: 0 | AM54: 0 | AN54: 0 | AO54: 0 | AP54: 0 | AQ54: 0 | AR54: 0 | AS54: 0 | AT54: 0 | AU54: 0 | AV54: 0
B55: Capex | G55: =F12 -> 1600 | H55: =$G$55*H3 -> 1600 | I55: 0 | J55: 0 | K55: 0 | L55: 0 | M55: 0 | N55: 0 | O55: 0 | P55: 0 | Q55: 0 | R55: 0 | S55: 0 | T55: 0 | U55: 0 | V55: 0 | W55: 0 | X55: 0 | Y55: 0 | Z55: 0 | AA55: 0 | AB55: 0 | AC55: 0 | AD55: 0 | AE55: 0 | AF55: 0 | AG55: 0 | AH55: 0 | AI55: 0 | AJ55: 0 | AK55: 0 | AL55: 0 | AM55: 0 | AN55: 0 | AO55: 0 | AP55: 0 | AQ55: 0 | AR55: 0 | AS55: 0 | AT55: 0 | AU55: 0 | AV55: 0
B56: Project Cash Flow | H56: =H54-H55 -> -1600 | I56: 80 | J56: 85 | K56: 90 | L56: 95 | M56: 100 | N56: 100 | O56: 100 | P56: 100 | Q56: 130 | R56: 130 | S56: 130 | T56: 130 | U56: 140 | V56: 140 | W56: 140 | X56: 140 | Y56: 150 | Z56: 150 | AA56: 150 | AB56: 150 | AC56: 150 | AD56: 150 | AE56: 150 | AF56: 150 | AG56: 150 | AH56: 0 | AI56: 0 | AJ56: 0 | AK56: 0 | AL56: 0 | AM56: 0 | AN56: 0 | AO56: 0 | AP56: 0 | AQ56: 0 | AR56: 0 | AS56: 0 | AT56: 0 | AU56: 0 | AV56: 0
B57: Project IRR | F57: =IRR(56:56) -> 0.05422333418
A59: Summary Sources and Uses
B60: Sources and Uses
C61: Uses of Funds
D62: Capital Expenditure | E62: =F12 -> 1600
D63: Development Fee | E63: =F13 -> 0
D64: Total | E64: =SUM(E62:E63) -> 1600
C66: Sources
D67: Ballon Debt | E67: =G83 -> 0 | F67: =E67/$E$64 -> 0
D68: Scuplted Debt | E68: =G117 -> 1360 | F68: =E68/$E$64 -> 0.85
D69: Equity | E69: =E64-E67-E68 -> 240 | F69: =E69/E64 -> 0.15
D70: Total | E70: =SUM(E67:E69) -> 1600
D72: Total Debt | E72: =E68+E69 -> 1600 | F72: =E72/E70 -> 1
D73: Debt to Capital Constraint | E73: =G186 -> TRUE
A75: Debt Schedule
B77: Balloon Switch | G77: =F34 -> 18 | H77: =$G$77=H2 -> FALSE | I77: FALSE | J77: FALSE | K77: FALSE | L77: FALSE | M77: FALSE | N77: FALSE | O77: FALSE | P77: FALSE | Q77: FALSE | R77: FALSE | S77: FALSE | T77: FALSE | U77: FALSE | V77: FALSE | W77: FALSE | X77: FALSE | Y77: FALSE | Z77: TRUE | AA77: FALSE | AB77: FALSE | AC77: FALSE | AD77: FALSE | AE77: FALSE | AF77: FALSE | AG77: FALSE | AH77: FALSE | AI77: FALSE | AJ77: FALSE | AK77: FALSE | AL77: FALSE | AM77: FALSE | AN77: FALSE | AO77: FALSE | AP77: FALSE | AQ77: FALSE | AR77: FALSE | AS77: FALSE | AT77: FALSE | AU77: FALSE | AV77: FALSE
B78: Sweep Switch | F78: =F49 -> 13 | G78: =G77 -> 18 | H78: =AND(H2>=$F$78,H2<=$G$78) -> FALSE | I78: =AND(I2>=$F$78,I2<=$G$78) -> FALSE | J78: FALSE | K78: FALSE | L78: FALSE | M78: FALSE | N78: FALSE | O78: FALSE | P78: FALSE | Q78: FALSE | R78: FALSE | S78: FALSE | T78: FALSE | U78: TRUE | V78: TRUE | W78: TRUE | X78: TRUE | Y78: TRUE | Z78: TRUE | AA78: FALSE | AB78: FALSE | AC78: FALSE | AD78: FALSE | AE78: FALSE | AF78: FALSE | AG78: FALSE | AH78: FALSE | AI78: FALSE | AJ78: FALSE | AK78: FALSE | AL78: FALSE | AM78: FALSE | AN78: FALSE | AO78: FALSE | AP78: FALSE | AQ78: FALSE | AR78: FALSE | AS78: FALSE | AT78: FALSE | AU78: FALSE | AV78: FALSE
B80: Balloon Tranche
C81: Opening Balance | H81: =G83 -> 0 | I81: =H83 -> 0 | J81: 0 | K81: 0 | L81: 0 | M81: 0 | N81: 0 | O81: 0 | P81: 0 | Q81: 0 | R81: 0 | S81: 0 | T81: 0 | U81: 0 | V81: 0 | W81: 0 | X81: 0 | Y81: 0 | Z81: 0 | AA81: 0 | AB81: 0 | AC81: 0 | AD81: 0 | AE81: 0 | AF81: 0 | AG81: 0 | AH81: 0 | AI81: 0 | AJ81: 0 | AK81: 0 | AL81: 0 | AM81: 0 | AN81: 0 | AO81: 0 | AP81: 0 | AQ81: 0 | AR81: 0 | AS81: 0 | AT81: 0 | AU81: 0 | AV81: 0
C82: Less: Repayment (with Switch at Maturity) | H82: =(H81)*H77 -> 0 | I82: =(I81)*I77 -> 0 | J82: 0 | K82: 0 | L82: 0 | M82: 0 | N82: 0 | O82: 0 | P82: 0 | Q82: 0 | R82: 0 | S82: 0 | T82: 0 | U82: 0 | V82: 0 | W82: 0 | X82: 0 | Y82: 0 | Z82: 0 | AA82: 0 | AB82: 0 | AC82: 0 | AD82: 0 | AE82: 0 | AF82: 0 | AG82: 0 | AH82: 0 | AI82: 0 | AJ82: 0 | AK82: 0 | AL82: 0 | AM82: 0 | AN82: 0 | AO82: 0 | AP82: 0 | AQ82: 0 | AR82: 0 | AS82: 0 | AT82: 0 | AU82: 0 | AV82: 0
C83: Closing Balance | G83: =IFERROR(F27,0) -> 0 | H83: =H81-H82 -> 0 | I83: =I81-I82 -> 0 | J83: 0 | K83: 0 | L83: 0 | M83: 0 | N83: 0 | O83: 0 | P83: 0 | Q83: 0 | R83: 0 | S83: 0 | T83: 0 | U83: 0 | V83: 0 | W83: 0 | X83: 0 | Y83: 0 | Z83: 0 | AA83: 0 | AB83: 0 | AC83: 0 | AD83: 0 | AE83: 0 | AF83: 0 | AG83: 0 | AH83: 0 | AI83: 0 | AJ83: 0 | AK83: 0 | AL83: 0 | AM83: 0 | AN83: 0 | AO83: 0 | AP83: 0 | AQ83: 0 | AR83: 0 | AS83: 0 | AT83: 0 | AU83: 0 | AV83: 0
C84: Interest Rate on Balloon | H84: =H118 -> 0.033 | I84: =I118 -> 0.033 | J84: 0.033 | K84: 0.033 | L84: 0.033 | M84: 0.033 | N84: 0.033 | O84: 0.033 | P84: 0.033 | Q84: 0.033 | R84: 0.033 | S84: 0.033 | T84: 0.033 | U84: 0.033 | V84: 0.033 | W84: 0.033 | X84: 0.033 | Y84: 0.033 | Z84: 0.033 | AA84: 0.033 | AB84: 0.033 | AC84: 0.033 | AD84: 0.033 | AE84: 0.033 | AF84: 0.033 | AG84: 0.033 | AH84: 0.033 | AI84: 0.033 | AJ84: 0.033 | AK84: 0.033 | AL84: 0.033 | AM84: 0.033 | AN84: 0.033 | AO84: 0.033 | AP84: 0.033 | AQ84: 0.033 | AR84: 0.033 | AS84: 0.033 | AT84: 0.033 | AU84: 0.033 | AV84: 0.033
C85: Interest Expense on Balloon Tranche | H85: =H81*H84*H100 -> 0 | I85: 0 | J85: 0 | K85: 0 | L85: 0 | M85: 0 | N85: 0 | O85: 0 | P85: 0 | Q85: 0 | R85: 0 | S85: 0 | T85: 0 | U85: 0 | V85: 0 | W85: 0 | X85: 0 | Y85: 0 | Z85: 0 | AA85: 0 | AB85: 0 | AC85: 0 | AD85: 0 | AE85: 0 | AF85: 0 | AG85: 0 | AH85: 0 | AI85: 0 | AJ85: 0 | AK85: 0 | AL85: 0 | AM85: 0 | AN85: 0 | AO85: 0 | AP85: 0 | AQ85: 0 | AR85: 0 | AS85: 0 | AT85: 0 | AU85: 0 | AV85: 0
B87: Balloon Reserve
C88: Required Balance (Amount of Balloon) | G88: =G83 -> 0 | H88: =$G$88 -> 0 | I88: =$G$88 -> 0 | J88: 0 | K88: 0 | L88: 0 | M88: 0 | N88: 0 | O88: 0 | P88: 0 | Q88: 0 | R88: 0 | S88: 0 | T88: 0 | U88: 0 | V88: 0 | W88: 0 | X88: 0 | Y88: 0 | Z88: 0 | AA88: 0 | AB88: 0 | AC88: 0 | AD88: 0 | AE88: 0 | AF88: 0 | AG88: 0 | AH88: 0 | AI88: 0 | AJ88: 0 | AK88: 0 | AL88: 0 | AM88: 0 | AN88: 0 | AO88: 0 | AP88: 0 | AQ88: 0 | AR88: 0 | AS88: 0 | AT88: 0 | AU88: 0 | AV88: 0
C89: Less: Accumlated Amount (Opening Balance) | H89: =H92 -> 0 | I89: =I92 -> 0 | J89: 0 | K89: 0 | L89: 0 | M89: 0 | N89: 0 | O89: 0 | P89: 0 | Q89: 0 | R89: 0 | S89: 0 | T89: 0 | U89: 0 | V89: 0 | W89: 0 | X89: 0 | Y89: 0 | Z89: 0 | AA89: 0 | AB89: 0 | AC89: 0 | AD89: 0 | AE89: 0 | AF89: 0 | AG89: 0 | AH89: 0 | AI89: 0 | AJ89: 0 | AK89: 0 | AL89: 0 | AM89: 0 | AN89: 0 | AO89: 0 | AP89: 0 | AQ89: 0 | AR89: 0 | AS89: 0 | AT89: 0 | AU89: 0 | AV89: 0
C90: Required Funding | H90: =H88-H89 -> 0 | I90: =I88-I89 -> 0 | J90: 0 | K90: 0 | L90: 0 | M90: 0 | N90: 0 | O90: 0 | P90: 0 | Q90: 0 | R90: 0 | S90: 0 | T90: 0 | U90: 0 | V90: 0 | W90: 0 | X90: 0 | Y90: 0 | Z90: 0 | AA90: 0 | AB90: 0 | AC90: 0 | AD90: 0 | AE90: 0 | AF90: 0 | AG90: 0 | AH90: 0 | AI90: 0 | AJ90: 0 | AK90: 0 | AL90: 0 | AM90: 0 | AN90: 0 | AO90: 0 | AP90: 0 | AQ90: 0 | AR90: 0 | AS90: 0 | AT90: 0 | AU90: 0 | AV90: 0
C92: Opening Balance | H92: =G95 -> 0 | I92: =H95 -> 0 | J92: 0 | K92: 0 | L92: 0 | M92: 0 | N92: 0 | O92: 0 | P92: 0 | Q92: 0 | R92: 0 | S92: 0 | T92: 0 | U92: 0 | V92: 0 | W92: 0 | X92: 0 | Y92: 0 | Z92: 0 | AA92: 0 | AB92: 0 | AC92: 0 | AD92: 0 | AE92: 0 | AF92: 0 | AG92: 0 | AH92: 0 | AI92: 0 | AJ92: 0 | AK92: 0 | AL92: 0 | AM92: 0 | AN92: 0 | AO92: 0 | AP92: 0 | AQ92: 0 | AR92: 0 | AS92: 0 | AT92: 0 | AU92: 0 | AV92: 0
C93: Add: Swept Cash (From Cash Flow with Test) | H93: =H138 -> 0 | I93: =I138 -> 0 | J93: 0 | K93: 0 | L93: 0 | M93: 0 | N93: 0 | O93: 0 | P93: 0 | Q93: 0 | R93: 0 | S93: 0 | T93: 0 | U93: 0 | V93: 0 | W93: 0 | X93: 0 | Y93: 0 | Z93: 0 | AA93: 0 | AB93: 0 | AC93: 0 | AD93: 0 | AE93: 0 | AF93: 0 | AG93: 0 | AH93: 0 | AI93: 0 | AJ93: 0 | AK93: 0 | AL93: 0 | AM93: 0 | AN93: 0 | AO93: 0 | AP93: 0 | AQ93: 0 | AR93: 0 | AS93: 0 | AT93: 0 | AU93: 0 | AV93: 0
C94: Less: Cash Released to Pay Balloon Pmt (Opening Balance) | H94: =(H92+H93)*H77 -> 0 | I94: 0 | J94: 0 | K94: 0 | L94: 0 | M94: 0 | N94: 0 | O94: 0 | P94: 0 | Q94: 0 | R94: 0 | S94: 0 | T94: 0 | U94: 0 | V94: 0 | W94: 0 | X94: 0 | Y94: 0 | Z94: 0 | AA94: 0 | AB94: 0 | AC94: 0 | AD94: 0 | AE94: 0 | AF94: 0 | AG94: 0 | AH94: 0 | AI94: 0 | AJ94: 0 | AK94: 0 | AL94: 0 | AM94: 0 | AN94: 0 | AO94: 0 | AP94: 0 | AQ94: 0 | AR94: 0 | AS94: 0 | AT94: 0 | AU94: 0 | AV94: 0
C95: Closing Balance | H95: =H92+H93-H94 -> 0 | I95: =I92+I93-I94 -> 0 | J95: 0 | K95: 0 | L95: 0 | M95: 0 | N95: 0 | O95: 0 | P95: 0 | Q95: 0 | R95: 0 | S95: 0 | T95: 0 | U95: 0 | V95: 0 | W95: 0 | X95: 0 | Y95: 0 | Z95: 0 | AA95: 0 | AB95: 0 | AC95: 0 | AD95: 0 | AE95: 0 | AF95: 0 | AG95: 0 | AH95: 0 | AI95: 0 | AJ95: 0 | AK95: 0 | AL95: 0 | AM95: 0 | AN95: 0 | AO95: 0 | AP95: 0 | AQ95: 0 | AR95: 0 | AS95: 0 | AT95: 0 | AU95: 0 | AV95: 0
C96: Interest Income Rate
C97: Interest Income
B99: Debt Sizing
C100: Debt Repayment Switch | G100: =F33 -> 18 | H100: =AND(H4,H2<=$G$100) -> FALSE | I100: TRUE | J100: TRUE | K100: TRUE | L100: TRUE | M100: TRUE | N100: TRUE | O100: TRUE | P100: TRUE | Q100: TRUE | R100: TRUE | S100: TRUE | T100: TRUE | U100: TRUE | V100: TRUE | W100: TRUE | X100: TRUE | Y100: TRUE | Z100: TRUE | AA100: FALSE | AB100: FALSE | AC100: FALSE | AD100: FALSE | AE100: FALSE | AF100: FALSE | AG100: FALSE | AH100: FALSE | AI100: FALSE | AJ100: FALSE | AK100: FALSE | AL100: FALSE | AM100: FALSE | AN100: FALSE | AO100: FALSE | AP100: FALSE | AQ100: FALSE | AR100: FALSE | AS100: FALSE | AT100: FALSE | AU100: FALSE | AV100: FALSE
C101: Post Repayment Switch | G101: =G100 -> 18 | H101: =H2>$G$101 -> FALSE | I101: FALSE | J101: FALSE | K101: FALSE | L101: FALSE | M101: FALSE | N101: FALSE | O101: FALSE | P101: FALSE | Q101: FALSE | R101: FALSE | S101: FALSE | T101: FALSE | U101: FALSE | V101: FALSE | W101: FALSE | X101: FALSE | Y101: FALSE | Z101: FALSE | AA101: TRUE | AB101: TRUE | AC101: TRUE | AD101: TRUE | AE101: TRUE | AF101: TRUE | AG101: TRUE | AH101: TRUE | AI101: TRUE | AJ101: TRUE | AK101: TRUE | AL101: TRUE | AM101: TRUE | AN101: TRUE | AO101: TRUE | AP101: TRUE | AQ101: TRUE | AR101: TRUE | AS101: TRUE | AT101: TRUE | AU101: TRUE | AV101: TRUE
C103: CFADS | H103: =H54 -> 0 | I103: 80 | J103: 85 | K103: 90 | L103: 95 | M103: 100 | N103: 100 | O103: 100 | P103: 100 | Q103: 130 | R103: 130 | S103: 130 | T103: 130 | U103: 140 | V103: 140 | W103: 140 | X103: 140 | Y103: 150 | Z103: 150 | AA103: 150 | AB103: 150 | AC103: 150 | AD103: 150 | AE103: 150 | AF103: 150 | AG103: 150 | AH103: 0 | AI103: 0 | AJ103: 0 | AK103: 0 | AL103: 0 | AM103: 0 | AN103: 0 | AO103: 0 | AP103: 0 | AQ103: 0 | AR103: 0 | AS103: 0 | AT103: 0 | AU103: 0 | AV103: 0
C104: Target Debt Service Ignoring Balloon | F104: =G184 -> 1.12960926 | H104: =IF(H100,H103/$F$104) -> FALSE | I104: =IF(I100,I103/$F$104) -> 70.82094921 | J104: 75.24725853 | K104: 79.67356786 | L104: 84.09987718 | M104: 88.52618651 | N104: 88.52618651 | O104: 88.52618651 | P104: 88.52618651 | Q104: 115.0840425 | R104: 115.0840425 | S104: 115.0840425 | T104: 115.0840425 | U104: 123.9366611 | V104: 123.9366611 | W104: 123.9366611 | X104: 123.9366611 | Y104: 132.7892798 | Z104: 132.7892798 | AA104: FALSE | AB104: FALSE | AC104: FALSE | AD104: FALSE | AE104: FALSE | AF104: FALSE | AG104: FALSE | AH104: FALSE | AI104: FALSE | AJ104: FALSE | AK104: FALSE | AL104: FALSE | AM104: FALSE | AN104: FALSE | AO104: FALSE | AP104: FALSE | AQ104: FALSE | AR104: FALSE | AS104: FALSE | AT104: FALSE | AU104: FALSE | AV104: FALSE
C105: Target Debt Service with Balloon Interest | F105: =F104 -> 1.12960926 | H105: =(H103/$F$105-H85)*H100 -> 0 | I105: =(I103/$F$105-I85)*I100 -> 70.82094921 | J105: =(J103/$F$105-J85)*J100 -> 75.24725853 | K105: 79.67356786 | L105: 84.09987718 | M105: 88.52618651 | N105: 88.52618651 | O105: 88.52618651 | P105: 88.52618651 | Q105: 115.0840425 | R105: 115.0840425 | S105: 115.0840425 | T105: 115.0840425 | U105: 123.9366611 | V105: 123.9366611 | W105: 123.9366611 | X105: 123.9366611 | Y105: 132.7892798 | Z105: 132.7892798 | AA105: 0 | AB105: 0 | AC105: 0 | AD105: 0 | AE105: 0 | AF105: 0 | AG105: 0 | AH105: 0 | AI105: 0 | AJ105: 0 | AK105: 0 | AL105: 0 | AM105: 0 | AN105: 0 | AO105: 0 | AP105: 0 | AQ105: 0 | AR105: 0 | AS105: 0 | AT105: 0 | AU105: 0 | AV105: 0
C107: Interest Rate Index | G107: 1 | H107: =G107*(1+H118*H4) -> 1 | I107: 1.033 | J107: 1.067089 | K107: 1.102302937 | L107: 1.138678934 | M107: 1.176255339 | N107: 1.215071765 | O107: 1.255169133 | P107: 1.296589715 | Q107: 1.339377175 | R107: 1.383576622 | S107: 1.42923465 | T107: 1.476399394 | U107: 1.525120574 | V107: 1.575449553 | W107: 1.627439388 | X107: 1.681144888 | Y107: 1.736622669 | Z107: 1.793931217 | AA107: 1.853130947 | AB107: 1.914284269 | AC107: 1.97745565 | AD107: 2.042711686 | AE107: 2.110121172 | AF107: 2.17975517 | AG107: 2.251687091 | AH107: 2.251687091 | AI107: 2.251687091 | AJ107: 2.251687091 | AK107: 2.251687091 | AL107: 2.251687091 | AM107: 2.251687091 | AN107: 2.251687091 | AO107: 2.251687091 | AP107: 2.251687091 | AQ107: 2.251687091 | AR107: 2.251687091 | AS107: 2.251687091 | AT107: 2.251687091 | AU107: 2.251687091 | AV107: 2.251687091
C108: NPV of Debt Service Ignoring Balloon | G108: =SUMPRODUCT(H104:AV104/H107:AV107) -> 1360
C109: NPV of Debt Service with Balloon Interest | G109: =SUMPRODUCT(H105:AV105/H107:AV107) -> 1360
B111: Debt Size from Max Debt to Capital | G111: =(F12+F13)*F19 -> 1360
B112: Debt to capital constraint with tenor adj | G112: =F37 -> TRUE
B114: Sculpted Debt Balance
C115: Opening Balance | I115: =H117 -> 1360 | J115: 1334.059051 | K115: 1302.835741 | L115: 1266.155753 | M115: 1223.839015 | N115: 1175.699516 | O115: 1125.971414 | P115: 1074.602284 | Q115: 1021.537973 | R115: 940.1646833 | S115: 856.1060754 | T115: 769.2735334 | U115: 679.5755176 | V115: 578.0648485 | W115: 473.2043274 | X115: 364.8834091 | Y115: 252.9879005 | Z115: 128.5472215 | AA115: 1.904254532e-12 | AB115: 1.967094931e-12 | AC115: 2.032009064e-12 | AD115: 2.099065363e-12 | AE115: 2.16833452e-12 | AF115: 2.239889559e-12 | AG115: 2.313805915e-12 | AH115: 2.39016151e-12 | AI115: 2.46903684e-12 | AJ115: 2.550515056e-12 | AK115: 2.634682052e-12 | AL115: 2.72162656e-12 | AM115: 2.811440237e-12 | AN115: 2.904217764e-12 | AO115: 3.000056951e-12 | AP115: 3.09905883e-12 | AQ115: 3.201327771e-12 | AR115: 3.306971588e-12 | AS115: 3.41610165e-12 | AT115: 3.528833005e-12 | AU115: 3.645284494e-12 | AV115: 3.765578882e-12
C116: Less Repayments | H116: =H105-H119 -> 0 | I116: =I105-I119 -> 25.94094921 | J116: 31.22330986 | K116: 36.67998841 | L116: 42.31673735 | M116: 48.13949901 | N116: 49.72810248 | O116: 51.36912986 | P116: 53.06431114 | Q116: 81.37328936 | R116: 84.05860791 | S116: 86.83254197 | T116: 89.69801586 | U116: 101.510669 | V116: 104.8605211 | W116: 108.3209183 | X116: 111.8955086 | Y116: 124.440679 | Z116: 128.5472215 | AA116: -6.284039955e-14 | AB116: -6.491413274e-14 | AC116: -6.705629912e-14 | AD116: -6.926915699e-14 | AE116: -7.155503917e-14 | AF116: -7.391635546e-14 | AG116: -7.635559519e-14 | AH116: -7.887532983e-14 | AI116: -8.147821572e-14 | AJ116: -8.416699683e-14 | AK116: -8.694450773e-14 | AL116: -8.981367649e-14 | AM116: -9.277752781e-14 | AN116: -9.583918623e-14 | AO116: -9.900187937e-14 | AP116: -1.022689414e-13 | AQ116: -1.056438165e-13 | AR116: -1.091300624e-13 | AS116: -1.127313545e-13 | AT116: -1.164514892e-13 | AU116: -1.202943883e-13 | AV116: -1.242641031e-13
C117: Closing Balance | G117: =IF(G186,G108,G109) -> 1360 | H117: =G117 -> 1360 | I117: =I115-I116 -> 1334.059051 | J117: 1302.835741 | K117: 1266.155753 | L117: 1223.839015 | M117: 1175.699516 | N117: 1125.971414 | O117: 1074.602284 | P117: 1021.537973 | Q117: 940.1646833 | R117: 856.1060754 | S117: 769.2735334 | T117: 679.5755176 | U117: 578.0648485 | V117: 473.2043274 | W117: 364.8834091 | X117: 252.9879005 | Y117: 128.5472215 | Z117: 1.904254532e-12 | AA117: 1.967094931e-12 | AB117: 2.032009064e-12 | AC117: 2.099065363e-12 | AD117: 2.16833452e-12 | AE117: 2.239889559e-12 | AF117: 2.313805915e-12 | AG117: 2.39016151e-12 | AH117: 2.46903684e-12 | AI117: 2.550515056e-12 | AJ117: 2.634682052e-12 | AK117: 2.72162656e-12 | AL117: 2.811440237e-12 | AM117: 2.904217764e-12 | AN117: 3.000056951e-12 | AO117: 3.09905883e-12 | AP117: 3.201327771e-12 | AQ117: 3.306971588e-12 | AR117: 3.41610165e-12 | AS117: 3.528833005e-12 | AT117: 3.645284494e-12 | AU117: 3.765578882e-12 | AV117: 3.889842985e-12
C118: Interest Rate | H118: =LOOKUP(H2,41:41,44:44) -> 0.033 | I118: 0.033 | J118: 0.033 | K118: 0.033 | L118: 0.033 | M118: 0.033 | N118: 0.033 | O118: 0.033 | P118: 0.033 | Q118: 0.033 | R118: 0.033 | S118: 0.033 | T118: 0.033 | U118: 0.033 | V118: 0.033 | W118: 0.033 | X118: 0.033 | Y118: 0.033 | Z118: 0.033 | AA118: 0.033 | AB118: 0.033 | AC118: 0.033 | AD118: 0.033 | AE118: 0.033 | AF118: 0.033 | AG118: 0.033 | AH118: 0.033 | AI118: 0.033 | AJ118: 0.033 | AK118: 0.033 | AL118: 0.033 | AM118: 0.033 | AN118: 0.033 | AO118: 0.033 | AP118: 0.033 | AQ118: 0.033 | AR118: 0.033 | AS118: 0.033 | AT118: 0.033 | AU118: 0.033 | AV118: 0.033
C119: Interest | I119: =I118*I115 -> 44.88 | J119: 44.02394868 | K119: 42.99357945 | L119: 41.78313983 | M119: 40.3866875 | N119: 38.79808403 | O119: 37.15705665 | P119: 35.46187537 | Q119: 33.7107531 | R119: 31.02543455 | S119: 28.25150049 | T119: 25.3860266 | U119: 22.42599208 | V119: 19.07614 | W119: 15.61574281 | X119: 12.0411525 | Y119: 8.348600717 | Z119: 4.242058308 | AA119: 6.284039955e-14 | AB119: 6.491413274e-14 | AC119: 6.705629912e-14 | AD119: 6.926915699e-14 | AE119: 7.155503917e-14 | AF119: 7.391635546e-14 | AG119: 7.635559519e-14 | AH119: 7.887532983e-14 | AI119: 8.147821572e-14 | AJ119: 8.416699683e-14 | AK119: 8.694450773e-14 | AL119: 8.981367649e-14 | AM119: 9.277752781e-14 | AN119: 9.583918623e-14 | AO119: 9.900187937e-14 | AP119: 1.022689414e-13 | AQ119: 1.056438165e-13 | AR119: 1.091300624e-13 | AS119: 1.127313545e-13 | AT119: 1.164514892e-13 | AU119: 1.202943883e-13 | AV119: 1.242641031e-13
C121: Sum of Closing Balance After Repayment | G121: =ROUND(SUMIF(101:101,TRUE,117:117),3)=0 -> TRUE
B123: Refinanced Balloon
C124: Opening Balance | H124: =G127 -> 0 | I124: =H127 -> 0 | J124: 0 | K124: 0 | L124: 0 | M124: 0 | N124: 0 | O124: 0 | P124: 0 | Q124: 0 | R124: 0 | S124: 0 | T124: 0 | U124: 0 | V124: 0 | W124: 0 | X124: 0 | Y124: 0 | Z124: 0 | AA124: 0 | AB124: 0 | AC124: 0 | AD124: 0 | AE124: 0 | AF124: 0 | AG124: 0 | AH124: 0 | AI124: 0 | AJ124: 0 | AK124: 0 | AL124: 0 | AM124: 0 | AN124: 0 | AO124: 0 | AP124: 0 | AQ124: 0 | AR124: 0 | AS124: 0 | AT124: 0 | AU124: 0 | AV124: 0
C125: Add: Refinancing | H125: =H143 -> 0 | I125: =I143 -> 0 | J125: 0 | K125: 0 | L125: 0 | M125: 0 | N125: 0 | O125: 0 | P125: 0 | Q125: 0 | R125: 0 | S125: 0 | T125: 0 | U125: 0 | V125: 0 | W125: 0 | X125: 0 | Y125: 0 | Z125: 0 | AA125: 0 | AB125: 0 | AC125: 0 | AD125: 0 | AE125: 0 | AF125: 0 | AG125: 0 | AH125: 0 | AI125: 0 | AJ125: 0 | AK125: 0 | AL125: 0 | AM125: 0 | AN125: 0 | AO125: 0 | AP125: 0 | AQ125: 0 | AR125: 0 | AS125: 0 | AT125: 0 | AU125: 0 | AV125: 0
C126: Less: Repaid from Sweep | H126: =H144 -> 0 | I126: =I144 -> 0 | J126: 0 | K126: 0 | L126: 0 | M126: 0 | N126: 0 | O126: 0 | P126: 0 | Q126: 0 | R126: 0 | S126: 0 | T126: 0 | U126: 0 | V126: 0 | W126: 0 | X126: 0 | Y126: 0 | Z126: 0 | AA126: 0 | AB126: 0 | AC126: 0 | AD126: 0 | AE126: 0 | AF126: 0 | AG126: 0 | AH126: 0 | AI126: 0 | AJ126: 0 | AK126: 0 | AL126: 0 | AM126: 0 | AN126: 0 | AO126: 0 | AP126: 0 | AQ126: 0 | AR126: 0 | AS126: 0 | AT126: 0 | AU126: 0 | AV126: 0
C127: Closing Balance | H127: =H124+H125-H126 -> 0 | I127: =I124+I125-I126 -> 0 | J127: 0 | K127: 0 | L127: 0 | M127: 0 | N127: 0 | O127: 0 | P127: 0 | Q127: 0 | R127: 0 | S127: 0 | T127: 0 | U127: 0 | V127: 0 | W127: 0 | X127: 0 | Y127: 0 | Z127: 0 | AA127: 0 | AB127: 0 | AC127: 0 | AD127: 0 | AE127: 0 | AF127: 0 | AG127: 0 | AH127: 0 | AI127: 0 | AJ127: 0 | AK127: 0 | AL127: 0 | AM127: 0 | AN127: 0 | AO127: 0 | AP127: 0 | AQ127: 0 | AR127: 0 | AS127: 0 | AT127: 0 | AU127: 0 | AV127: 0
C128: Interest on Refinanced Balloon | H128: =H124*H118 -> 0 | I128: =I124*I118 -> 0 | J128: 0 | K128: 0 | L128: 0 | M128: 0 | N128: 0 | O128: 0 | P128: 0 | Q128: 0 | R128: 0 | S128: 0 | T128: 0 | U128: 0 | V128: 0 | W128: 0 | X128: 0 | Y128: 0 | Z128: 0 | AA128: 0 | AB128: 0 | AC128: 0 | AD128: 0 | AE128: 0 | AF128: 0 | AG128: 0 | AH128: 0 | AI128: 0 | AJ128: 0 | AK128: 0 | AL128: 0 | AM128: 0 | AN128: 0 | AO128: 0 | AP128: 0 | AQ128: 0 | AR128: 0 | AS128: 0 | AT128: 0 | AU128: 0 | AV128: 0
A130: Cash Flow Waterfall | E130: Balloon | F130: ='Scenario & Sensitivity'!J2 -> 0
B131: CFADS | H131: =H54 -> 0 | I131: 80 | J131: 85 | K131: 90 | L131: 95 | M131: 100 | N131: 100 | O131: 100 | P131: 100 | Q131: 130 | R131: 130 | S131: 130 | T131: 130 | U131: 140 | V131: 140 | W131: 140 | X131: 140 | Y131: 150 | Z131: 150 | AA131: 150 | AB131: 150 | AC131: 150 | AD131: 150 | AE131: 150 | AF131: 150 | AG131: 150 | AH131: 0 | AI131: 0 | AJ131: 0 | AK131: 0 | AL131: 0 | AM131: 0 | AN131: 0 | AO131: 0 | AP131: 0 | AQ131: 0 | AR131: 0 | AS131: 0 | AT131: 0 | AU131: 0 | AV131: 0
B132: Add: Interest Income
B133: Less: Interest Expense on Sculpted Debt | H133: =H119 -> 0 | I133: =I119 -> 44.88 | J133: 44.02394868 | K133: 42.99357945 | L133: 41.78313983 | M133: 40.3866875 | N133: 38.79808403 | O133: 37.15705665 | P133: 35.46187537 | Q133: 33.7107531 | R133: 31.02543455 | S133: 28.25150049 | T133: 25.3860266 | U133: 22.42599208 | V133: 19.07614 | W133: 15.61574281 | X133: 12.0411525 | Y133: 8.348600717 | Z133: 4.242058308 | AA133: 6.284039955e-14 | AB133: 6.491413274e-14 | AC133: 6.705629912e-14 | AD133: 6.926915699e-14 | AE133: 7.155503917e-14 | AF133: 7.391635546e-14 | AG133: 7.635559519e-14 | AH133: 7.887532983e-14 | AI133: 8.147821572e-14 | AJ133: 8.416699683e-14 | AK133: 8.694450773e-14 | AL133: 8.981367649e-14 | AM133: 9.277752781e-14 | AN133: 9.583918623e-14 | AO133: 9.900187937e-14 | AP133: 1.022689414e-13 | AQ133: 1.056438165e-13 | AR133: 1.091300624e-13 | AS133: 1.127313545e-13 | AT133: 1.164514892e-13 | AU133: 1.202943883e-13 | AV133: 1.242641031e-13
B134: Less: Interest Expense on Balloon | H134: =H116 -> 0 | I134: 25.94094921 | J134: 31.22330986 | K134: 36.67998841 | L134: 42.31673735 | M134: 48.13949901 | N134: 49.72810248 | O134: 51.36912986 | P134: 53.06431114 | Q134: 81.37328936 | R134: 84.05860791 | S134: 86.83254197 | T134: 89.69801586 | U134: 101.510669 | V134: 104.8605211 | W134: 108.3209183 | X134: 111.8955086 | Y134: 124.440679 | Z134: 128.5472215 | AA134: -6.284039955e-14 | AB134: -6.491413274e-14 | AC134: -6.705629912e-14 | AD134: -6.926915699e-14 | AE134: -7.155503917e-14 | AF134: -7.391635546e-14 | AG134: -7.635559519e-14 | AH134: -7.887532983e-14 | AI134: -8.147821572e-14 | AJ134: -8.416699683e-14 | AK134: -8.694450773e-14 | AL134: -8.981367649e-14 | AM134: -9.277752781e-14 | AN134: -9.583918623e-14 | AO134: -9.900187937e-14 | AP134: -1.022689414e-13 | AQ134: -1.056438165e-13 | AR134: -1.091300624e-13 | AS134: -1.127313545e-13 | AT134: -1.164514892e-13 | AU134: -1.202943883e-13 | AV134: -1.242641031e-13
B135: Less: Interest on Refinanced Balloon | H135: =H128 -> 0 | I135: =I128 -> 0 | J135: 0 | K135: 0 | L135: 0 | M135: 0 | N135: 0 | O135: 0 | P135: 0 | Q135: 0 | R135: 0 | S135: 0 | T135: 0 | U135: 0 | V135: 0 | W135: 0 | X135: 0 | Y135: 0 | Z135: 0 | AA135: 0 | AB135: 0 | AC135: 0 | AD135: 0 | AE135: 0 | AF135: 0 | AG135: 0 | AH135: 0 | AI135: 0 | AJ135: 0 | AK135: 0 | AL135: 0 | AM135: 0 | AN135: 0 | AO135: 0 | AP135: 0 | AQ135: 0 | AR135: 0 | AS135: 0 | AT135: 0 | AU135: 0 | AV135: 0
B136: Less: Repayment Payment of Sculpted Debt | H136: =H85 -> 0 | I136: 0 | J136: 0 | K136: 0 | L136: 0 | M136: 0 | N136: 0 | O136: 0 | P136: 0 | Q136: 0 | R136: 0 | S136: 0 | T136: 0 | U136: 0 | V136: 0 | W136: 0 | X136: 0 | Y136: 0 | Z136: 0 | AA136: 0 | AB136: 0 | AC136: 0 | AD136: 0 | AE136: 0 | AF136: 0 | AG136: 0 | AH136: 0 | AI136: 0 | AJ136: 0 | AK136: 0 | AL136: 0 | AM136: 0 | AN136: 0 | AO136: 0 | AP136: 0 | AQ136: 0 | AR136: 0 | AS136: 0 | AT136: 0 | AU136: 0 | AV136: 0
C137: Cash Flow After Scheduled Debt Service | H137: =H131-H133-H134-H136-H135 -> 0 | I137: =I131-I133-I134-I136-I135 -> 9.179050792 | J137: 9.752741466 | K137: 10.32643214 | L137: 10.90012282 | M137: 11.47381349 | N137: 11.47381349 | O137: 11.47381349 | P137: 11.47381349 | Q137: 14.91595754 | R137: 14.91595754 | S137: 14.91595754 | T137: 14.91595754 | U137: 16.06333889 | V137: 16.06333889 | W137: 16.06333889 | X137: 16.06333889 | Y137: 17.21072023 | Z137: 17.21072023 | AA137: 150 | AB137: 150 | AC137: 150 | AD137: 150 | AE137: 150 | AF137: 150 | AG137: 150 | AH137: 0 | AI137: 0 | AJ137: 0 | AK137: 0 | AL137: 0 | AM137: 0 | AN137: 0 | AO137: 0 | AP137: 0 | AQ137: 0 | AR137: 0 | AS137: 0 | AT137: 0 | AU137: 0 | AV137: 0
B138: Less: Cash Sweep | F138: =F51 -> 0 | H138: =MIN(MAX(H137,0)*$F$138*H78,H90) -> 0 | I138: =MIN(MAX(I137,0)*$F$138*I78,I90) -> 0 | J138: 0 | K138: 0 | L138: 0 | M138: 0 | N138: 0 | O138: 0 | P138: 0 | Q138: 0 | R138: 0 | S138: 0 | T138: 0 | U138: 0 | V138: 0 | W138: 0 | X138: 0 | Y138: 0 | Z138: 0 | AA138: 0 | AB138: 0 | AC138: 0 | AD138: 0 | AE138: 0 | AF138: 0 | AG138: 0 | AH138: 0 | AI138: 0 | AJ138: 0 | AK138: 0 | AL138: 0 | AM138: 0 | AN138: 0 | AO138: 0 | AP138: 0 | AQ138: 0 | AR138: 0 | AS138: 0 | AT138: 0 | AU138: 0 | AV138: 0
B139: Add: Cash Released | H139: =H94 -> 0 | I139: 0 | J139: 0 | K139: 0 | L139: 0 | M139: 0 | N139: 0 | O139: 0 | P139: 0 | Q139: 0 | R139: 0 | S139: 0 | T139: 0 | U139: 0 | V139: 0 | W139: 0 | X139: 0 | Y139: 0 | Z139: 0 | AA139: 0 | AB139: 0 | AC139: 0 | AD139: 0 | AE139: 0 | AF139: 0 | AG139: 0 | AH139: 0 | AI139: 0 | AJ139: 0 | AK139: 0 | AL139: 0 | AM139: 0 | AN139: 0 | AO139: 0 | AP139: 0 | AQ139: 0 | AR139: 0 | AS139: 0 | AT139: 0 | AU139: 0 | AV139: 0
C140: Cash Flow After Sweep | H140: =H137-H138+H139 -> 0 | I140: =I137-I138+I139 -> 9.179050792 | J140: 9.752741466 | K140: 10.32643214 | L140: 10.90012282 | M140: 11.47381349 | N140: 11.47381349 | O140: 11.47381349 | P140: 11.47381349 | Q140: 14.91595754 | R140: 14.91595754 | S140: 14.91595754 | T140: 14.91595754 | U140: 16.06333889 | V140: 16.06333889 | W140: 16.06333889 | X140: 16.06333889 | Y140: 17.21072023 | Z140: 17.21072023 | AA140: 150 | AB140: 150 | AC140: 150 | AD140: 150 | AE140: 150 | AF140: 150 | AG140: 150 | AH140: 0 | AI140: 0 | AJ140: 0 | AK140: 0 | AL140: 0 | AM140: 0 | AN140: 0 | AO140: 0 | AP140: 0 | AQ140: 0 | AR140: 0 | AS140: 0 | AT140: 0 | AU140: 0 | AV140: 0
B141: Less: Balloon Payment | H141: =H82 -> 0 | I141: 0 | J141: 0 | K141: 0 | L141: 0 | M141: 0 | N141: 0 | O141: 0 | P141: 0 | Q141: 0 | R141: 0 | S141: 0 | T141: 0 | U141: 0 | V141: 0 | W141: 0 | X141: 0 | Y141: 0 | Z141: 0 | AA141: 0 | AB141: 0 | AC141: 0 | AD141: 0 | AE141: 0 | AF141: 0 | AG141: 0 | AH141: 0 | AI141: 0 | AJ141: 0 | AK141: 0 | AL141: 0 | AM141: 0 | AN141: 0 | AO141: 0 | AP141: 0 | AQ141: 0 | AR141: 0 | AS141: 0 | AT141: 0 | AU141: 0 | AV141: 0
C142: Cash Flow After Balloon | H142: =H140-H141 -> 0 | I142: =I140-I141 -> 9.179050792 | J142: 9.752741466 | K142: 10.32643214 | L142: 10.90012282 | M142: 11.47381349 | N142: 11.47381349 | O142: 11.47381349 | P142: 11.47381349 | Q142: 14.91595754 | R142: 14.91595754 | S142: 14.91595754 | T142: 14.91595754 | U142: 16.06333889 | V142: 16.06333889 | W142: 16.06333889 | X142: 16.06333889 | Y142: 17.21072023 | Z142: 17.21072023 | AA142: 150 | AB142: 150 | AC142: 150 | AD142: 150 | AE142: 150 | AF142: 150 | AG142: 150 | AH142: 0 | AI142: 0 | AJ142: 0 | AK142: 0 | AL142: 0 | AM142: 0 | AN142: 0 | AO142: 0 | AP142: 0 | AQ142: 0 | AR142: 0 | AS142: 0 | AT142: 0 | AU142: 0 | AV142: 0
B143: Add: Refinancing | H143: =MAX(-H142,0) -> 0 | I143: =MAX(-I142,0) -> 0 | J143: 0 | K143: 0 | L143: 0 | M143: 0 | N143: 0 | O143: 0 | P143: 0 | Q143: 0 | R143: 0 | S143: 0 | T143: 0 | U143: 0 | V143: 0 | W143: 0 | X143: 0 | Y143: 0 | Z143: 0 | AA143: 0 | AB143: 0 | AC143: 0 | AD143: 0 | AE143: 0 | AF143: 0 | AG143: 0 | AH143: 0 | AI143: 0 | AJ143: 0 | AK143: 0 | AL143: 0 | AM143: 0 | AN143: 0 | AO143: 0 | AP143: 0 | AQ143: 0 | AR143: 0 | AS143: 0 | AT143: 0 | AU143: 0 | AV143: 0
B144: Less: Repayment of Refinancing | H144: =MIN(H124,MAX(H142,0)) -> 0 | I144: =MIN(I124,MAX(I142,0)) -> 0 | J144: =MIN(J124,MAX(J142,0)) -> 0 | K144: 0 | L144: 0 | M144: 0 | N144: 0 | O144: 0 | P144: 0 | Q144: 0 | R144: 0 | S144: 0 | T144: 0 | U144: 0 | V144: 0 | W144: 0 | X144: 0 | Y144: 0 | Z144: 0 | AA144: 0 | AB144: 0 | AC144: 0 | AD144: 0 | AE144: 0 | AF144: 0 | AG144: 0 | AH144: 0 | AI144: 0 | AJ144: 0 | AK144: 0 | AL144: 0 | AM144: 0 | AN144: 0 | AO144: 0 | AP144: 0 | AQ144: 0 | AR144: 0 | AS144: 0 | AT144: 0 | AU144: 0 | AV144: 0
C145: Cash Flow to Equity - Dividends | H145: =H142+H143-H144 -> 0 | I145: =I142+I143-I144 -> 9.179050792 | J145: 9.752741466 | K145: 10.32643214 | L145: 10.90012282 | M145: 11.47381349 | N145: 11.47381349 | O145: 11.47381349 | P145: 11.47381349 | Q145: 14.91595754 | R145: 14.91595754 | S145: 14.91595754 | T145: 14.91595754 | U145: 16.06333889 | V145: 16.06333889 | W145: 16.06333889 | X145: 16.06333889 | Y145: 17.21072023 | Z145: 17.21072023 | AA145: 150 | AB145: 150 | AC145: 150 | AD145: 150 | AE145: 150 | AF145: 150 | AG145: 150 | AH145: 0 | AI145: 0 | AJ145: 0 | AK145: 0 | AL145: 0 | AM145: 0 | AN145: 0 | AO145: 0 | AP145: 0 | AQ145: 0 | AR145: 0 | AS145: 0 | AT145: 0 | AU145: 0 | AV145: 0
B147: Equity Cash Flows | H147: =H56+H83+H117 -> -240 | I147: =I145 -> 9.179050792 | J147: =J145 -> 9.752741466 | K147: 10.32643214 | L147: 10.90012282 | M147: 11.47381349 | N147: 11.47381349 | O147: 11.47381349 | P147: 11.47381349 | Q147: 14.91595754 | R147: 14.91595754 | S147: 14.91595754 | T147: 14.91595754 | U147: 16.06333889 | V147: 16.06333889 | W147: 16.06333889 | X147: 16.06333889 | Y147: 17.21072023 | Z147: 17.21072023 | AA147: 150 | AB147: 150 | AC147: 150 | AD147: 150 | AE147: 150 | AF147: 150 | AG147: 150 | AH147: 0 | AI147: 0 | AJ147: 0 | AK147: 0 | AL147: 0 | AM147: 0 | AN147: 0 | AO147: 0 | AP147: 0 | AQ147: 0 | AR147: 0 | AS147: 0 | AT147: 0 | AU147: 0 | AV147: 0
C148: Overall Equity IRR | G148: =IRR(H147:AV147) -> 0.0978089269
C149: NPV using Target IRR | E149: ='Scenario & Sensitivity'!J7 -> 0.08 | G149: =NPV(E149,147:147) -> 67.79078237
C152: Project Partners
D153: Partner 1 | E153: 0.51 | H153: =(-F12+H117)*E153+H155 -> -122.4 | I153: =I147*$E$153 -> 4.681315904 | J153: 4.973898148 | K153: 5.266480392 | L153: 5.559062636 | M153: 5.85164488 | N153: 5.85164488 | O153: 5.85164488 | P153: 5.85164488 | Q153: 7.607138344 | R153: 7.607138344 | S153: 7.607138344 | T153: 7.607138344 | U153: 8.192302832 | V153: 8.192302832 | W153: 8.192302832 | X153: 8.192302832 | Y153: 8.77746732 | Z153: 8.77746732 | AA153: 76.5 | AB153: 76.5 | AC153: 76.5 | AD153: 76.5 | AE153: 76.5 | AF153: 76.5 | AG153: 76.5 | AH153: 0 | AI153: 0 | AJ153: 0 | AK153: 0 | AL153: 0 | AM153: 0 | AN153: 0 | AO153: 0 | AP153: 0 | AQ153: 0 | AR153: 0 | AS153: 0 | AT153: 0 | AU153: 0 | AV153: 0
D154: Partner 2 | E154: =1-E153 -> 0.49 | H154: =(-F12+H117)*E154-H155 -> -117.6 | I154: =I147-I153 -> 4.497734888 | J154: 4.778843319 | K154: 5.059951749 | L154: 5.34106018 | M154: 5.62216861 | N154: 5.62216861 | O154: 5.62216861 | P154: 5.62216861 | Q154: 7.308819193 | R154: 7.308819193 | S154: 7.308819193 | T154: 7.308819193 | U154: 7.871036054 | V154: 7.871036054 | W154: 7.871036054 | X154: 7.871036054 | Y154: 8.433252915 | Z154: 8.433252915 | AA154: 73.5 | AB154: 73.5 | AC154: 73.5 | AD154: 73.5 | AE154: 73.5 | AF154: 73.5 | AG154: 73.5 | AH154: 0 | AI154: 0 | AJ154: 0 | AK154: 0 | AL154: 0 | AM154: 0 | AN154: 0 | AO154: 0 | AP154: 0 | AQ154: 0 | AR154: 0 | AS154: 0 | AT154: 0 | AU154: 0 | AV154: 0
D155: Dev Fee | H155: =F13*E154 -> 0
C157: IRRs
D158: Partner 1 | G158: =IRR(H153:AV153) -> 0.0978089269
D159: Partner 2 | G159: =IRR(H154:AV154) -> 0.0978089269
B161: LLCR
C162: CFADS over Loan Life | H162: =H54*H100 -> 0 | I162: 80 | J162: 85 | K162: 90 | L162: 95 | M162: 100 | N162: 100 | O162: 100 | P162: 100 | Q162: 130 | R162: 130 | S162: 130 | T162: 130 | U162: 140 | V162: 140 | W162: 140 | X162: 140 | Y162: 150 | Z162: 150 | AA162: 0 | AB162: 0 | AC162: 0 | AD162: 0 | AE162: 0 | AF162: 0 | AG162: 0 | AH162: 0 | AI162: 0 | AJ162: 0 | AK162: 0 | AL162: 0 | AM162: 0 | AN162: 0 | AO162: 0 | AP162: 0 | AQ162: 0 | AR162: 0 | AS162: 0 | AT162: 0 | AU162: 0 | AV162: 0
C163: PV of CFADS over Loan Life | G163: =SUMPRODUCT(H162:AV162/H107:AV107) -> 1536.268593
C164: LLCR | G164: =G163/G108 -> 1.12960926
C165: % reduction before loan cannot be repayed | G165: =(G164-1)/G164 -> 0.1147381349
B167: PLCR
C168: CFADS over Loan Life | H168: =H54 -> 0 | I168: 80 | J168: 85 | K168: 90 | L168: 95 | M168: 100 | N168: 100 | O168: 100 | P168: 100 | Q168: 130 | R168: 130 | S168: 130 | T168: 130 | U168: 140 | V168: 140 | W168: 140 | X168: 140 | Y168: 150 | Z168: 150 | AA168: 150 | AB168: 150 | AC168: 150 | AD168: 150 | AE168: 150 | AF168: 150 | AG168: 150 | AH168: 0 | AI168: 0 | AJ168: 0 | AK168: 0 | AL168: 0 | AM168: 0 | AN168: 0 | AO168: 0 | AP168: 0 | AQ168: 0 | AR168: 0 | AS168: 0 | AT168: 0 | AU168: 0 | AV168: 0
C169: PV of CFADS over Loan Life | G169: =SUMPRODUCT(H168:AV168/H107:AV107) -> 2051.375555
C170: PLCR | G170: =G169/G117 -> 1.508364379
C171: % reduction before loan cannot be repayed | G171: =(G170-1)/G170 -> 0.3370302201
B173: LLCR with Maximum Debt to Capital constraint
C174: PV of CFADS of Loan Life | G174: =G163 -> 1536.268593
C175: Project Cost | G175: =F12+F13 -> 1600
C176: Debt to Capital constraint | G176: =G175*F19 -> 1360 | H176: =G176/G175 -> 0.85
C177: Debt from DSCR | G177: =G108 -> 1360
C179: Constraint Applied: | G179: =IF(G164>F20,"Debt to Capital Constraint Drives Debt","DSCR Drives Debt") -> Debt to Capital Constraint Drives Debt
C181: Debt without Balloon | G181: =G176*(1-F22) -> 1360
C182: LLCR with Max Debt to Capital constraint | G182: =G174/G181 -> 1.12960926
C183: =D36 -> Constrained Debt to Capital with DSCR Adjustment | G183: =F36 -> FALSE
C184: DSCR applied | G184: =MAX(G182,F20) -> 1.12960926
C186: Debt to Cap Constraint | G186: =G182>F20 -> TRUE
C187: Total Debt | G187: =G176 -> 1360
C188: Balloon with Max Debt to Cap | G188: =G187*F22 -> 0
A190: IRR Calculation
B191: Equity Cash Flow without Dev Fees | H191: =H147 -> -240 | I191: =I147 -> 9.179050792 | J191: =J147 -> 9.752741466 | K191: =K147 -> 10.32643214 | L191: =L147 -> 10.90012282 | M191: =M147 -> 11.47381349 | N191: =N147 -> 11.47381349 | O191: =O147 -> 11.47381349 | P191: =P147 -> 11.47381349 | Q191: =Q147 -> 14.91595754 | R191: =R147 -> 14.91595754 | S191: =S147 -> 14.91595754 | T191: =T147 -> 14.91595754 | U191: =U147 -> 16.06333889 | V191: =V147 -> 16.06333889 | W191: =W147 -> 16.06333889 | X191: =X147 -> 16.06333889 | Y191: =Y147 -> 17.21072023 | Z191: =Z147 -> 17.21072023 | AA191: =AA147 -> 150 | AB191: =AB147 -> 150 | AC191: =AC147 -> 150 | AD191: =AD147 -> 150 | AE191: =AE147 -> 150 | AF191: =AF147 -> 150 | AG191: =AG147 -> 150 | AH191: =AH147 -> 0 | AI191: =AI147 -> 0 | AJ191: =AJ147 -> 0 | AK191: =AK147 -> 0 | AL191: =AL147 -> 0 | AM191: =AM147 -> 0 | AN191: =AN147 -> 0 | AO191: =AO147 -> 0 | AP191: =AP147 -> 0 | AQ191: =AQ147 -> 0 | AR191: =AR147 -> 0 | AS191: =AS147 -> 0 | AT191: =AT147 -> 0 | AU191: =AU147 -> 0 | AV191: =AV147 -> 0
B192: Equity IRR | G192: =IRR(H191:AV191) -> 0.0978089269
B194: Debt Cash Flow | H194: =H133+H134+H135+H136+H138-H139+H141 -> 0 | I194: =I133+I134+I135+I136+I138-I139+I141 -> 70.82094921 | J194: =J133+J134+J135+J136+J138-J139+J141 -> 75.24725853 | K194: =K133+K134+K135+K136+K138-K139+K141 -> 79.67356786 | L194: =L133+L134+L135+L136+L138-L139+L141 -> 84.09987718 | M194: =M133+M134+M135+M136+M138-M139+M141 -> 88.52618651 | N194: =N133+N134+N135+N136+N138-N139+N141 -> 88.52618651 | O194: =O133+O134+O135+O136+O138-O139+O141 -> 88.52618651 | P194: =P133+P134+P135+P136+P138-P139+P141 -> 88.52618651 | Q194: =Q133+Q134+Q135+Q136+Q138-Q139+Q141 -> 115.0840425 | R194: =R133+R134+R135+R136+R138-R139+R141 -> 115.0840425 | S194: =S133+S134+S135+S136+S138-S139+S141 -> 115.0840425 | T194: =T133+T134+T135+T136+T138-T139+T141 -> 115.0840425 | U194: =U133+U134+U135+U136+U138-U139+U141 -> 123.9366611 | V194: =V133+V134+V135+V136+V138-V139+V141 -> 123.9366611 | W194: =W133+W134+W135+W136+W138-W139+W141 -> 123.9366611 | X194: =X133+X134+X135+X136+X138-X139+X141 -> 123.9366611 | Y194: =Y133+Y134+Y135+Y136+Y138-Y139+Y141 -> 132.7892798 | Z194: =Z133+Z134+Z135+Z136+Z138-Z139+Z141 -> 132.7892798 | AA194: =AA133+AA134+AA135+AA136+AA138-AA139+AA141 -> 0 | AB194: =AB133+AB134+AB135+AB136+AB138-AB139+AB141 -> 0 | AC194: =AC133+AC134+AC135+AC136+AC138-AC139+AC141 -> 0 | AD194: =AD133+AD134+AD135+AD136+AD138-AD139+AD141 -> 0 | AE194: =AE133+AE134+AE135+AE136+AE138-AE139+AE141 -> 0 | AF194: =AF133+AF134+AF135+AF136+AF138-AF139+AF141 -> 0 | AG194: =AG133+AG134+AG135+AG136+AG138-AG139+AG141 -> 0 | AH194: =AH133+AH134+AH135+AH136+AH138-AH139+AH141 -> 0 | AI194: =AI133+AI134+AI135+AI136+AI138-AI139+AI141 -> 0 | AJ194: =AJ133+AJ134+AJ135+AJ136+AJ138-AJ139+AJ141 -> 0 | AK194: =AK133+AK134+AK135+AK136+AK138-AK139+AK141 -> 0 | AL194: =AL133+AL134+AL135+AL136+AL138-AL139+AL141 -> 0 | AM194: =AM133+AM134+AM135+AM136+AM138-AM139+AM141 -> 0 | AN194: =AN133+AN134+AN135+AN136+AN138-AN139+AN141 -> 0 | AO194: =AO133+AO134+AO135+AO136+AO138-AO139+AO141 -> 0 | AP194: =AP133+AP134+AP135+AP136+AP138-AP139+AP141 -> 0 | AQ194: =AQ133+AQ134+AQ135+AQ136+AQ138-AQ139+AQ141 -> 0 | AR194: =AR133+AR134+AR135+AR136+AR138-AR139+AR141 -> 0 | AS194: =AS133+AS134+AS135+AS136+AS138-AS139+AS141 -> 0 | AT194: =AT133+AT134+AT135+AT136+AT138-AT139+AT141 -> 0 | AU194: =AU133+AU134+AU135+AU136+AU138-AU139+AU141 -> 0 | AV194: =AV133+AV134+AV135+AV136+AV138-AV139+AV141 -> 0
B195: Debt Issue | H195: =H83+H117 -> 1360
B196: Net Cash Flow | H196: =H194-H195 -> -1360 | I196: =I194-I195 -> 70.82094921 | J196: 75.24725853 | K196: 79.67356786 | L196: 84.09987718 | M196: 88.52618651 | N196: 88.52618651 | O196: 88.52618651 | P196: 88.52618651 | Q196: 115.0840425 | R196: 115.0840425 | S196: 115.0840425 | T196: 115.0840425 | U196: 123.9366611 | V196: 123.9366611 | W196: 123.9366611 | X196: 123.9366611 | Y196: 132.7892798 | Z196: 132.7892798 | AA196: 0 | AB196: 0 | AC196: 0 | AD196: 0 | AE196: 0 | AF196: 0 | AG196: 0 | AH196: 0 | AI196: 0 | AJ196: 0 | AK196: 0 | AL196: 0 | AM196: 0 | AN196: 0 | AO196: 0 | AP196: 0 | AQ196: 0 | AR196: 0 | AS196: 0 | AT196: 0 | AU196: 0 | AV196: 0
B198: Debt IRR | G198: =IRR(196:196) -> 0.033
B200: Average Debt Life
C201: Debt Period Counter | H201: =G201+H100 -> 0 | I201: =H201+I100 -> 1 | J201: =I201+J100 -> 2 | K201: =J201+K100 -> 3 | L201: =K201+L100 -> 4 | M201: =L201+M100 -> 5 | N201: =M201+N100 -> 6 | O201: =N201+O100 -> 7 | P201: =O201+P100 -> 8 | Q201: =P201+Q100 -> 9 | R201: =Q201+R100 -> 10 | S201: =R201+S100 -> 11 | T201: =S201+T100 -> 12 | U201: =T201+U100 -> 13 | V201: =U201+V100 -> 14 | W201: =V201+W100 -> 15 | X201: =W201+X100 -> 16 | Y201: =X201+Y100 -> 17 | Z201: =Y201+Z100 -> 18 | AA201: =Z201+AA100 -> 18 | AB201: =AA201+AB100 -> 18 | AC201: =AB201+AC100 -> 18 | AD201: =AC201+AD100 -> 18 | AE201: =AD201+AE100 -> 18 | AF201: =AE201+AF100 -> 18 | AG201: =AF201+AG100 -> 18 | AH201: =AG201+AH100 -> 18 | AI201: =AH201+AI100 -> 18 | AJ201: =AI201+AJ100 -> 18 | AK201: =AJ201+AK100 -> 18 | AL201: =AK201+AL100 -> 18 | AM201: =AL201+AM100 -> 18 | AN201: =AM201+AN100 -> 18 | AO201: =AN201+AO100 -> 18 | AP201: =AO201+AP100 -> 18 | AQ201: =AP201+AQ100 -> 18 | AR201: =AQ201+AR100 -> 18 | AS201: =AR201+AS100 -> 18 | AT201: =AS201+AT100 -> 18 | AU201: =AT201+AU100 -> 18 | AV201: =AU201+AV100 -> 18
C203: Method 1 - Weighted Avg of Repayments | G203: =SUMPRODUCT(H201:AV201,H116:AV116) -> 15927.50826
D204: Average Life | G204: =G203/G117 -> 11.71140313
C206: Method 2 - Opening Balance Method | G206: =SUM(H115:AV115) -> 15927.50826
D207: Average Life | G207: =G206/G117 -> 11.71140313
A211: GRAPHS
H212: =IF(H4,H2,NA()) ->  | I212: 1 | J212: 2 | K212: 3 | L212: 4 | M212: 5 | N212: 6 | O212: 7 | P212: 8 | Q212: 9 | R212: 10 | S212: 11 | T212: 12 | U212: 13 | V212: 14 | W212: 15 | X212: 16 | Y212: 17 | Z212: 18 | AA212: 19 | AB212: 20 | AC212: 21 | AD212: 22 | AE212: 23 | AF212: 24 | AG212: 25
D213: CFADS | H213: =H54 -> 0 | I213: 80 | J213: 85 | K213: 90 | L213: 95 | M213: 100 | N213: 100 | O213: 100 | P213: 100 | Q213: 130 | R213: 130 | S213: 130 | T213: 130 | U213: 140 | V213: 140 | W213: 140 | X213: 140 | Y213: 150 | Z213: 150 | AA213: 150 | AB213: 150 | AC213: 150 | AD213: 150 | AE213: 150 | AF213: 150 | AG213: 150 | AH213: 0 | AI213: 0 | AJ213: 0 | AK213: 0 | AL213: 0 | AM213: 0 | AN213: 0 | AO213: 0 | AP213: 0 | AQ213: 0 | AR213: 0 | AS213: 0 | AT213: 0 | AU213: 0 | AV213: 0
D214: Sculpted Debt Service | H214: =H104 -> FALSE | I214: =I116+I119 -> 70.82094921 | J214: 75.24725853 | K214: 79.67356786 | L214: 84.09987718 | M214: 88.52618651 | N214: 88.52618651 | O214: 88.52618651 | P214: 88.52618651 | Q214: 115.0840425 | R214: 115.0840425 | S214: 115.0840425 | T214: 115.0840425 | U214: 123.9366611 | V214: 123.9366611 | W214: 123.9366611 | X214: 123.9366611 | Y214: 132.7892798 | Z214: 132.7892798 | AA214: 0 | AB214: 0 | AC214: 0 | AD214: 0 | AE214: 0 | AF214: 0 | AG214: 0 | AH214: 0 | AI214: 0 | AJ214: 0 | AK214: 0 | AL214: 0 | AM214: 0 | AN214: 0 | AO214: 0 | AP214: 0 | AQ214: 0 | AR214: 0 | AS214: 0 | AT214: 0 | AU214: 0 | AV214: 0
D215: Cash to Sweep | H215: =H138 -> 0 | I215: =I138 -> 0 | J215: 0 | K215: 0 | L215: 0 | M215: 0 | N215: 0 | O215: 0 | P215: 0 | Q215: 0 | R215: 0 | S215: 0 | T215: 0 | U215: 0 | V215: 0 | W215: 0 | X215: 0 | Y215: 0 | Z215: 0 | AA215: 0 | AB215: 0 | AC215: 0 | AD215: 0 | AE215: 0 | AF215: 0 | AG215: 0 | AH215: 0 | AI215: 0 | AJ215: 0 | AK215: 0 | AL215: 0 | AM215: 0 | AN215: 0 | AO215: 0 | AP215: 0 | AQ215: 0 | AR215: 0 | AS215: 0 | AT215: 0 | AU215: 0 | AV215: 0
D216: Interest on Balloon | H216: =H85 -> 0 | I216: =I85 -> 0 | J216: 0 | K216: 0 | L216: 0 | M216: 0 | N216: 0 | O216: 0 | P216: 0 | Q216: 0 | R216: 0 | S216: 0 | T216: 0 | U216: 0 | V216: 0 | W216: 0 | X216: 0 | Y216: 0 | Z216: 0 | AA216: 0 | AB216: 0 | AC216: 0 | AD216: 0 | AE216: 0 | AF216: 0 | AG216: 0 | AH216: 0 | AI216: 0 | AJ216: 0 | AK216: 0 | AL216: 0 | AM216: 0 | AN216: 0 | AO216: 0 | AP216: 0 | AQ216: 0 | AR216: 0 | AS216: 0 | AT216: 0 | AU216: 0 | AV216: 0
D218: Sculpted DSCR | E218: =G184 -> 1.12960926 | F218: Interest Rate | G218: =F44 -> 0.033 | H218: Debt to Capital | I218: =G117/(F12+F13) -> 0.85 | K218: Equity IRR | L218: =G192 -> 0.0978089269 | M218: Dev Fees | N218: =F13 -> 0 | O218: Debt from DSCR
D220: NPV of Sculpted Debt Service | E220: =G117 -> 1360 | G220: =D220&TEXT(E220," #,###") -> NPV of Sculpted Debt Service 1,360
D222: Equity IRR | E222: =G148 -> 0.0978089269 | G222: =G179 -> Debt to Capital Constraint Drives Debt

Sheet Scenario & Sensitivity
D2: Scenario Number | E2: 28 | I2: Balloon pct | J2: ='Debt Structuring'!F22 -> 0 | L2: Scenarios | M2: =COUNT(L13:L49) -> 28
I3: Sweep % | J3: ='Debt Structuring'!F51 -> 0 | L3: Start Row | M3: =ROW(M13) -> 13
D4: EBITDA Trend | E4: 3 | I4: Years before Sweep | J4: ='Debt Structuring'!F50 -> 5 | L4: Start Col | M4: =COLUMN(M13) -> 13
D5: Project IRR | E5: ='Debt Structuring'!$F$57 -> 0.05422333418 | L5: Result Row | M5: =ROW(M48) -> 48
I6: Conputed ROE | J6: =M48 -> 0.0978089269
D7: Inflation | E7: 0 | I7: Target Equity IRR | J7: =L7/100 -> 0.08 | L7: 8
D8: Credit Spread | E8: =I42 -> Fixed Margin | I8: Difference | J8: ='Debt Structuring'!G149 -> 67.79078237
I9: LCOE | J9: =LCOE -> 98.01709117
E11: 1 | F11: 2 | G11: 3 | H11: 4 | J11: 5 | K11: 6
E12: DSCR | F12: Debt to Capital | G12: Tenor | H12: Credit Spread Code | I12: Credit Spread Description | J12: LIBOR | K12: Dev Fee | M12: Equity IRR | N12: Avg Debt Life | O12: NPV Debt Amt | P12: Constraint | Q12: Weighted Average Margin | R12: LCOE | S12: CCR | U12: LCOE
D13: Base Case | E13: 1.25 | F13: 0.85 | G13: 22 | H13: 1 | I13: =INDEX($D$68:$D$70,H13) -> Increasing Marrgin | J13: 0.025 | K13: 50 | L13: 1 | M13: 0.1 | N13: 13.19450611 | O13: 873.2530402 | P13: Debt from DSCR | Q13: 0.02340909091 | R13: 80.9526788 | U13: 74.80831823 | V13: =U13/R13-1 -> -0.07590064551
D14: Aggressive Case | E14: 1.2 | F14: 0.88 | G14: 24 | H14: 2 | I14: Fixed Margin | J14: 0.015 | K14: 100 | L14: 2 | M14: 0.1 | N14: 14.0176539 | O14: 932.1500848 | P14: Debt from DSCR | Q14: 0.0175 | R14: 67.84065981 | U14: 61.30852969 | V14: =U14/R14-1 -> -0.09628635902
D15: Conservative Case | E15: 1.3 | F15: 0.7 | G15: 18 | H15: 3 | I15: Conservative Margin | J15: 0.04 | K15: 0 | L15: 3 | M15: 0.1 | N15: 11.17701712 | O15: 728 | P15: Debt to Capital constraint | Q15: 0.03 | R15: 99.47731083 | U15: 102.0027824 | V15: 0.02538741311
C16: 1 | D16: =TRANSPOSE(E12:K12)&" "&D14 -> DSCR Aggressive Case | E16: =IF(E$11=$C16,E$14,E$13) -> 1.2 | F16: =IF(F$11=$C16,F$14,F$13) -> 0.85 | G16: 22 | H16: 1 | I16: Increasing Marrgin | J16: 0.025 | K16: 50 | L16: 4 | M16: 0.1 | N16: 13.19450611 | O16: 898.6506604 | P16: Debt from DSCR | Q16: 0.02340909091 | R16: 79.97481592 | U16: 73.3756523 | V16: -0.08251552111
C17: 2 | D17: Debt to Capital Aggressive Case | E17: =IF(E$11=$C17,E$14,E$13) -> 1.25 | F17: 0.88 | G17: 22 | H17: 1 | I17: Increasing Marrgin | J17: 0.025 | K17: 50 | L17: 5 | M17: 0.1 | N17: 13.19450611 | O17: 873.2530402 | P17: Debt from DSCR | Q17: 0.02340909091 | R17: 80.9526788 | U17: 74.80831823 | V17: -0.07590064551
C18: 3 | D18: Tenor Aggressive Case | E18: 1.25 | F18: 0.85 | G18: 24 | H18: 1 | I18: Increasing Marrgin | J18: 0.025 | K18: 50 | L18: 6 | M18: 0.1 | N18: 14.50817061 | O18: 891.098622 | P18: Debt from DSCR | Q18: 0.02375 | R18: 78.81529057 | U18: 72.08893668 | V18: -0.08534326073
C19: 4 | D19: Credit Spread Code Aggressive Case | E19: 1.25 | F19: 0.85 | G19: 22 | H19: 2 | I19: Fixed Margin | J19: 0.025 | K19: 50 | L19: 7 | M19: 0.1 | N19: 13.15227182 | O19: 879.5271791 | P19: Debt from DSCR | Q19: 0.0175 | R19: 77.90669613 | U19: 71.84184304 | V19: -0.07784764847
C20: 5 | D20: Credit Spread Description Aggressive Case | E20: 1.25 | F20: 0.85 | G20: 22 | H20: 1 | I20: Increasing Marrgin | J20: 0.015 | K20: 50 | L20: 8 | M20: 0.1 | N20: 12.82911192 | O20: 885.9934518 | P20: Debt from DSCR | Q20: 0.02340909091 | R20: 74.76743593 | U20: 68.79757705 | V20: -0.07984570829
C21: 6 | D21: LIBOR Aggressive Case | E21: 1.25 | F21: 0.85 | G21: 22 | H21: 1 | I21: Increasing Marrgin | J21: 0.025 | K21: 100 | L21: 9 | M21: 0.1 | N21: 13.19450611 | O21: 873.2530402 | P21: Debt from DSCR | Q21: 0.02340909091 | R21: 80.9526788 | U21: 74.80831823 | V21: -0.07590064551
C22: 1 | D22: =TRANSPOSE(E12:K12)&" "&D15 -> DSCR Conservative Case | E22: =IF(E$11=$C22,E$15,E$13) -> 1.3 | F22: =IF(F$11=$C22,F$15,F$13) -> 0.85 | G22: 22 | H22: 1 | I22: Increasing Marrgin | J22: 0.025 | K22: 50 | L22: 10 | M22: 0.1 | N22: 13.19450611 | O22: 849.2515356 | P22: Debt from DSCR | Q22: 0.02340909091 | R22: 81.87678824 | U22: 76.18134654 | V22: -0.06956112744
C23: 2 | D23: Debt to Capital Conservative Case | E23: =IF(E$11=$C23,E$15,E$13) -> 1.25 | F23: 0.7 | G23: 22 | H23: 1 | I23: Increasing Marrgin | J23: 0.025 | K23: 50 | L23: 11 | M23: 0.1 | N23: 13.19450611 | O23: 798 | P23: Debt to Capital constraint | Q23: 0.02340909091 | R23: 83.85008236 | U23: 82.98084425 | V23: -0.01036657439
C24: 3 | D24: Tenor Conservative Case | E24: 1.25 | F24: 0.85 | G24: 18 | H24: 1 | I24: Increasing Marrgin | J24: 0.025 | K24: 50 | L24: 12 | M24: 0.1 | N24: 10.63871588 | O24: 823.6027258 | P24: Debt from DSCR | Q24: 0.0225 | R24: 86.01152074 | U24: 81.70763928 | V24: -0.05003843007
C25: 4 | D25: Credit Spread Code Conservative Case | E25: 1.25 | F25: 0.85 | G25: 22 | H25: 3 | I25: Conservative Margin | J25: 0.025 | K25: 50 | L25: 13 | M25: 0.1 | N25: 13.46154587 | O25: 863.5655322 | P25: Debt from DSCR | Q25: 0.03090909091 | R25: 85.65579139 | U25: 71.84184304 | V25: -0.1612727887
C26: 5 | D26: Credit Spread Description Conservative Case | E26: 1.25 | F26: 0.85 | G26: 22 | H26: 1 | I26: Increasing Marrgin | J26: 0.04 | K26: 50 | L26: 14 | M26: 0.1 | N26: 13.72214421 | O26: 853.7952215 | P26: Debt from DSCR | Q26: 0.02340909091 | R26: 90.39910322 | U26: 84.08835753 | V26: -0.06980982634
C27: 6 | D27: LIBOR Conservative Case | E27: 1.25 | F27: 0.85 | G27: 22 | H27: 1 | I27: Increasing Marrgin | J27: 0.025 | K27: 0 | L27: 15 | M27: 0.1 | N27: 13.19450611 | O27: 873.2530402 | P27: Debt from DSCR | Q27: 0.02340909091 | R27: 80.9526788 | U27: 77.54462333 | V27: -0.04209935389
C28: 1 | D28: =D16 -> DSCR Aggressive Case | E28: =IF(E$11<=$C28,E$14,E$13) -> 1.2 | F28: =IF(F$11<=$C28,F$14,F$13) -> 0.85 | G28: 22 | H28: 1 | I28: =IF(I$11<=$C28,E$8,I$13) -> Fixed Margin | J28: 0.025 | K28: 50 | L28: 16 | M28: 0.1 | N28: 13.19450611 | O28: 898.6506604 | P28: Debt from DSCR | Q28: 0.02340909091 | R28: 79.97481592
C29: 2 | D29: =D17 -> Debt to Capital Aggressive Case | E29: =IF(E$11<=$C29,E$14,E$13) -> 1.2 | F29: 0.88 | G29: 22 | H29: 1 | I29: Fixed Margin | J29: 0.025 | K29: 50 | L29: 17 | M29: 0.1 | N29: 13.19450611 | O29: 898.6506604 | P29: Debt from DSCR | Q29: 0.02340909091 | R29: 79.97481592
C30: 3 | D30: Tenor Aggressive Case | E30: 1.2 | F30: 0.88 | G30: 24 | H30: 1 | I30: Fixed Margin | J30: 0.025 | K30: 50 | L30: 18 | M30: 0.1 | N30: 14.50817061 | O30: 916.3116252 | P30: Debt from DSCR | Q30: 0.02375 | R30: 77.80350076
C31: 4 | D31: Credit Spread Code Aggressive Case | E31: 1.2 | F31: 0.88 | G31: 24 | H31: 2 | I31: Fixed Margin | J31: 0.025 | K31: 50 | L31: 19 | M31: 0.1 | N31: 14.46191671 | O31: 921.7053104 | P31: Debt from DSCR | Q31: 0.0175 | R31: 74.41071956
C32: 5 | D32: Credit Spread Description Aggressive Case | E32: 1.2 | F32: 0.88 | G32: 24 | H32: 2 | I32: Fixed Margin | J32: 0.015 | K32: 50 | L32: 20 | M32: 0.1 | N32: 14.0176539 | O32: 932.1500848 | P32: Debt from DSCR | Q32: 0.0175 | R32: 67.84065981
C33: 6 | D33: LIBOR Aggressive Case | E33: 1.2 | F33: 0.88 | G33: 24 | H33: 2 | I33: Fixed Margin | J33: 0.015 | K33: 100 | L33: 21 | M33: 0.1 | N33: 14.0176539 | O33: 932.1500848 | P33: Debt from DSCR | Q33: 0.0175 | R33: 67.84065981
C34: 1 | D34: DSCR Conservative Case | E34: =IF(E$11<=$C34,E$15,E$13) -> 1.3 | F34: =IF(F$11<=$C34,F$15,F$13) -> 0.85 | G34: 22 | H34: 1 | I34: Conservative Margin | J34: 0.025 | K34: 50 | L34: 22 | M34: 0.1 | N34: 13.19450611 | O34: 849.2515356 | P34: Debt from DSCR | Q34: 0.02340909091 | R34: 81.87678824
C35: 2 | D35: Debt to Capital Conservative Case | E35: =IF(E$11<=$C35,E$15,E$13) -> 1.3 | F35: 0.7 | G35: 22 | H35: 1 | I35: Conservative Margin | J35: 0.025 | K35: 50 | L35: 23 | M35: 0.1 | N35: 13.19450611 | O35: 798 | P35: Debt to Capital constraint | Q35: 0.02340909091 | R35: 83.85008236
C36: 3 | D36: Tenor Conservative Case | E36: 1.3 | F36: 0.7 | G36: 18 | H36: 1 | I36: Conservative Margin | J36: 0.025 | K36: 50 | L36: 24 | M36: 0.1 | N36: 10.63871588 | O36: 798 | P36: Debt to Capital constraint | Q36: 0.0225 | R36: 86.89944602
C37: 4 | D37: Credit Spread Code Conservative Case | E37: 1.3 | F37: 0.7 | G37: 18 | H37: 3 | I37: Conservative Margin | J37: 0.025 | K37: 50 | L37: 25 | M37: 0.1 | N37: 10.82161338 | O37: 788.6713927 | P37: Debt from DSCR | Q37: 0.03 | R37: 90.78933086
C38: 5 | D38: Credit Spread Description Conservative Case | E38: 1.3 | F38: 0.7 | G38: 18 | H38: 3 | I38: Conservative Margin | J38: 0.04 | K38: 50 | L38: 26 | M38: 0.1 | N38: 11.17701712 | O38: 766.8512028 | P38: Debt from DSCR | Q38: 0.03 | R38: 98.67160283
C39: 6 | D39: LIBOR Conservative Case | E39: 1.3 | F39: 0.7 | G39: 18 | H39: 3 | I39: Conservative Margin | J39: 0.04 | K39: 0 | L39: 27 | M39: 0.1 | N39: 11.17701712 | O39: 728 | P39: Debt to Capital constraint | Q39: 0.03 | R39: 99.47731083
D40: Analysis and Spinner Case | E40: =E44/100 -> 1.1 | F40: =F44/100 -> 0.85 | G40: =G44 -> 18 | H40: =H44 -> 2 | I40: =IF(I$11<=$C40,E$8,I$13) -> Fixed Margin | J40: =J44/100000 -> 0.0155 | K40: =K44 -> 0 | L40: 28 | M40: 0.1 | N40: 13.19450611 | O40: 873.2530402 | P40: Debt from DSCR | Q40: 0.02340909091 | R40: 80.9526788 | U40: 74.11959458 | V40: -0.08440837694
D42: =INDEX(D13:D41,$E$2) -> Analysis and Spinner Case | E42: =INDEX(E13:E41,$E$2) -> 1.1 | F42: =INDEX(F13:F41,$E$2) -> 0.85 | G42: =INDEX(G13:G41,$E$2) -> 18 | H42: =INDEX(H13:H41,$E$2) -> 2 | I42: =INDEX(I13:I15,H42) -> Fixed Margin | J42: =INDEX(J13:J41,$E$2) -> 0.0155 | K42: =INDEX(K13:K41,$E$2) -> 0
D44: Spinner | E44: 110 | F44: 85 | G44: 18 | H44: 2 | J44: 1550 | K44: 0
M47: Result Row
E48: Agg vs Base | F48: Cons vs Base | H48: Base Case | I48: =M13 -> 0.1 | M48: ='Debt Structuring'!G148 -> 0.0978089269 | N48: ='Debt Structuring'!G204 -> 11.71140313 | O48: ='Debt Structuring'!G117 -> 1360 | P48: ='Debt Structuring'!G179 -> Debt to Capital Constraint Drives Debt | Q48: ='Debt Structuring'!F46 -> 0.0175 | R48: =J9 -> 98.01709117 | S48: =E104 -> 0.05
D49: DSCR | E49: =M16-$M$13 -> -4.440892099e-16 | F49: =M22-$M$13 -> -6.661338148e-16 | H49: =D49 -> DSCR | I49: =M28-M13 -> -4.440892099e-16
D50: Debt to Capital | E50: -4.440892099e-16 | F50: -4.440892099e-16 | H50: =D50 -> Debt to Capital | I50: =M29-M28 -> 0
D51: Tenor | E51: -2.220446049e-16 | F51: -4.440892099e-16 | H51: =D51 -> Tenor | I51: =M30-M29 -> 0
D52: Credit Spread | E52: -4.440892099e-16 | F52: -2.220446049e-16 | H52: Credit Spread | I52: 4.440892099e-16
D53: SIBOR | E53: -4.440892099e-16 | F53: -6.661338148e-16 | H53: SIBOR | I53: -4.440892099e-16
D54: Dev Fee | E54: -2.220446049e-16 | F54: -4.440892099e-16 | H54: Dev Fee | I54: 0
H55: Aggressive case
E56: =E48 -> Agg vs Base | F56: =F48 -> Cons vs Base
D57: =D49 -> DSCR | E57: =R16-$R$13 -> -0.9778628878 | F57: =R22-$R$13 -> 0.9241094406
D58: =D50 -> Debt to Capital | E58: =R17-$R$13 -> 0 | F58: =R23-$R$13 -> 2.897403561
D59: Tenor | E59: -2.137388235 | F59: 5.058841941
D60: Credit Spread | E60: -3.045982672 | F60: 4.703112582
D61: SIBOR | E61: -6.185242878 | F61: 9.44642442
D62: Dev Fee | E62: 0 | F62: 0
A64: Credit Spread Sensitivity
D66: Credit Spread Scenario Number | E66: =H42 -> 2
D68: Increasing Marrgin | F68: 0.0175 | G68: =F68+0.25% -> 0.02 | H68: =G68+0.25% -> 0.0225 | I68: =H68+0.25% -> 0.025 | J68: =I68+0.25% -> 0.0275
D69: Fixed Margin | F69: 0.0175 | G69: 0.0175 | H69: 0.0175 | I69: 0.0175 | J69: 0.0175
D70: Conservative Margin | F70: 0.025 | G70: =F70+0.25% -> 0.0275 | H70: =G70+0.25% -> 0.03 | I70: =H70+0.25% -> 0.0325 | J70: =I70+0.25% -> 0.035
D72: =INDEX(D68:D70,$E$66) -> Fixed Margin | F72: =INDEX(F68:F70,$E$66) -> 0.0175 | G72: 0.0175 | H72: 0.0175 | I72: =INDEX(I68:I70,$E$66) -> 0.0175 | J72: =INDEX(J68:J70,$E$66) -> 0.0175
A75: EBITDA Sensitivity
D76: EBITDA Scenario Number | E76: 1 | G76: Inflation Rate | I76: =E7 -> 0
D78: Year | F78: 0 | G78: 1 | H78: =G78+1 -> 2 | I78: =H78+1 -> 3 | J78: 4 | K78: 5 | L78: 6 | M78: 7 | N78: 8 | O78: =N78+1 -> 9 | P78: =O78+1 -> 10 | Q78: 11 | R78: 12 | S78: =Q78+1 -> 12 | T78: =S78+1 -> 13 | U78: 14 | V78: 15 | W78: 16 | X78: 17 | Y78: 18 | Z78: 19 | AA78: 20 | AB78: 21 | AC78: 22 | AD78: 23 | AE78: 24 | AF78: 25 | AG78: 26 | AH78: 27 | AI78: 28 | AJ78: 29 | AK78: 30 | AL78: 31 | AM78: 32 | AN78: 33
D79: Increasing | G79: 80 | H79: =G79 -> 80 | I79: =H79 -> 80 | J79: 85 | K79: 90 | L79: 95 | M79: 100 | N79: =M79 -> 100 | O79: =N79 -> 100 | P79: 100 | Q79: 130 | R79: =Q79 -> 130 | S79: =Q79 -> 130 | T79: =S79 -> 130 | U79: 140 | V79: =U79 -> 140 | W79: =V79 -> 140 | X79: 140 | Y79: 140 | Z79: 150 | AA79: =Z79 -> 150 | AB79: =AA79 -> 150 | AC79: 150 | AD79: 150 | AE79: 150 | AF79: 150 | AG79: 150 | AH79: 150 | AI79: 150 | AJ79: 150 | AK79: 150 | AL79: 150 | AM79: 150 | AN79: =AM79 -> 150
D80: Flat (LCOE) | G80: 98.01709117 | H80: =LCOE -> 98.01709117 | I80: 98.01709117 | J80: 98.01709117 | K80: 98.01709117 | L80: 98.01709117 | M80: 98.01709117 | N80: 98.01709117 | O80: 98.01709117 | P80: 98.01709117 | Q80: 98.01709117 | R80: 98.01709117 | S80: 98.01709117 | T80: 98.01709117 | U80: 98.01709117 | V80: 98.01709117 | W80: 98.01709117 | X80: 98.01709117 | Y80: 98.01709117 | Z80: 98.01709117 | AA80: 98.01709117 | AB80: 98.01709117 | AC80: 98.01709117 | AD80: 98.01709117 | AE80: 98.01709117 | AF80: 98.01709117 | AG80: 98.01709117 | AH80: 98.01709117 | AI80: 98.01709117 | AJ80: 98.01709117 | AK80: 98.01709117 | AL80: 98.01709117 | AM80: 98.01709117 | AN80: 98.01709117
D81: Increasing (CCR) | G81: 98.01709117 | H81: 98.01709117 | I81: =H81*(1+$I$76) -> 98.01709117 | J81: 98.01709117 | K81: 98.01709117 | L81: 98.01709117 | M81: 98.01709117 | N81: 98.01709117 | O81: 98.01709117 | P81: 98.01709117 | Q81: 98.01709117 | R81: 98.01709117 | S81: =Q81*(1+$I$76) -> 98.01709117 | T81: =S81*(1+$I$76) -> 98.01709117 | U81: 98.01709117 | V81: 98.01709117 | W81: 98.01709117 | X81: 98.01709117 | Y81: 98.01709117 | Z81: 98.01709117 | AA81: 98.01709117 | AB81: 98.01709117 | AC81: 98.01709117 | AD81: 98.01709117 | AE81: 98.01709117 | AF81: 98.01709117 | AG81: 98.01709117 | AH81: 98.01709117 | AI81: 98.01709117 | AJ81: 98.01709117 | AK81: 98.01709117 | AL81: 98.01709117 | AM81: 98.01709117 | AN81: 98.01709117
D82: Decreasing | G82: 95 | H82: =G82*0.98 -> 93.1 | I82: =H82*0.98 -> 91.238 | J82: 89.41324 | K82: 87.6249752 | L82: 85.8724757 | M82: 84.15502618 | N82: 82.47192566 | O82: 80.82248715 | P82: 79.2060374 | Q82: 77.62191665 | R82: 76.06947832 | S82: =Q82*0.98 -> 76.06947832 | T82: =S82*0.98 -> 74.54808875 | U82: 73.05712698 | V82: 71.59598444 | W82: 70.16406475 | X82: 68.76078346 | Y82: 67.38556779 | Z82: 66.03785643 | AA82: 64.7170993 | AB82: 63.42275732 | AC82: 62.15430217 | AD82: 60.91121613 | AE82: 59.6929918 | AF82: 58.49913197 | AG82: 57.32914933 | AH82: 56.18256634 | AI82: 55.05891502 | AJ82: 53.95773672 | AK82: 52.87858198 | AL82: 51.82101034 | AM82: 50.78459013 | AN82: 49.76889833
D84: =INDEX(D79:D82,$E$76) -> Increasing | G84: =INDEX(G79:G82,$E$76) -> 80 | H84: =INDEX(H79:H82,$E$76) -> 80 | I84: 80 | J84: 85 | K84: 90 | L84: 95 | M84: 100 | N84: 100 | O84: 100 | P84: 100 | Q84: 130 | R84: 130 | S84: =INDEX(S79:S82,$E$76) -> 130 | T84: 130 | U84: 140 | V84: 140 | W84: 140 | X84: 140 | Y84: 140 | Z84: 150 | AA84: 150 | AB84: 150 | AC84: 150 | AD84: 150 | AE84: 150 | AF84: 150 | AG84: 150 | AH84: 150 | AI84: 150 | AJ84: 150 | AK84: 150 | AL84: 150 | AM84: 150 | AN84: 150
E88: Data Table
E90: ='Debt Structuring'!G148 -> 0.0978089269 | F90: 0.015 | G90: 0.0175 | H90: 0.02 | J90: 0.0225 | K90: 0.025 | L90: 0.0275 | M90: 0.03 | N90: 0.0325 | O90: 0.035 | P90: 0.0375 | Q90: 0.04
E91: 15 | F91: 0.05228293923 | G91: 0.05084928546 | H91: 0.04948817859 | J91: 0.04819423251 | K91: 0.04696260098 | L91: 0.04578890939 | M91: 0.04466919683 | N91: 0.04359986674 | O91: 0.04257764462 | P91: 0.04159954158 | Q91: 0.04066282293
E92: 16
E93: 17
E94: 18
E95: 19
E96: 20
E97: 21
E98: 22
E99: 23
E100: 24
E101: 25
D104: Carrying Charge Rate | E104: ='Debt Structuring'!I103/'Debt Structuring'!F12 -> 0.05

Sheet Refinancing
A2: Period | H2: 0 | I2: 1 | J2: 2 | K2: 3 | L2: 4 | M2: 5 | N2: 6 | O2: 7 | P2: 8 | Q2: 9 | R2: 10 | S2: 11 | T2: 12 | U2: 13 | V2: 14 | W2: 15 | X2: 16 | Y2: 17 | Z2: 18 | AA2: 19 | AB2: 20 | AC2: 21 | AD2: 22 | AE2: 23 | AF2: 24 | AG2: 25 | AH2: 26 | AI2: 27 | AJ2: 28 | AK2: 29 | AL2: 30 | AM2: 31 | AN2: 32 | AO2: 33 | AP2: 34 | AQ2: 35 | AR2: 36 | AS2: 37 | AT2: 38 | AU2: 39 | AV2: 40
B3: Construction Switch | F3: =F39 -> 23 | G3: =F8 -> 1 | H3: =H2<$G$3 -> TRUE | I3: =I2<$G$3 -> FALSE | J3: FALSE | K3: FALSE | L3: FALSE | M3: FALSE | N3: FALSE | O3: FALSE | P3: FALSE | Q3: FALSE | R3: FALSE | S3: FALSE | T3: FALSE | U3: FALSE | V3: FALSE | W3: FALSE | X3: FALSE | Y3: FALSE | Z3: FALSE | AA3: FALSE | AB3: FALSE | AC3: FALSE | AD3: FALSE | AE3: FALSE | AF3: FALSE | AG3: FALSE | AH3: FALSE | AI3: FALSE | AJ3: FALSE | AK3: FALSE | AL3: FALSE | AM3: FALSE | AN3: FALSE | AO3: FALSE | AP3: FALSE | AQ3: FALSE | AR3: FALSE | AS3: FALSE | AT3: FALSE | AU3: FALSE | AV3: FALSE
B4: Operating Switch | G4: =F9 -> 25 | H4: =AND(H2>=$G$3,H2<=$G$4) -> FALSE | I4: =AND(I2>=$G$3,I2<=$G$4) -> TRUE | J4: TRUE | K4: TRUE | L4: TRUE | M4: TRUE | N4: TRUE | O4: TRUE | P4: TRUE | Q4: TRUE | R4: TRUE | S4: TRUE | T4: TRUE | U4: TRUE | V4: TRUE | W4: TRUE | X4: TRUE | Y4: TRUE | Z4: TRUE | AA4: TRUE | AB4: TRUE | AC4: TRUE | AD4: TRUE | AE4: TRUE | AF4: TRUE | AG4: TRUE | AH4: FALSE | AI4: FALSE | AJ4: FALSE | AK4: FALSE | AL4: FALSE | AM4: FALSE | AN4: FALSE | AO4: FALSE | AP4: FALSE | AQ4: FALSE | AR4: FALSE | AS4: FALSE | AT4: FALSE | AU4: FALSE | AV4: FALSE
A6: Assumptions
B7: Timing
C8: Construction Period | E8: Years | F8: 1
C9: Operating Period | E9: Years | F9: 25
B11: Operating Assumptions
C12: Capex | E12: SAR m | F12: 1380
C13: Dev Fee & Others | E13: SAR m | F13: 0
C14: Year | H14: 0 | I14: 1 | J14: 4 | K14: 6 | L14: 10 | M14: 20
C15: EBITDA | E15: SAR m | I15: 80 | J15: 85 | K15: 90 | L15: 95 | M15: 100
B17: Financing Assumptions
C18: Debt Size
D19: Debt to Capital | F19: 0.85
D20: DSCR | F20: =H20/100 -> 1.26 | H20: 126
C22: Repayment
D23: Repayment Tenor | E23: Years | F23: 22
D24: Tail | F24: =F9-F23 -> 3
D26: Constrained Debt to Capital with DSCR Adj | F26: TRUE
D27: Debt to capital constraint with tenor adj | F27: =NOT(F26) -> FALSE
C29: Interest Rate | E29: 1610
D30: Fixed Margin Switch | E30: FALSE
D31: Year | F31: 0 | G31: 1 | H31: 5 | I31: 10 | J31: 20
D32: SIBOR Rate | F32: =E29/100000 -> 0.0161 | G32: =F32 -> 0.0161 | H32: =G32 -> 0.0161 | I32: 0.0161 | J32: 0.0161
D33: Margin | F33: 0.0175 | G33: =F33+0.25% -> 0.02 | H33: =G33+0.25% -> 0.0225 | I33: 0.025 | J33: 0.0275
D34: Fixed Margin | F34: 0.0175 | G34: 0.0175 | H34: 0.0175 | I34: 0.0175 | J34: 0.0175
D35: Applied Margin | E35: =E30 -> FALSE | F35: =IF($E$35,F34,F33) -> 0.0175 | G35: =IF($E$35,G34,G33) -> 0.02 | H35: 0.0225 | I35: 0.025 | J35: 0.0275
D36: Total | F36: =SUM(F32,F35) -> 0.0336 | G36: =SUM(G32,G35) -> 0.0361 | H36: =SUM(H32,H35) -> 0.0386 | I36: =SUM(I32,I35) -> 0.0411 | J36: =SUM(J32,J35) -> 0.0436
B38: Refinancing
C39: Refinancing Year | F39: 23
C40: Refinancing Tale | F40: =F24 -> 3
C41: Final Year of Refinancing | F41: =F23 -> 22
A43: Operating Cash Flows
B44: CFADS | H44: =LOOKUP(H2,14:14,15:15)*H4 -> 0 | I44: 80 | J44: 80 | K44: 80 | L44: 85 | M44: 85 | N44: 90 | O44: 90 | P44: 90 | Q44: 90 | R44: 95 | S44: 95 | T44: 95 | U44: 95 | V44: 95 | W44: 95 | X44: 95 | Y44: 95 | Z44: 95 | AA44: 95 | AB44: 100 | AC44: 100 | AD44: 100 | AE44: 100 | AF44: 100 | AG44: 100 | AH44: 0 | AI44: 0 | AJ44: 0 | AK44: 0 | AL44: 0 | AM44: 0 | AN44: 0 | AO44: 0 | AP44: 0 | AQ44: 0 | AR44: 0 | AS44: 0 | AT44: 0 | AU44: 0 | AV44: 0
B45: Capex | G45: =F12 -> 1380 | H45: =$G$45*H3 -> 1380 | I45: 0 | J45: 0 | K45: 0 | L45: 0 | M45: 0 | N45: 0 | O45: 0 | P45: 0 | Q45: 0 | R45: 0 | S45: 0 | T45: 0 | U45: 0 | V45: 0 | W45: 0 | X45: 0 | Y45: 0 | Z45: 0 | AA45: 0 | AB45: 0 | AC45: 0 | AD45: 0 | AE45: 0 | AF45: 0 | AG45: 0 | AH45: 0 | AI45: 0 | AJ45: 0 | AK45: 0 | AL45: 0 | AM45: 0 | AN45: 0 | AO45: 0 | AP45: 0 | AQ45: 0 | AR45: 0 | AS45: 0 | AT45: 0 | AU45: 0 | AV45: 0
B46: Project Cash Flow | H46: =H44-H45 -> -1380 | I46: =I44-I45 -> 80 | J46: 80 | K46: 80 | L46: 85 | M46: 85 | N46: 90 | O46: 90 | P46: 90 | Q46: 90 | R46: 95 | S46: 95 | T46: 95 | U46: 95 | V46: 95 | W46: 95 | X46: 95 | Y46: 95 | Z46: 95 | AA46: 95 | AB46: 100 | AC46: 100 | AD46: 100 | AE46: 100 | AF46: 100 | AG46: 100 | AH46: 0 | AI46: 0 | AJ46: 0 | AK46: 0 | AL46: 0 | AM46: 0 | AN46: 0 | AO46: 0 | AP46: 0 | AQ46: 0 | AR46: 0 | AS46: 0 | AT46: 0 | AU46: 0 | AV46: 0
B47: Project IRR | F47: =IRR(46:46) -> 0.04281693609
B49: Debt Sizing
C50: Debt Repayment Switch | G50: =F23 -> 22 | H50: =AND(H4,H2<=$G$50) -> FALSE | I50: TRUE | J50: TRUE | K50: TRUE | L50: TRUE | M50: TRUE | N50: TRUE | O50: TRUE | P50: TRUE | Q50: TRUE | R50: TRUE | S50: TRUE | T50: TRUE | U50: TRUE | V50: TRUE | W50: TRUE | X50: TRUE | Y50: TRUE | Z50: TRUE | AA50: TRUE | AB50: TRUE | AC50: TRUE | AD50: TRUE | AE50: FALSE | AF50: FALSE | AG50: FALSE | AH50: FALSE | AI50: FALSE | AJ50: FALSE | AK50: FALSE | AL50: FALSE | AM50: FALSE | AN50: FALSE | AO50: FALSE | AP50: FALSE | AQ50: FALSE | AR50: FALSE | AS50: FALSE | AT50: FALSE | AU50: FALSE | AV50: FALSE
C51: Post Repayment Switch | G51: =G50 -> 22 | H51: =H2>$G$51 -> FALSE | I51: FALSE | J51: FALSE | K51: FALSE | L51: FALSE | M51: FALSE | N51: FALSE | O51: FALSE | P51: FALSE | Q51: FALSE | R51: FALSE | S51: FALSE | T51: FALSE | U51: FALSE | V51: FALSE | W51: FALSE | X51: FALSE | Y51: FALSE | Z51: FALSE | AA51: FALSE | AB51: FALSE | AC51: FALSE | AD51: FALSE | AE51: TRUE | AF51: TRUE | AG51: TRUE | AH51: TRUE | AI51: TRUE | AJ51: TRUE | AK51: TRUE | AL51: TRUE | AM51: TRUE | AN51: TRUE | AO51: TRUE | AP51: TRUE | AQ51: TRUE | AR51: TRUE | AS51: TRUE | AT51: TRUE | AU51: TRUE | AV51: TRUE
C52: Refinancing Switch | G52: =F39 -> 23 | H52: =H2=$G$52 -> FALSE | I52: FALSE | J52: FALSE | K52: FALSE | L52: FALSE | M52: FALSE | N52: FALSE | O52: FALSE | P52: FALSE | Q52: FALSE | R52: FALSE | S52: FALSE | T52: FALSE | U52: FALSE | V52: FALSE | W52: FALSE | X52: FALSE | Y52: FALSE | Z52: FALSE | AA52: FALSE | AB52: FALSE | AC52: FALSE | AD52: FALSE | AE52: TRUE | AF52: FALSE | AG52: FALSE | AH52: FALSE | AI52: FALSE | AJ52: FALSE | AK52: FALSE | AL52: FALSE | AM52: FALSE | AN52: FALSE | AO52: FALSE | AP52: FALSE | AQ52: FALSE | AR52: FALSE | AS52: FALSE | AT52: FALSE | AU52: FALSE | AV52: FALSE
C53: Target Debt Service | F53: =G108 -> 1.26 | H53: =IF(H50,H44/$F$53) -> FALSE | I53: =IF(I50,I44/$F$53) -> 63.49206349 | J53: 63.49206349 | K53: 63.49206349 | L53: 67.46031746 | M53: 67.46031746 | N53: 71.42857143 | O53: 71.42857143 | P53: 71.42857143 | Q53: 71.42857143 | R53: 75.3968254 | S53: 75.3968254 | T53: 75.3968254 | U53: 75.3968254 | V53: 75.3968254 | W53: 75.3968254 | X53: 75.3968254 | Y53: 75.3968254 | Z53: 75.3968254 | AA53: 75.3968254 | AB53: 79.36507937 | AC53: 79.36507937 | AD53: 79.36507937 | AE53: FALSE | AF53: FALSE | AG53: FALSE | AH53: FALSE | AI53: FALSE | AJ53: FALSE | AK53: FALSE | AL53: FALSE | AM53: FALSE | AN53: FALSE | AO53: FALSE | AP53: FALSE | AQ53: FALSE | AR53: FALSE | AS53: FALSE | AT53: FALSE | AU53: FALSE | AV53: FALSE
C54: Interest Rate Index | G54: 1 | H54: =G54*(1+H65*H4) -> 1 | I54: 1.0361 | J54: 1.07350321 | K54: 1.112256676 | L54: 1.152409142 | M54: 1.196892135 | N54: 1.243092171 | O54: 1.291075529 | P54: 1.340911044 | Q54: 1.392670211 | R54: 1.449908956 | S54: 1.509500214 | T54: 1.571540673 | U54: 1.636130995 | V54: 1.703375979 | W54: 1.773384732 | X54: 1.846270844 | Y54: 1.922152576 | Z54: 2.001153047 | AA54: 2.083400437 | AB54: 2.174236696 | AC54: 2.269033416 | AD54: 2.367963273 | AE54: 2.471206471 | AF54: 2.578951074 | AG54: 2.69139334 | AH54: 2.69139334 | AI54: 2.69139334 | AJ54: 2.69139334 | AK54: 2.69139334 | AL54: 2.69139334 | AM54: 2.69139334 | AN54: 2.69139334 | AO54: 2.69139334 | AP54: 2.69139334 | AQ54: 2.69139334 | AR54: 2.69139334 | AS54: 2.69139334 | AT54: 2.69139334 | AU54: 2.69139334 | AV54: 2.69139334
C55: NPV of Debt Service | G55: =SUMPRODUCT(H53:AV53/H54:AV54) -> 1051.464617
B57: Debt Size from Max Debt to Capital | G57: =(F12+F13)*F19 -> 1173
B58: Debt to capital constraint with tenor adj | G58: =F27 -> FALSE
B60: First Debt Issue
C61: Opening Balance | I61: =H64 -> 1051.464617 | J61: =I64 -> 1025.930426 | K61: 999.4744509 | L61: 972.0634151 | M61: 939.6945869 | N61: 908.5064805 | O61: 872.1462592 | P61: 834.3825334 | Q61: 795.1611277 | R61: 754.4257758 | S61: 710.0358498 | T61: 663.8214978 | U61: 615.707736 | V61: 565.6164986 | W61: 513.4665113 | X61: 459.1731595 | Y61: 402.6483509 | Z61: 343.8003728 | AA61: 282.5337427 | AB61: 218.7490541 | AC61: 148.9214335 | AD61: 76.04932864 | AE61: 2.842170943e-14 | AF61: 0 | AG61: 0 | AH61: 0 | AI61: 0 | AJ61: 0 | AK61: 0 | AL61: 0 | AM61: 0 | AN61: 0 | AO61: 0 | AP61: 0 | AQ61: 0 | AR61: 0 | AS61: 0 | AT61: 0 | AU61: 0 | AV61: 0
C62: Less Repayments | I62: =MIN(I53-I66,I61) -> 25.53419083 | J62: 26.45597511 | K62: 27.41103582 | L62: 32.36882818 | M62: 31.18810641 | N62: 36.36022128 | O62: 37.76372582 | P62: 39.22140564 | Q62: 40.7353519 | R62: 44.38992601 | S62: 46.21435197 | T62: 48.11376184 | U62: 50.09123745 | V62: 52.14998731 | W62: 54.29335178 | X62: 56.52480854 | Y62: 58.84797817 | Z62: 61.26663008 | AA62: 63.78468857 | AB62: 69.82762061 | AC62: 72.87210486 | AD62: 76.04932864 | AE62: -1.239186531e-15 | AF62: 0 | AG62: 0 | AH62: 0 | AI62: 0 | AJ62: 0 | AK62: 0 | AL62: 0 | AM62: 0 | AN62: 0 | AO62: 0 | AP62: 0 | AQ62: 0 | AR62: 0 | AS62: 0 | AT62: 0 | AU62: 0 | AV62: 0
C63: Less Repayment of Refi Debt | I63: =(I61-I62)*I52 -> 0 | J63: 0 | K63: 0 | L63: 0 | M63: 0 | N63: 0 | O63: 0 | P63: 0 | Q63: 0 | R63: 0 | S63: 0 | T63: 0 | U63: 0 | V63: 0 | W63: 0 | X63: 0 | Y63: 0 | Z63: 0 | AA63: 0 | AB63: 0 | AC63: 0 | AD63: 0 | AE63: 2.966089596e-14 | AF63: 0 | AG63: 0 | AH63: 0 | AI63: 0 | AJ63: 0 | AK63: 0 | AL63: 0 | AM63: 0 | AN63: 0 | AO63: 0 | AP63: 0 | AQ63: 0 | AR63: 0 | AS63: 0 | AT63: 0 | AU63: 0 | AV63: 0
C64: Closing Balance | G64: =IF(AND(G55>G57,G58),G57,G55) -> 1051.464617 | H64: =G64 -> 1051.464617 | I64: =I61-I62-I63 -> 1025.930426 | J64: =J61-J62-J63 -> 999.4744509 | K64: 972.0634151 | L64: 939.6945869 | M64: 908.5064805 | N64: 872.1462592 | O64: 834.3825334 | P64: 795.1611277 | Q64: 754.4257758 | R64: 710.0358498 | S64: 663.8214978 | T64: 615.707736 | U64: 565.6164986 | V64: 513.4665113 | W64: 459.1731595 | X64: 402.6483509 | Y64: 343.8003728 | Z64: 282.5337427 | AA64: 218.7490541 | AB64: 148.9214335 | AC64: 76.04932864 | AD64: 2.842170943e-14 | AE64: 0 | AF64: 0 | AG64: 0 | AH64: 0 | AI64: 0 | AJ64: 0 | AK64: 0 | AL64: 0 | AM64: 0 | AN64: 0 | AO64: 0 | AP64: 0 | AQ64: 0 | AR64: 0 | AS64: 0 | AT64: 0 | AU64: 0 | AV64: 0
C65: Interest Rate | H65: =LOOKUP(H2,31:31,36:36) -> 0.0336 | I65: 0.0361 | J65: 0.0361 | K65: 0.0361 | L65: 0.0361 | M65: 0.0386 | N65: 0.0386 | O65: 0.0386 | P65: 0.0386 | Q65: 0.0386 | R65: 0.0411 | S65: 0.0411 | T65: 0.0411 | U65: 0.0411 | V65: 0.0411 | W65: 0.0411 | X65: 0.0411 | Y65: 0.0411 | Z65: 0.0411 | AA65: 0.0411 | AB65: 0.0436 | AC65: 0.0436 | AD65: 0.0436 | AE65: 0.0436 | AF65: 0.0436 | AG65: 0.0436 | AH65: 0.0436 | AI65: 0.0436 | AJ65: 0.0436 | AK65: 0.0436 | AL65: 0.0436 | AM65: 0.0436 | AN65: 0.0436 | AO65: 0.0436 | AP65: 0.0436 | AQ65: 0.0436 | AR65: 0.0436 | AS65: 0.0436 | AT65: 0.0436 | AU65: 0.0436 | AV65: 0.0436
C66: Interest | I66: =I65*I61 -> 37.95787267 | J66: 37.03608838 | K66: 36.08102768 | L66: 35.09148928 | M66: 36.27221105 | N66: 35.06835015 | O66: 33.6648456 | P66: 32.20716579 | Q66: 30.69321953 | R66: 31.00689939 | S66: 29.18247343 | T66: 27.28306356 | U66: 25.30558795 | V66: 23.24683809 | W66: 21.10347361 | X66: 18.87201685 | Y66: 16.54884722 | Z66: 14.13019532 | AA66: 11.61213682 | AB66: 9.537458759 | AC66: 6.492974501 | AD66: 3.315750729 | AE66: 1.239186531e-15 | AF66: 0 | AG66: 0 | AH66: 0 | AI66: 0 | AJ66: 0 | AK66: 0 | AL66: 0 | AM66: 0 | AN66: 0 | AO66: 0 | AP66: 0 | AQ66: 0 | AR66: 0 | AS66: 0 | AT66: 0 | AU66: 0 | AV66: 0
B68: Refinanced Debt Schedule
C69: Refinancined Debt Repayment Switch | F69: =F39+1 -> 24 | G69: =F41 -> 22 | H69: =AND(H2>=$F$69,H2<=$G$69) -> FALSE | I69: FALSE | J69: FALSE | K69: FALSE | L69: FALSE | M69: FALSE | N69: FALSE | O69: FALSE | P69: FALSE | Q69: FALSE | R69: FALSE | S69: FALSE | T69: FALSE | U69: FALSE | V69: FALSE | W69: FALSE | X69: FALSE | Y69: FALSE | Z69: FALSE | AA69: FALSE | AB69: FALSE | AC69: FALSE | AD69: FALSE | AE69: FALSE | AF69: FALSE | AG69: FALSE | AH69: FALSE | AI69: FALSE | AJ69: FALSE | AK69: FALSE | AL69: FALSE | AM69: FALSE | AN69: FALSE | AO69: FALSE | AP69: FALSE | AQ69: FALSE | AR69: FALSE | AS69: FALSE | AT69: FALSE | AU69: FALSE | AV69: FALSE
C70: CFADS | H70: =H44 -> 0 | I70: =I44 -> 80 | J70: 80 | K70: 80 | L70: 85 | M70: 85 | N70: 90 | O70: 90 | P70: 90 | Q70: 90 | R70: 95 | S70: 95 | T70: 95 | U70: 95 | V70: 95 | W70: 95 | X70: 95 | Y70: 95 | Z70: 95 | AA70: 95 | AB70: 100 | AC70: 100 | AD70: 100 | AE70: 100 | AF70: 100 | AG70: 100 | AH70: 0 | AI70: 0 | AJ70: 0 | AK70: 0 | AL70: 0 | AM70: 0 | AN70: 0 | AO70: 0 | AP70: 0 | AQ70: 0 | AR70: 0 | AS70: 0 | AT70: 0 | AU70: 0 | AV70: 0
C71: Target Debt Service for Refinanced Loan | G71: =F20 -> 1.26 | H71: =H44/$G$71*H69 -> 0 | I71: 0 | J71: 0 | K71: 0 | L71: 0 | M71: 0 | N71: 0 | O71: 0 | P71: 0 | Q71: 0 | R71: 0 | S71: 0 | T71: 0 | U71: 0 | V71: 0 | W71: 0 | X71: 0 | Y71: 0 | Z71: 0 | AA71: 0 | AB71: 0 | AC71: 0 | AD71: 0 | AE71: 0 | AF71: 0 | AG71: 0 | AH71: 0 | AI71: 0 | AJ71: 0 | AK71: 0 | AL71: 0 | AM71: 0 | AN71: 0 | AO71: 0 | AP71: 0 | AQ71: 0 | AR71: 0 | AS71: 0 | AT71: 0 | AU71: 0 | AV71: 0
C72: Interest Rate Index | G72: 1 | H72: =G72*(1+H65*H69) -> 1 | I72: =H72*(1+I65*I69) -> 1 | J72: 1 | K72: 1 | L72: 1 | M72: 1 | N72: 1 | O72: 1 | P72: 1 | Q72: 1 | R72: 1 | S72: 1 | T72: 1 | U72: 1 | V72: 1 | W72: 1 | X72: 1 | Y72: 1 | Z72: 1 | AA72: 1 | AB72: 1 | AC72: 1 | AD72: 1 | AE72: 1 | AF72: 1 | AG72: 1 | AH72: 1 | AI72: 1 | AJ72: 1 | AK72: 1 | AL72: 1 | AM72: 1 | AN72: 1 | AO72: 1 | AP72: 1 | AQ72: 1 | AR72: 1 | AS72: 1 | AT72: 1 | AU72: 1 | AV72: 1
C73: NPV at the Refinancing Date | G73: =SUMPRODUCT(H71:AV71/H72:AV72) -> 0
C75: Opening Balance | H75: =G78 -> 0 | I75: =H78 -> 0 | J75: 0 | K75: 0 | L75: 0 | M75: 0 | N75: 0 | O75: 0 | P75: 0 | Q75: 0 | R75: 0 | S75: 0 | T75: 0 | U75: 0 | V75: 0 | W75: 0 | X75: 0 | Y75: 0 | Z75: 0 | AA75: 0 | AB75: 0 | AC75: 0 | AD75: 0 | AE75: 0 | AF75: 0 | AG75: 0 | AH75: 0 | AI75: 0 | AJ75: 0 | AK75: 0 | AL75: 0 | AM75: 0 | AN75: 0 | AO75: 0 | AP75: 0 | AQ75: 0 | AR75: 0 | AS75: 0 | AT75: 0 | AU75: 0 | AV75: 0
D76: Debt Drawdown | G76: =G73 -> 0 | H76: =$G$76*H52 -> 0 | I76: 0 | J76: 0 | K76: 0 | L76: 0 | M76: 0 | N76: 0 | O76: 0 | P76: 0 | Q76: 0 | R76: 0 | S76: 0 | T76: 0 | U76: 0 | V76: 0 | W76: 0 | X76: 0 | Y76: 0 | Z76: 0 | AA76: 0 | AB76: 0 | AC76: 0 | AD76: 0 | AE76: 0 | AF76: 0 | AG76: 0 | AH76: 0 | AI76: 0 | AJ76: 0 | AK76: 0 | AL76: 0 | AM76: 0 | AN76: 0 | AO76: 0 | AP76: 0 | AQ76: 0 | AR76: 0 | AS76: 0 | AT76: 0 | AU76: 0 | AV76: 0
D77: Less Repayments | H77: =H71-H80 -> 0 | I77: =I71-I80 -> 0 | J77: 0 | K77: 0 | L77: 0 | M77: 0 | N77: 0 | O77: 0 | P77: 0 | Q77: 0 | R77: 0 | S77: 0 | T77: 0 | U77: 0 | V77: 0 | W77: 0 | X77: 0 | Y77: 0 | Z77: 0 | AA77: 0 | AB77: 0 | AC77: 0 | AD77: 0 | AE77: 0 | AF77: 0 | AG77: 0 | AH77: 0 | AI77: 0 | AJ77: 0 | AK77: 0 | AL77: 0 | AM77: 0 | AN77: 0 | AO77: 0 | AP77: 0 | AQ77: 0 | AR77: 0 | AS77: 0 | AT77: 0 | AU77: 0 | AV77: 0
D78: Closing Balance | H78: =G78 -> 0 | I78: =I75+I76-I77 -> 0 | J78: =J75+J76-J77 -> 0 | K78: 0 | L78: 0 | M78: 0 | N78: 0 | O78: 0 | P78: 0 | Q78: 0 | R78: 0 | S78: 0 | T78: 0 | U78: 0 | V78: 0 | W78: 0 | X78: 0 | Y78: 0 | Z78: 0 | AA78: 0 | AB78: 0 | AC78: 0 | AD78: 0 | AE78: 0 | AF78: 0 | AG78: 0 | AH78: 0 | AI78: 0 | AJ78: 0 | AK78: 0 | AL78: 0 | AM78: 0 | AN78: 0 | AO78: 0 | AP78: 0 | AQ78: 0 | AR78: 0 | AS78: 0 | AT78: 0 | AU78: 0 | AV78: 0
D79: Interest Rate | H79: =H65 -> 0.0336 | I79: =I65 -> 0.0361 | J79: 0.0361 | K79: 0.0361 | L79: 0.0361 | M79: 0.0386 | N79: 0.0386 | O79: 0.0386 | P79: 0.0386 | Q79: 0.0386 | R79: 0.0411 | S79: 0.0411 | T79: 0.0411 | U79: 0.0411 | V79: 0.0411 | W79: 0.0411 | X79: 0.0411 | Y79: 0.0411 | Z79: 0.0411 | AA79: 0.0411 | AB79: 0.0436 | AC79: 0.0436 | AD79: 0.0436 | AE79: 0.0436 | AF79: 0.0436 | AG79: 0.0436 | AH79: 0.0436 | AI79: 0.0436 | AJ79: 0.0436 | AK79: 0.0436 | AL79: 0.0436 | AM79: 0.0436 | AN79: 0.0436 | AO79: 0.0436 | AP79: 0.0436 | AQ79: 0.0436 | AR79: 0.0436 | AS79: 0.0436 | AT79: 0.0436 | AU79: 0.0436 | AV79: 0.0436
D80: Interest | H80: =H79*H75 -> 0 | I80: =I79*I75 -> 0 | J80: 0 | K80: 0 | L80: 0 | M80: 0 | N80: 0 | O80: 0 | P80: 0 | Q80: 0 | R80: 0 | S80: 0 | T80: 0 | U80: 0 | V80: 0 | W80: 0 | X80: 0 | Y80: 0 | Z80: 0 | AA80: 0 | AB80: 0 | AC80: 0 | AD80: 0 | AE80: 0 | AF80: 0 | AG80: 0 | AH80: 0 | AI80: 0 | AJ80: 0 | AK80: 0 | AL80: 0 | AM80: 0 | AN80: 0 | AO80: 0 | AP80: 0 | AQ80: 0 | AR80: 0 | AS80: 0 | AT80: 0 | AU80: 0 | AV80: 0
C82: Sum of Closing Balance After Repayment | G82: =ROUND(SUMIF(51:51,TRUE,64:64),3)=0 -> TRUE
B84: Equity Cash Flows | I84: =I46-I62-I66-I63+I76-I77-I80 -> 16.50793651 | J84: 16.50793651 | K84: 16.50793651 | L84: 17.53968254 | M84: 17.53968254 | N84: 18.57142857 | O84: 18.57142857 | P84: 18.57142857 | Q84: 18.57142857 | R84: 19.6031746 | S84: 19.6031746 | T84: 19.6031746 | U84: 19.6031746 | V84: 19.6031746 | W84: 19.6031746 | X84: 19.6031746 | Y84: 19.6031746 | Z84: 19.6031746 | AA84: 19.6031746 | AB84: 20.63492063 | AC84: 20.63492063 | AD84: 20.63492063 | AE84: 100 | AF84: 100 | AG84: 100 | AH84: 0 | AI84: 0 | AJ84: 0 | AK84: 0 | AL84: 0 | AM84: 0 | AN84: 0 | AO84: 0 | AP84: 0 | AQ84: 0 | AR84: 0 | AS84: 0 | AT84: 0 | AU84: 0 | AV84: 0
B86: LLCR
C87: CFADS over Loan Life | H87: =H44*H50 -> 0 | I87: 80 | J87: 80 | K87: 80 | L87: 85 | M87: 85 | N87: 90 | O87: 90 | P87: 90 | Q87: 90 | R87: 95 | S87: 95 | T87: 95 | U87: 95 | V87: 95 | W87: 95 | X87: 95 | Y87: 95 | Z87: 95 | AA87: 95 | AB87: 100 | AC87: 100 | AD87: 100 | AE87: 0 | AF87: 0 | AG87: 0 | AH87: 0 | AI87: 0 | AJ87: 0 | AK87: 0 | AL87: 0 | AM87: 0 | AN87: 0 | AO87: 0 | AP87: 0 | AQ87: 0 | AR87: 0 | AS87: 0 | AT87: 0 | AU87: 0 | AV87: 0
C88: PV of CFADS over Loan Life | G88: =SUMPRODUCT(H87:AV87/H54:AV54) -> 1324.845417
C89: LLCR | G89: =G88/G55 -> 1.26
C90: % reduction before loan cannot be repayed | G90: =(G89-1)/G89 -> 0.2063492063
B92: PLCR
C93: CFADS over Loan Life | H93: =H44 -> 0 | I93: 80 | J93: 80 | K93: 80 | L93: 85 | M93: 85 | N93: 90 | O93: 90 | P93: 90 | Q93: 90 | R93: 95 | S93: 95 | T93: 95 | U93: 95 | V93: 95 | W93: 95 | X93: 95 | Y93: 95 | Z93: 95 | AA93: 95 | AB93: 100 | AC93: 100 | AD93: 100 | AE93: 100 | AF93: 100 | AG93: 100 | AH93: 0 | AI93: 0 | AJ93: 0 | AK93: 0 | AL93: 0 | AM93: 0 | AN93: 0 | AO93: 0 | AP93: 0 | AQ93: 0 | AR93: 0 | AS93: 0 | AT93: 0 | AU93: 0 | AV93: 0
C94: PV of CFADS over Loan Life | G94: =SUMPRODUCT(H93:AV93/H54:AV54) -> 1441.242412
C95: PLCR | G95: =G94/G64 -> 1.370699868
C96: % reduction before loan cannot be repayed | G96: =(G95-1)/G95 -> 0.2704456875
B98: LLCR with Maximum Debt to Capital constraint
C99: PV of CFADS of Loan Life | G99: =G88 -> 1324.845417
C100: Project Cost | G100: =F12+F13 -> 1380
C101: Debt to Capital constraint | G101: =G100*F19 -> 1173
C102: Debt from DSCR | G102: =G55 -> 1051.464617
G104: =IF(G101>G102,C102,C101) -> Debt from DSCR
C106: LLCR with Max Debt to Capital constraint | G106: =G99/G101 -> 1.129450484
C107: =D26 -> Constrained Debt to Capital with DSCR Adj | G107: =F26 -> TRUE
C108: DSCR applied | G108: =IF(G107,MAX(G106,F20),F20)+G5 -> 1.26
A110: IRR Calculation
B111: Equity Cash Flow without Dev Fees | H111: =H46+H64 -> -328.5353832 | I111: =I84 -> 16.50793651 | J111: =J84 -> 16.50793651 | K111: 16.50793651 | L111: 17.53968254 | M111: 17.53968254 | N111: 18.57142857 | O111: 18.57142857 | P111: 18.57142857 | Q111: 18.57142857 | R111: 19.6031746 | S111: 19.6031746 | T111: 19.6031746 | U111: 19.6031746 | V111: 19.6031746 | W111: 19.6031746 | X111: 19.6031746 | Y111: 19.6031746 | Z111: 19.6031746 | AA111: 19.6031746 | AB111: 20.63492063 | AC111: 20.63492063 | AD111: 20.63492063 | AE111: 100 | AF111: 100 | AG111: 100 | AH111: 0 | AI111: 0 | AJ111: 0 | AK111: 0 | AL111: 0 | AM111: 0 | AN111: 0 | AO111: 0 | AP111: 0 | AQ111: 0 | AR111: 0 | AS111: 0 | AT111: 0 | AU111: 0 | AV111: 0
B112: Equity IRR | G112: =IRR(H111:AV111) -> 0.05208466861
A129: GRAPHS
H130: =IF(H4,H2,NA()) ->  | I130: 1 | J130: 2 | K130: 3 | L130: 4 | M130: 5 | N130: 6 | O130: 7 | P130: 8 | Q130: 9 | R130: 10 | S130: 11 | T130: 12 | U130: 13 | V130: 14 | W130: 15 | X130: 16 | Y130: 17 | Z130: 18 | AA130: 19 | AB130: 20 | AC130: 21 | AD130: 22 | AE130: 23 | AF130: 24 | AG130: 25
D131: CFADS | H131: =H44 -> 0 | I131: 80 | J131: 80 | K131: 80 | L131: 85 | M131: 85 | N131: 90 | O131: 90 | P131: 90 | Q131: 90 | R131: 95 | S131: 95 | T131: 95 | U131: 95 | V131: 95 | W131: 95 | X131: 95 | Y131: 95 | Z131: 95 | AA131: 95 | AB131: 100 | AC131: 100 | AD131: 100 | AE131: 100 | AF131: 100 | AG131: 100 | AH131: 0 | AI131: 0 | AJ131: 0 | AK131: 0 | AL131: 0 | AM131: 0 | AN131: 0 | AO131: 0 | AP131: 0 | AQ131: 0 | AR131: 0 | AS131: 0 | AT131: 0 | AU131: 0 | AV131: 0
D132: Debt Service | H132: =H53 -> FALSE | I132: =I62+I66 -> 63.49206349 | J132: =J62+J66 -> 63.49206349 | K132: 63.49206349 | L132: 67.46031746 | M132: 67.46031746 | N132: 71.42857143 | O132: 71.42857143 | P132: 71.42857143 | Q132: 71.42857143 | R132: 75.3968254 | S132: 75.3968254 | T132: 75.3968254 | U132: 75.3968254 | V132: 75.3968254 | W132: 75.3968254 | X132: 75.3968254 | Y132: 75.3968254 | Z132: 75.3968254 | AA132: 75.3968254 | AB132: 79.36507937 | AC132: 79.36507937 | AD132: 79.36507937 | AE132: 0 | AF132: 0 | AG132: 0 | AH132: 0 | AI132: 0 | AJ132: 0 | AK132: 0 | AL132: 0 | AM132: 0 | AN132: 0 | AO132: 0 | AP132: 0 | AQ132: 0 | AR132: 0 | AS132: 0 | AT132: 0 | AU132: 0 | AV132: 0
D133: Refinanced Debt Service | H133: =H80+H77 -> 0 | I133: =I80+I77 -> 0 | J133: 0 | K133: 0 | L133: 0 | M133: 0 | N133: 0 | O133: 0 | P133: 0 | Q133: 0 | R133: 0 | S133: 0 | T133: 0 | U133: 0 | V133: 0 | W133: 0 | X133: 0 | Y133: 0 | Z133: 0 | AA133: 0 | AB133: 0 | AC133: 0 | AD133: 0 | AE133: 0 | AF133: 0 | AG133: 0 | AH133: 0 | AI133: 0 | AJ133: 0 | AK133: 0 | AL133: 0 | AM133: 0 | AN133: 0 | AO133: 0 | AP133: 0 | AQ133: 0 | AR133: 0 | AS133: 0 | AT133: 0 | AU133: 0 | AV133: 0
D136: Sculpted DSCR | E136: =G108 -> 1.26 | F136: Interest Rate | G136: =F36 -> 0.0336 | H136: Debt to Capital | I136: =G64/(F12+F13) -> 0.7619308817 | K136: Equity IRR | L136: =G112 -> 0.05208466861 | M136: Dev Fees | N136: =F13 -> 0 | O136: Debt from DSCR
D138: NPV of Debt Service | E138: =G64 -> 1051.464617 | G138: =D138&TEXT(E138," #,###") -> NPV of Debt Service 1,051

Sheet Credit Analysis
A2: Period | H2: 0 | I2: 1 | J2: 2 | K2: 3 | L2: 4 | M2: 5 | N2: 6 | O2: 7 | P2: 8 | Q2: 9 | R2: 10 | S2: 11 | T2: 12 | U2: 13 | V2: 14 | W2: 15 | X2: 16 | Y2: 17 | Z2: 18 | AA2: 19 | AB2: 20 | AC2: 21 | AD2: 22 | AE2: 23 | AF2: 24 | AG2: 25 | AH2: 26 | AI2: 27 | AJ2: 28 | AK2: 29 | AL2: 30 | AM2: 31 | AN2: 32 | AO2: 33 | AP2: 34 | AQ2: 35 | AR2: 36 | AS2: 37 | AT2: 38 | AU2: 39 | AV2: 40
B3: Construction Switch | G3: =F8 -> 1 | H3: =H2<$G$3 -> TRUE | I3: =I2<$G$3 -> FALSE | J3: FALSE | K3: FALSE | L3: FALSE | M3: FALSE | N3: FALSE | O3: FALSE | P3: FALSE | Q3: FALSE | R3: FALSE | S3: FALSE | T3: FALSE | U3: FALSE | V3: FALSE | W3: FALSE | X3: FALSE | Y3: FALSE | Z3: FALSE | AA3: FALSE | AB3: FALSE | AC3: FALSE | AD3: FALSE | AE3: FALSE | AF3: FALSE | AG3: FALSE | AH3: FALSE | AI3: FALSE | AJ3: FALSE | AK3: FALSE | AL3: FALSE | AM3: FALSE | AN3: FALSE | AO3: FALSE | AP3: FALSE | AQ3: FALSE | AR3: FALSE | AS3: FALSE | AT3: FALSE | AU3: FALSE | AV3: FALSE
B4: Operating Switch | G4: =F9 -> 25 | H4: =AND(H2>=$G$3,H2<=$G$4) -> FALSE | I4: =AND(I2>=$G$3,I2<=$G$4) -> TRUE | J4: TRUE | K4: TRUE | L4: TRUE | M4: TRUE | N4: TRUE | O4: TRUE | P4: TRUE | Q4: TRUE | R4: TRUE | S4: TRUE | T4: TRUE | U4: TRUE | V4: TRUE | W4: TRUE | X4: TRUE | Y4: TRUE | Z4: TRUE | AA4: TRUE | AB4: TRUE | AC4: TRUE | AD4: TRUE | AE4: TRUE | AF4: TRUE | AG4: TRUE | AH4: FALSE | AI4: FALSE | AJ4: FALSE | AK4: FALSE | AL4: FALSE | AM4: FALSE | AN4: FALSE | AO4: FALSE | AP4: FALSE | AQ4: FALSE | AR4: FALSE | AS4: FALSE | AT4: FALSE | AU4: FALSE | AV4: FALSE
A6: Assumptions
B7: Timing
C8: Construction Period | E8: Years | F8: 1
C9: Operating Period | E9: Years | F9: 25
B11: Operating Assumptions
C12: Capex | E12: SAR m | F12: 1200
C13: Dev Fee & Others | E13: SAR m | F13: 300
C14: Year | H14: 0 | I14: 1 | J14: 4 | K14: 6 | L14: 10 | M14: 20
C15: EBITDA | E15: SAR m | I15: =Refinancing!I15 -> 80 | J15: =Refinancing!J15 -> 85 | K15: =Refinancing!K15 -> 90 | L15: =Refinancing!L15 -> 95 | M15: =Refinancing!M15 -> 100
B17: Financing Assumptions
C18: Interest Rate
D19: Year | F19: =Refinancing!F31 -> 0 | G19: =Refinancing!G31 -> 1 | H19: =Refinancing!H31 -> 5 | I19: =Refinancing!I31 -> 10 | J19: =Refinancing!J31 -> 20
D20: Total | F20: =Refinancing!F36 -> 0.0336 | G20: =Refinancing!G36 -> 0.0361 | H20: =Refinancing!H36 -> 0.0386 | I20: =Refinancing!I36 -> 0.0411 | J20: =Refinancing!J36 -> 0.0436
C22: Credit Enhancements
D23: Cash Sweep | E23: 1
A25: Operating Cash Flows
B26: CFADS | H26: =LOOKUP(H2,14:14,15:15)*H4 -> 0 | I26: 80 | J26: 80 | K26: 80 | L26: 85 | M26: 85 | N26: 90 | O26: 90 | P26: 90 | Q26: 90 | R26: 95 | S26: 95 | T26: 95 | U26: 95 | V26: 95 | W26: 95 | X26: 95 | Y26: 95 | Z26: 95 | AA26: 95 | AB26: 100 | AC26: 100 | AD26: 100 | AE26: 100 | AF26: 100 | AG26: 100 | AH26: 0 | AI26: 0 | AJ26: 0 | AK26: 0 | AL26: 0 | AM26: 0 | AN26: 0 | AO26: 0 | AP26: 0 | AQ26: 0 | AR26: 0 | AS26: 0 | AT26: 0 | AU26: 0 | AV26: 0
B27: Reduced CFADS | E27: =Refinancing!G96 -> 0.2704456875 | F27: =1-E27 -> 0.7295543125 | H27: =H26*$F$27 -> 0 | I27: =I26*$F$27 -> 58.364345 | J27: 58.364345 | K27: 58.364345 | L27: 62.01211656 | M27: 62.01211656 | N27: 65.65988812 | O27: 65.65988812 | P27: 65.65988812 | Q27: 65.65988812 | R27: 69.30765969 | S27: 69.30765969 | T27: 69.30765969 | U27: 69.30765969 | V27: 69.30765969 | W27: 69.30765969 | X27: 69.30765969 | Y27: 69.30765969 | Z27: 69.30765969 | AA27: 69.30765969 | AB27: 72.95543125 | AC27: 72.95543125 | AD27: 72.95543125 | AE27: 72.95543125 | AF27: 72.95543125 | AG27: 72.95543125 | AH27: 0 | AI27: 0 | AJ27: 0 | AK27: 0 | AL27: 0 | AM27: 0 | AN27: 0 | AO27: 0 | AP27: 0 | AQ27: 0 | AR27: 0 | AS27: 0 | AT27: 0 | AU27: 0 | AV27: 0
B29: Capex | G29: =F12 -> 1200 | H29: =$G$29*H3 -> 1200 | I29: 0 | J29: 0 | K29: 0 | L29: 0 | M29: 0 | N29: 0 | O29: 0 | P29: 0 | Q29: 0 | R29: 0 | S29: 0 | T29: 0 | U29: 0 | V29: 0 | W29: 0 | X29: 0 | Y29: 0 | Z29: 0 | AA29: 0 | AB29: 0 | AC29: 0 | AD29: 0 | AE29: 0 | AF29: 0 | AG29: 0 | AH29: 0 | AI29: 0 | AJ29: 0 | AK29: 0 | AL29: 0 | AM29: 0 | AN29: 0 | AO29: 0 | AP29: 0 | AQ29: 0 | AR29: 0 | AS29: 0 | AT29: 0 | AU29: 0 | AV29: 0
B30: Project Cash Flow | H30: =H26-H29 -> -1200 | I30: 80 | J30: 80 | K30: 80 | L30: 85 | M30: 85 | N30: 90 | O30: 90 | P30: 90 | Q30: 90 | R30: 95 | S30: 95 | T30: 95 | U30: 95 | V30: 95 | W30: 95 | X30: 95 | Y30: 95 | Z30: 95 | AA30: 95 | AB30: 100 | AC30: 100 | AD30: 100 | AE30: 100 | AF30: 100 | AG30: 100 | AH30: 0 | AI30: 0 | AJ30: 0 | AK30: 0 | AL30: 0 | AM30: 0 | AN30: 0 | AO30: 0 | AP30: 0 | AQ30: 0 | AR30: 0 | AS30: 0 | AT30: 0 | AU30: 0 | AV30: 0
B31: Project IRR | F31: =IRR(30:30) -> 0.05611951181
A33: Debt Schedule/ Cash Sweep
C34: Opening Balance | I34: =H36 -> 1051.464617 | J34: =I36 -> 1031.058144 | K34: 1009.914998 | L34: 988.0085849 | M34: 961.6635783 | N34: 936.7716759 | O34: 907.2711744 | P34: 876.6319536 | Q34: 844.8100589 | R34: 811.7598391 | S34: 775.8155088 | T34: 738.3938665 | U34: 699.4341947 | V34: 658.8732804 | W34: 616.6453126 | X34: 572.6817752 | Y34: 526.9113365 | Z34: 479.2597328 | AA34: 429.6496481 | AB34: 378.000589 | AC34: 321.5259834 | AD34: 262.589085 | AE34: 201.0825379 | AF34: 136.8943053 | AG34: 69.90746574 | AH34: 1.847411113e-13 | AI34: 1.927958238e-13 | AJ34: 2.012017217e-13 | AK34: 2.099741167e-13 | AL34: 2.191289882e-13 | AM34: 2.286830121e-13 | AN34: 2.386535914e-13 | AO34: 2.49058888e-13 | AP34: 2.599178555e-13 | AQ34: 2.71250274e-13 | AR34: 2.83076786e-13 | AS34: 2.954189339e-13 | AT34: 3.082991994e-13 | AU34: 3.217410445e-13 | AV34: 3.35768954e-13
C35: Cash Sweep | I35: =I46 -> 20.40647233 | J35: =MIN(J46,J34) -> 21.14314598 | K35: 21.90641355 | L35: 26.34500664 | M35: 24.89190244 | N35: 29.50050143 | O35: 30.63922079 | P35: 31.82189471 | Q35: 33.05021985 | R35: 35.9443303 | S35: 37.42164227 | T35: 38.95967177 | U35: 40.56091428 | V35: 42.22796786 | W35: 43.96353734 | X35: 45.77043872 | Y35: 47.65160375 | Z35: 49.61008467 | AA35: 51.64905915 | AB35: 56.47460557 | AC35: 58.93689837 | AD35: 61.50654714 | AE35: 64.1882326 | AF35: 66.98683954 | AG35: 69.90746574 | AH35: -8.054712453e-15 | AI35: -8.405897916e-15 | AJ35: -8.772395065e-15 | AK35: -9.154871489e-15 | AL35: -9.554023886e-15 | AM35: -9.970579328e-15 | AN35: -1.040529659e-14 | AO35: -1.085896752e-14 | AP35: -1.13324185e-14 | AQ35: -1.182651195e-14 | AR35: -1.234214787e-14 | AS35: -1.288026552e-14 | AT35: -1.344184509e-14 | AU35: -1.402790954e-14 | AV35: -1.463952639e-14
C36: Closing Balance | G36: =Refinancing!G64 -> 1051.464617 | H36: =G36 -> 1051.464617 | I36: =I34-I35 -> 1031.058144 | J36: 1009.914998 | K36: 988.0085849 | L36: 961.6635783 | M36: 936.7716759 | N36: 907.2711744 | O36: 876.6319536 | P36: 844.8100589 | Q36: 811.7598391 | R36: 775.8155088 | S36: 738.3938665 | T36: 699.4341947 | U36: 658.8732804 | V36: 616.6453126 | W36: 572.6817752 | X36: 526.9113365 | Y36: 479.2597328 | Z36: 429.6496481 | AA36: 378.000589 | AB36: 321.5259834 | AC36: 262.589085 | AD36: 201.0825379 | AE36: 136.8943053 | AF36: 69.90746574 | AG36: 1.847411113e-13 | AH36: 1.927958238e-13 | AI36: 2.012017217e-13 | AJ36: 2.099741167e-13 | AK36: 2.191289882e-13 | AL36: 2.286830121e-13 | AM36: 2.386535914e-13 | AN36: 2.49058888e-13 | AO36: 2.599178555e-13 | AP36: 2.71250274e-13 | AQ36: 2.83076786e-13 | AR36: 2.954189339e-13 | AS36: 3.082991994e-13 | AT36: 3.217410445e-13 | AU36: 3.35768954e-13 | AV36: 3.504084804e-13
C37: Interest Rate | H37: =LOOKUP(H2,19:19,20:20) -> 0.0336 | I37: 0.0361 | J37: 0.0361 | K37: 0.0361 | L37: 0.0361 | M37: 0.0386 | N37: 0.0386 | O37: 0.0386 | P37: 0.0386 | Q37: 0.0386 | R37: 0.0411 | S37: 0.0411 | T37: 0.0411 | U37: 0.0411 | V37: 0.0411 | W37: 0.0411 | X37: 0.0411 | Y37: 0.0411 | Z37: 0.0411 | AA37: 0.0411 | AB37: 0.0436 | AC37: 0.0436 | AD37: 0.0436 | AE37: 0.0436 | AF37: 0.0436 | AG37: 0.0436 | AH37: 0.0436 | AI37: 0.0436 | AJ37: 0.0436 | AK37: 0.0436 | AL37: 0.0436 | AM37: 0.0436 | AN37: 0.0436 | AO37: 0.0436 | AP37: 0.0436 | AQ37: 0.0436 | AR37: 0.0436 | AS37: 0.0436 | AT37: 0.0436 | AU37: 0.0436 | AV37: 0.0436
C38: Interest | I38: =I37*I34 -> 37.95787267 | J38: 37.22119902 | K38: 36.45793145 | L38: 35.66710992 | M38: 37.12021412 | N38: 36.15938669 | O38: 35.02066733 | P38: 33.83799341 | Q38: 32.60966827 | R38: 33.36332939 | S38: 31.88601741 | T38: 30.34798791 | U38: 28.7467454 | V38: 27.07969183 | W38: 25.34412235 | X38: 23.53722096 | Y38: 21.65605593 | Z38: 19.69757502 | AA38: 17.65860054 | AB38: 16.48082568 | AC38: 14.01853288 | AD38: 11.44888411 | AE38: 8.767198651 | AF38: 5.96859171 | AG38: 3.047965506 | AH38: 8.054712453e-15 | AI38: 8.405897916e-15 | AJ38: 8.772395065e-15 | AK38: 9.154871489e-15 | AL38: 9.554023886e-15 | AM38: 9.970579328e-15 | AN38: 1.040529659e-14 | AO38: 1.085896752e-14 | AP38: 1.13324185e-14 | AQ38: 1.182651195e-14 | AR38: 1.234214787e-14 | AS38: 1.288026552e-14 | AT38: 1.344184509e-14 | AU38: 1.402790954e-14 | AV38: 1.463952639e-14
B40: Match of column when debt is Zero | G40: =MATCH(0,36:36,0) ->  | AE40: =COLUMN() -> 31
B41: Index to find here | G41: =INDEX(2:2,G40) -> 
A43: Cash Flow Waterfall
B44: CFADS | H44: =H27 -> 0 | I44: 58.364345 | J44: 58.364345 | K44: 58.364345 | L44: 62.01211656 | M44: 62.01211656 | N44: 65.65988812 | O44: 65.65988812 | P44: 65.65988812 | Q44: 65.65988812 | R44: 69.30765969 | S44: 69.30765969 | T44: 69.30765969 | U44: 69.30765969 | V44: 69.30765969 | W44: 69.30765969 | X44: 69.30765969 | Y44: 69.30765969 | Z44: 69.30765969 | AA44: 69.30765969 | AB44: 72.95543125 | AC44: 72.95543125 | AD44: 72.95543125 | AE44: 72.95543125 | AF44: 72.95543125 | AG44: 72.95543125 | AH44: 0 | AI44: 0 | AJ44: 0 | AK44: 0 | AL44: 0 | AM44: 0 | AN44: 0 | AO44: 0 | AP44: 0 | AQ44: 0 | AR44: 0 | AS44: 0 | AT44: 0 | AU44: 0 | AV44: 0
B45: Less Interest Expense | H45: =H38 -> 0 | I45: 37.95787267 | J45: 37.22119902 | K45: 36.45793145 | L45: 35.66710992 | M45: 37.12021412 | N45: 36.15938669 | O45: 35.02066733 | P45: 33.83799341 | Q45: 32.60966827 | R45: 33.36332939 | S45: 31.88601741 | T45: 30.34798791 | U45: 28.7467454 | V45: 27.07969183 | W45: 25.34412235 | X45: 23.53722096 | Y45: 21.65605593 | Z45: 19.69757502 | AA45: 17.65860054 | AB45: 16.48082568 | AC45: 14.01853288 | AD45: 11.44888411 | AE45: 8.767198651 | AF45: 5.96859171 | AG45: 3.047965506 | AH45: 8.054712453e-15 | AI45: 8.405897916e-15 | AJ45: 8.772395065e-15 | AK45: 9.154871489e-15 | AL45: 9.554023886e-15 | AM45: 9.970579328e-15 | AN45: 1.040529659e-14 | AO45: 1.085896752e-14 | AP45: 1.13324185e-14 | AQ45: 1.182651195e-14 | AR45: 1.234214787e-14 | AS45: 1.288026552e-14 | AT45: 1.344184509e-14 | AU45: 1.402790954e-14 | AV45: 1.463952639e-14
C46: Cash Flow After Interest | H46: =H44-H45 -> 0 | I46: =I44-I45 -> 20.40647233 | J46: 21.14314598 | K46: 21.90641355 | L46: 26.34500664 | M46: 24.89190244 | N46: 29.50050143 | O46: 30.63922079 | P46: 31.82189471 | Q46: 33.05021985 | R46: 35.9443303 | S46: 37.42164227 | T46: 38.95967177 | U46: 40.56091428 | V46: 42.22796786 | W46: 43.96353734 | X46: 45.77043872 | Y46: 47.65160375 | Z46: 49.61008467 | AA46: 51.64905915 | AB46: 56.47460557 | AC46: 58.93689837 | AD46: 61.50654714 | AE46: 64.1882326 | AF46: 66.98683954 | AG46: 69.90746574 | AH46: -8.054712453e-15 | AI46: -8.405897916e-15 | AJ46: -8.772395065e-15 | AK46: -9.154871489e-15 | AL46: -9.554023886e-15 | AM46: -9.970579328e-15 | AN46: -1.040529659e-14 | AO46: -1.085896752e-14 | AP46: -1.13324185e-14 | AQ46: -1.182651195e-14 | AR46: -1.234214787e-14 | AS46: -1.288026552e-14 | AT46: -1.344184509e-14 | AU46: -1.402790954e-14 | AV46: -1.463952639e-14
B47: Less Cash Sweep | H47: =MIN(H34,H46) -> 0 | I47: 20.40647233 | J47: 21.14314598 | K47: 21.90641355 | L47: 26.34500664 | M47: 24.89190244 | N47: 29.50050143 | O47: 30.63922079 | P47: 31.82189471 | Q47: 33.05021985 | R47: 35.9443303 | S47: 37.42164227 | T47: 38.95967177 | U47: 40.56091428 | V47: 42.22796786 | W47: 43.96353734 | X47: 45.77043872 | Y47: 47.65160375 | Z47: 49.61008467 | AA47: 51.64905915 | AB47: 56.47460557 | AC47: 58.93689837 | AD47: 61.50654714 | AE47: 64.1882326 | AF47: 66.98683954 | AG47: 69.90746574 | AH47: -8.054712453e-15 | AI47: -8.405897916e-15 | AJ47: -8.772395065e-15 | AK47: -9.154871489e-15 | AL47: -9.554023886e-15 | AM47: -9.970579328e-15 | AN47: -1.040529659e-14 | AO47: -1.085896752e-14 | AP47: -1.13324185e-14 | AQ47: -1.182651195e-14 | AR47: -1.234214787e-14 | AS47: -1.288026552e-14 | AT47: -1.344184509e-14 | AU47: -1.402790954e-14 | AV47: -1.463952639e-14
C48: Dividends | H48: =H46-H47 -> 0 | I48: =I46-I47 -> 0 | J48: 0 | K48: 0 | L48: 0 | M48: 0 | N48: 0 | O48: 0 | P48: 0 | Q48: 0 | R48: 0 | S48: 0 | T48: 0 | U48: 0 | V48: 0 | W48: 0 | X48: 0 | Y48: 0 | Z48: 0 | AA48: 0 | AB48: 0 | AC48: 0 | AD48: 0 | AE48: 0 | AF48: 0 | AG48: 0 | AH48: 0 | AI48: 0 | AJ48: 0 | AK48: 0 | AL48: 0 | AM48: 0 | AN48: 0 | AO48: 0 | AP48: 0 | AQ48: 0 | AR48: 0 | AS48: 0 | AT48: 0 | AU48: 0 | AV48: 0
B50: LLCR
C51: Loan Life Switch | H51: =Refinancing!H50 -> FALSE | I51: =Refinancing!I50 -> TRUE | J51: =Refinancing!J50 -> TRUE | K51: =Refinancing!K50 -> TRUE | L51: =Refinancing!L50 -> TRUE | M51: =Refinancing!M50 -> TRUE | N51: =Refinancing!N50 -> TRUE | O51: =Refinancing!O50 -> TRUE | P51: =Refinancing!P50 -> TRUE | Q51: =Refinancing!Q50 -> TRUE | R51: =Refinancing!R50 -> TRUE | S51: =Refinancing!S50 -> TRUE | T51: =Refinancing!T50 -> TRUE | U51: =Refinancing!U50 -> TRUE | V51: =Refinancing!V50 -> TRUE | W51: =Refinancing!W50 -> TRUE | X51: =Refinancing!X50 -> TRUE | Y51: =Refinancing!Y50 -> TRUE | Z51: =Refinancing!Z50 -> TRUE | AA51: =Refinancing!AA50 -> TRUE | AB51: =Refinancing!AB50 -> TRUE | AC51: =Refinancing!AC50 -> TRUE | AD51: =Refinancing!AD50 -> TRUE | AE51: =Refinancing!AE50 -> FALSE | AF51: =Refinancing!AF50 -> FALSE | AG51: =Refinancing!AG50 -> FALSE | AH51: =Refinancing!AH50 -> FALSE | AI51: =Refinancing!AI50 -> FALSE | AJ51: =Refinancing!AJ50 -> FALSE | AK51: =Refinancing!AK50 -> FALSE | AL51: =Refinancing!AL50 -> FALSE | AM51: =Refinancing!AM50 -> FALSE | AN51: =Refinancing!AN50 -> FALSE | AO51: =Refinancing!AO50 -> FALSE | AP51: =Refinancing!AP50 -> FALSE | AQ51: =Refinancing!AQ50 -> FALSE | AR51: =Refinancing!AR50 -> FALSE | AS51: =Refinancing!AS50 -> FALSE | AT51: =Refinancing!AT50 -> FALSE | AU51: =Refinancing!AU50 -> FALSE | AV51: =Refinancing!AV50 -> FALSE
C52: CFADS over Loan Life | H52: =H51*H27 -> 0 | I52: =I51*I27 -> 58.364345 | J52: 58.364345 | K52: 58.364345 | L52: 62.01211656 | M52: 62.01211656 | N52: 65.65988812 | O52: 65.65988812 | P52: 65.65988812 | Q52: 65.65988812 | R52: 69.30765969 | S52: 69.30765969 | T52: 69.30765969 | U52: 69.30765969 | V52: 69.30765969 | W52: 69.30765969 | X52: 69.30765969 | Y52: 69.30765969 | Z52: 69.30765969 | AA52: 69.30765969 | AB52: 72.95543125 | AC52: 72.95543125 | AD52: 72.95543125 | AE52: 0 | AF52: 0 | AG52: 0 | AH52: 0 | AI52: 0 | AJ52: 0 | AK52: 0 | AL52: 0 | AM52: 0 | AN52: 0 | AO52: 0 | AP52: 0 | AQ52: 0 | AR52: 0 | AS52: 0 | AT52: 0 | AU52: 0 | AV52: 0
C53: Interest Rate Index | H53: =Refinancing!H54 -> 1 | I53: =Refinancing!I54 -> 1.0361 | J53: =Refinancing!J54 -> 1.07350321 | K53: =Refinancing!K54 -> 1.112256676 | L53: =Refinancing!L54 -> 1.152409142 | M53: =Refinancing!M54 -> 1.196892135 | N53: =Refinancing!N54 -> 1.243092171 | O53: =Refinancing!O54 -> 1.291075529 | P53: =Refinancing!P54 -> 1.340911044 | Q53: =Refinancing!Q54 -> 1.392670211 | R53: =Refinancing!R54 -> 1.449908956 | S53: =Refinancing!S54 -> 1.509500214 | T53: =Refinancing!T54 -> 1.571540673 | U53: =Refinancing!U54 -> 1.636130995 | V53: =Refinancing!V54 -> 1.703375979 | W53: =Refinancing!W54 -> 1.773384732 | X53: =Refinancing!X54 -> 1.846270844 | Y53: =Refinancing!Y54 -> 1.922152576 | Z53: =Refinancing!Z54 -> 2.001153047 | AA53: =Refinancing!AA54 -> 2.083400437 | AB53: =Refinancing!AB54 -> 2.174236696 | AC53: =Refinancing!AC54 -> 2.269033416 | AD53: =Refinancing!AD54 -> 2.367963273 | AE53: =Refinancing!AE54 -> 2.471206471 | AF53: =Refinancing!AF54 -> 2.578951074 | AG53: =Refinancing!AG54 -> 2.69139334 | AH53: =Refinancing!AH54 -> 2.69139334 | AI53: =Refinancing!AI54 -> 2.69139334 | AJ53: =Refinancing!AJ54 -> 2.69139334 | AK53: =Refinancing!AK54 -> 2.69139334 | AL53: =Refinancing!AL54 -> 2.69139334 | AM53: =Refinancing!AM54 -> 2.69139334 | AN53: =Refinancing!AN54 -> 2.69139334 | AO53: =Refinancing!AO54 -> 2.69139334 | AP53: =Refinancing!AP54 -> 2.69139334 | AQ53: =Refinancing!AQ54 -> 2.69139334 | AR53: =Refinancing!AR54 -> 2.69139334 | AS53: =Refinancing!AS54 -> 2.69139334 | AT53: =Refinancing!AT54 -> 2.69139334 | AU53: =Refinancing!AU54 -> 2.69139334 | AV53: =Refinancing!AV54 -> 2.69139334
C54: PV of CFADS over Loan Life | G54: =SUMPRODUCT(H52:AV52/H53:AV53) -> 966.5466875
C55: LLCR | G55: =G54/G36 -> 0.9192384337
C56: % reduction before loan cannot be repayed | G56: =(G55-1)/G55 -> -0.0878570383
B58: PLCR
C59: CFADS over Loan Life | H59: =H27 -> 0 | I59: =I27 -> 58.364345 | J59: 58.364345 | K59: 58.364345 | L59: 62.01211656 | M59: 62.01211656 | N59: 65.65988812 | O59: 65.65988812 | P59: 65.65988812 | Q59: 65.65988812 | R59: 69.30765969 | S59: 69.30765969 | T59: 69.30765969 | U59: 69.30765969 | V59: 69.30765969 | W59: 69.30765969 | X59: 69.30765969 | Y59: 69.30765969 | Z59: 69.30765969 | AA59: 69.30765969 | AB59: 72.95543125 | AC59: 72.95543125 | AD59: 72.95543125 | AE59: 72.95543125 | AF59: 72.95543125 | AG59: 72.95543125 | AH59: 0 | AI59: 0 | AJ59: 0 | AK59: 0 | AL59: 0 | AM59: 0 | AN59: 0 | AO59: 0 | AP59: 0 | AQ59: 0 | AR59: 0 | AS59: 0 | AT59: 0 | AU59: 0 | AV59: 0
C60: PV of CFADS over Loan Life | G60: =SUMPRODUCT(H59:AV59/H53:AV53) -> 1051.464617
C61: PLCR | G61: =G60/G36 -> 1
C62: % reduction before loan cannot be repayed | G62: =(G61-1)/G61 -> -2.220446049e-16

Sheet LCOE
D3: 0 | E3: 1 | F3: 2 | G3: 3 | H3: 4 | I3: 5 | J3: 6 | K3: 7 | L3: 8 | M3: 9 | N3: 10 | O3: 11 | P3: 12 | Q3: 13 | R3: 14 | S3: 15 | T3: 16 | U3: 17 | V3: 18 | W3: 19 | X3: 20
B5: CapEx | D5: 1000
B6: OpEx | E6: 50 | F6: =E6*1.02 -> 51 | G6: =F6*1.02 -> 52.02 | H6: 53.0604 | I6: 54.121608 | J6: 55.20404016 | K6: 56.30812096 | L6: 57.43428338 | M6: 58.58296905 | N6: 59.75462843 | O6: 60.949721 | P6: 62.16871542 | Q6: 63.41208973 | R6: 64.68033152 | S6: 65.97393815 | T6: 67.29341692 | U6: 68.63928525 | V6: 70.01207096 | W6: 71.41231238 | X6: 72.84055863
B8: Generation | E8: 100 | F8: =E8*0.99 -> 99 | G8: =F8*0.99 -> 98.01 | H8: 97.0299 | I8: 96.059601 | J8: 95.09900499 | K8: 94.14801494 | L8: 93.20653479 | M8: 92.27446944 | N8: 91.35172475 | O8: 90.4382075 | P8: 89.53382543 | Q8: 88.63848717 | R8: 87.7521023 | S8: 86.87458128 | T8: 86.00583546 | U8: 85.14577711 | V8: 84.29431934 | W8: 83.45137615 | X8: 82.61686238
E10: 0.2
B11: Price | E11: 1.2 | F11: =E11*(1+$E$10) -> 1.44 | G11: =F11*(1+$E$10) -> 1.728 | H11: 2.0736 | I11: 2.48832 | J11: 2.985984 | K11: 3.5831808 | L11: 4.29981696 | M11: 5.159780352 | N11: 6.191736422 | O11: 7.430083707 | P11: 8.916100448 | Q11: 10.69932054 | R11: 12.83918465 | S11: 15.40702157 | T11: 18.48842589 | U11: 22.18611107 | V11: 26.62333328 | W11: 31.94799994 | X11: 38.33759992
B14: Revenues | E14: =E11*E8 -> 120 | F14: =F11*F8 -> 142.56 | G14: 169.36128 | H14: 201.2012006 | I14: 239.0270264 | J14: 283.9641073 | K14: 337.3493595 | L14: 400.7710391 | M14: 476.1159944 | N14: 565.6258014 | O14: 671.963452 | P14: 798.292581 | Q14: 948.3715862 | R14: 1126.665444 | S14: 1338.478548 | T14: 1590.112515 | U14: 1889.053668 | V14: 2244.195757 | W14: 2666.10456 | X14: 3167.332217
B15: Operating Cost | E15: =E6 -> 50 | F15: =F6 -> 51 | G15: 52.02 | H15: 53.0604 | I15: 54.121608 | J15: 55.20404016 | K15: 56.30812096 | L15: 57.43428338 | M15: 58.58296905 | N15: 59.75462843 | O15: 60.949721 | P15: 62.16871542 | Q15: 63.41208973 | R15: 64.68033152 | S15: 65.97393815 | T15: 67.29341692 | U15: 68.63928525 | V15: 70.01207096 | W15: 71.41231238 | X15: 72.84055863
B16: CapEx | D16: =D5 -> 1000
B17: Project CF | D17: =D14-D15-D16 -> -1000 | E17: =E14-E15-E16 -> 70 | F17: 91.56 | G17: 117.34128 | H17: 148.1408006 | I17: 184.9054184 | J17: 228.7600672 | K17: 281.0412385 | L17: 343.3367557 | M17: 417.5330254 | N17: 505.8711729 | O17: 611.013731 | P17: 736.1238656 | Q17: 884.9594965 | R17: 1061.985113 | S17: 1272.50461 | T17: 1522.819098 | U17: 1820.414383 | V17: 2174.183686 | W17: 2594.692247 | X17: 3094.491658
B18: Project IRR | D18: =IRR(17:17) -> 0.2528546308
B19: Average | D19: =AVERAGE(E11:X11) -> 11.20127998
B20: SEC LCOE | D20: =NPV(D18,E14:X14)/NPV(D18,E8:X8) -> 3.212669765
A22: LCOE Engineer Method
B23: EPC | D23: =D5 -> 1000
B24: PV of O&M | D24: =NPV(D18,D6:X6) -> 211.2116509
B25: Total | D25: =D23+D24 -> 1211.211651
B26: PV of Generation | D26: =NPV(D18,D8:X8) -> 377.0109409
B27: LCOE | D27: =D25/D26 -> 3.212669765
B30: Generation | E30: =E8 -> 100 | F30: =F8 -> 99 | G30: 98.01 | H30: 97.0299 | I30: 96.059601 | J30: 95.09900499 | K30: 94.14801494 | L30: 93.20653479 | M30: 92.27446944 | N30: 91.35172475 | O30: 90.4382075 | P30: 89.53382543 | Q30: 88.63848717 | R30: 87.7521023 | S30: 86.87458128 | T30: 86.00583546 | U30: 85.14577711 | V30: 84.29431934 | W30: 83.45137615 | X30: 82.61686238
B31: Discount Rate | E31: =1/(1+$D$18)^E3 -> 0.798177199 | F31: =1/(1+$D$18)^F3 -> 0.6370868411 | G31: 0.5085081903 | H31: 0.4058796431 | I31: 0.3239638766 | J31: 0.2585805796 | K31: 0.2063931228 | L31: 0.1647382846 | M31: 0.1314903426 | N31: 0.1049525934 | O31: 0.083770767 | P31: 0.06686391617 | Q31: 0.05336925332 | R31: 0.04259812113 | S31: 0.03400084901 | T31: 0.02713870243 | U31: 0.02166149349 | V31: 0.0172897102 | W31: 0.01380025246 | X31: 0.01101504685
B32: Generation Weight | E32: =E30/SUM(30:30) -> 0.05491697415 | F32: =F30/SUM(30:30) -> 0.0543678044 | G32: 0.05382412636 | H32: 0.0532858851 | I32: 0.05275302625 | J32: 0.05222549598 | K32: 0.05170324102 | L32: 0.05118620861 | M32: 0.05067434653 | N32: 0.05016760306 | O32: 0.04966592703 | P32: 0.04916926776 | Q32: 0.04867757508 | R32: 0.04819079933 | S32: 0.04770889134 | T32: 0.04723180243 | U32: 0.0467594844 | V32: 0.04629188956 | W32: 0.04582897066 | X32: 0.04537068095
B33: Discount Weight | E33: =E31/SUM(31:31) -> 0.2040706487 | F33: =F31/SUM(31:31) -> 0.1628845388 | G33: 0.1300107249 | H33: 0.1037715963 | I33: 0.08282812206 | J33: 0.06611151847 | K33: 0.05276870663 | L33: 0.04211877846 | M33: 0.03361824862 | N33: 0.02683331952 | O33: 0.02141774381 | P33: 0.01709515477 | Q33: 0.01364496275 | R33: 0.01089109815 | S33: 0.008693026214 | T33: 0.006938575314 | U33: 0.00553821261 | V33: 0.004420475029 | W33: 0.003528322377 | X33: 0.002816226472
B34: Combined | E34: =E33*E32 -> 0.01120694254 | F34: =F33*F32 -> 0.008855674746 | G34: 0.006997713688 | H34: 0.005529561356 | I34: 0.004369434097 | J34: 0.003452706842 | K34: 0.002728313158 | L34: 0.002155900581 | M34: 0.00170358278 | N34: 0.001346163322 | O34: 0.001063732101 | P34: 0.0008405562421 | Q34: 0.0006642036987 | R34: 0.0005248507253 | S34: 0.000414734643 | T34: 0.0003277214184 | U34: 0.0002589639661 | V34: 0.0002046321418 | W34: 0.0001616993827 | X34: 0.0001277741128
B35: Combined Weight | E35: =E34/SUM(34:34) -> 0.2117119458 | F35: =F34/SUM(34:34) -> 0.1672938115 | G35: 0.1321948048 | H35: 0.1044597302 | I35: 0.08254360113 | J35: 0.06522557614 | K35: 0.051540952 | L35: 0.04072742457 | M35: 0.03218262465 | N35: 0.02543056283 | O35: 0.02009511446 | P35: 0.01587906755 | Q35: 0.01254756656 | R35: 0.009915029719 | S35: 0.007834811143 | T35: 0.006191031937 | U35: 0.004892125125 | V35: 0.003865734902 | W35: 0.003054686042 | X35: 0.002413798941
B36: LCOE with Weighted Average | D36: =SUMPRODUCT(35:35,11:11) -> 3.212669765

Sheet LC Fees
G4: 1 | H4: 2 | I4: 3 | J4: 4 | K4: 5 | L4: 6 | M4: 7 | N4: 8 | O4: 9 | P4: 10 | Q4: 11 | R4: 12 | S4: 13 | T4: 14 | U4: 15 | V4: 16 | W4: 17 | X4: 18 | Y4: 19 | Z4: 20
B5: CFADS | G5: 100 | H5: =G5*1.02 -> 102 | I5: =H5*1.02 -> 104.04 | J5: 106.1208 | K5: 108.243216 | L5: 110.4080803 | M5: 112.6162419 | N5: 114.8685668 | O5: 117.1659381 | P5: 119.5092569 | Q5: 121.899442 | R5: 124.3374308 | S5: 126.8241795 | T5: 129.360663 | U5: 131.9478763 | V5: 134.5868338 | W5: 137.2785705 | X5: 140.0241419 | Y5: 142.8246248 | Z5: 145.6811173
B6: Interest Rate | E6: 0.05
B7: Fee % | E7: 0.01
B8: Target DSCR | E8: 1.3
B10: Target DS | G10: =G5/$E$8 -> 76.92307692 | H10: =H5/$E$8 -> 78.46153846 | I10: 80.03076923 | J10: 81.63138462 | K10: 83.26401231 | L10: 84.92929255 | M10: 86.6278784 | N10: 88.36043597 | O10: 90.12764469 | P10: 91.93019759 | Q10: 93.76880154 | R10: 95.64417757 | S10: 97.55706112 | T10: 99.50820234 | U10: 101.4983664 | V10: 103.5283337 | W10: 105.5989004 | X10: 107.7108784 | Y10: 109.865096 | Z10: 112.0623979
B11: Target DS - Fees | G11: =G10-G20 -> 66.84849165 | H11: =H10-H20 -> 68.55170884 | I11: 70.31096522 | J11: 72.12870006 | K11: 74.00748052 | L11: 75.95000899 | M11: 77.95913075 | N11: 80.03784225 | O11: 82.18929971 | P11: 84.41682835 | Q11: 86.72393213 | R11: 89.11430402 | S11: 91.59183694 | T11: 94.16063533 | U11: 96.82502738 | V11: 99.58957804 | W11: 102.4591027 | X11: 105.4386819 | Y11: 108.5336764 | Z11: 111.7497441
B12: NPV of DS | E12: =NPV(E6,11:11) -> 1037.203056
B13: NPV of Fees
E14: =E12-E13 -> 1037.203056
B16: Opening Balance | G16: =E18 -> 1037.203056 | H16: =G18 -> 1022.214718 | I16: 1004.773745 | J16: 984.7014667 | K16: 961.8078399 | L16: 935.8907514 | M16: 906.73528 | N16: 874.1129132 | O16: 837.7807166 | P16: 797.4804528 | Q16: 752.937647 | R16: 703.8605973 | S16: 649.9393231 | T16: 590.8444523 | U16: 526.2260396 | V16: 455.7123142 | W16: 378.9083519 | X16: 295.3946668 | Y16: 204.7257182 | Z16: 106.4283277
B17: Less: Repayment | G17: =G10-G19-G20 -> 14.98833883 | H17: =H10-H19-H20 -> 17.44097296 | I17: 20.07227799 | J17: 22.89362673 | K17: 25.91708853 | L17: 29.15547142 | M17: 32.62236675 | N17: 36.33219659 | O17: 40.30026388 | P17: 44.54280571 | Q17: 49.07704978 | R17: 53.92127415 | S17: 59.09487078 | T17: 64.61841271 | U17: 70.5137254 | V17: 76.80396233 | W17: 83.51368512 | X17: 90.66894853 | Y17: 98.29739051 | Z17: 106.4283277
B18: Closing Balance | E18: =E14 -> 1037.203056 | G18: =G16-G17 -> 1022.214718 | H18: =H16-H17 -> 1004.773745 | I18: 984.7014667 | J18: 961.8078399 | K18: 935.8907514 | L18: 906.73528 | M18: 874.1129132 | N18: 837.7807166 | O18: 797.4804528 | P18: 752.937647 | Q18: 703.8605973 | R18: 649.9393231 | S18: 590.8444523 | T18: 526.2260396 | U18: 455.7123142 | V18: 378.9083519 | W18: 295.3946668 | X18: 204.7257182 | Y18: 106.4283277 | Z18: -7.673861546e-13
B19: Interest | G19: =G16*$E$6 -> 51.86015282 | H19: =H16*$E$6 -> 51.11073588 | I19: 50.23868723 | J19: 49.23507333 | K19: 48.090392 | L19: 46.79453757 | M19: 45.336764 | N19: 43.70564566 | O19: 41.88903583 | P19: 39.87402264 | Q19: 37.64688235 | R19: 35.19302986 | S19: 32.49696616 | T19: 29.54222262 | U19: 26.31130198 | V19: 22.78561571 | W19: 18.94541759 | X19: 14.76973334 | Y19: 10.23628591 | Z19: 5.321416387
B20: Fees | G20: 10.07458527 | H20: 9.909829617 | I20: 9.719804009 | J20: 9.502684557 | K20: 9.256531783 | L20: 8.979283566 | M20: 8.668747652 | N20: 8.322593725 | O20: 7.938344985 | P20: 7.513369233 | Q20: 7.044869407 | R20: 6.529873551 | S20: 5.965224182 | T20: 5.347567016 | U20: 4.673339008 | V20: 3.938755679 | W20: 3.139797679 | X20: 2.272196534 | Y20: 1.331419543 | Z20: 0.3126537615
B21: Total DS | G21: =G17+G19+G20 -> 76.92307692 | H21: =H17+H19+H20 -> 78.46153846 | I21: 80.03076923 | J21: 81.63138462 | K21: 83.26401231 | L21: 84.92929255 | M21: 86.6278784 | N21: 88.36043597 | O21: 90.12764469 | P21: 91.93019759 | Q21: 93.76880154 | R21: 95.64417757 | S21: 97.55706112 | T21: 99.50820234 | U21: 101.4983664 | V21: 103.5283337 | W21: 105.5989004 | X21: 107.7108784 | Y21: 109.865096 | Z21: 112.0623979
B23: DSCR Computed | G23: =G5/G21 -> 1.3 | H23: =H5/H21 -> 1.3 | I23: 1.3 | J23: 1.3 | K23: 1.3 | L23: 1.3 | M23: 1.3 | N23: 1.3 | O23: 1.3 | P23: 1.3 | Q23: 1.3 | R23: 1.3 | S23: 1.3 | T23: 1.3 | U23: 1.3 | V23: 1.3 | W23: 1.3 | X23: 1.3 | Y23: 1.3 | Z23: 1.3
B26: Required DSRA | E26: 1 | F26: =SUM(OFFSET(F21,0,1,1,$E$26)) -> 76.92307692 | G26: =SUM(OFFSET(G21,0,1,1,$E$26)) -> 78.46153846 | H26: 80.03076923 | I26: 81.63138462 | J26: 83.26401231 | K26: 84.92929255 | L26: 86.6278784 | M26: 88.36043597 | N26: 90.12764469 | O26: 91.93019759 | P26: 93.76880154 | Q26: 95.64417757 | R26: 97.55706112 | S26: 99.50820234 | T26: 101.4983664 | U26: 103.5283337 | V26: 105.5989004 | W26: 107.7108784 | X26: 109.865096 | Y26: 112.0623979 | Z26: 0
B27: Amount in Reserve | F27: =F30 -> 0 | G27: =G30 -> 76.92307692 | H27: 78.46153846 | I27: 80.03076923 | J27: 81.63138462 | K27: 83.26401231 | L27: 84.92929255 | M27: 86.6278784 | N27: 88.36043597 | O27: 90.12764469 | P27: 91.93019759 | Q27: 93.76880154 | R27: 95.64417757 | S27: 97.55706112 | T27: 99.50820234 | U27: 101.4983664 | V27: 103.5283337 | W27: 105.5989004 | X27: 107.7108784 | Y27: 109.865096 | Z27: 112.0623979
B28: Required Deposit to DSRA | F28: =F26-F27 -> 76.92307692 | G28: =G26-G27 -> 1.538461538 | H28: 1.569230769 | I28: 1.600615385 | J28: 1.632627692 | K28: 1.665280246 | L28: 1.698585851 | M28: 1.732557568 | N28: 1.767208719 | O28: 1.802552894 | P28: 1.838603952 | Q28: 1.875376031 | R28: 1.912883551 | S28: 1.951141222 | T28: 1.990164047 | U28: 2.029967328 | V28: 2.070566674 | W28: 2.111978008 | X28: 2.154217568 | Y28: 2.197301919 | Z28: -112.0623979
B30: Opening Balance | G30: =F33 -> 76.92307692 | H30: =G33 -> 78.46153846 | I30: 80.03076923 | J30: 81.63138462 | K30: 83.26401231 | L30: 84.92929255 | M30: 86.6278784 | N30: 88.36043597 | O30: 90.12764469 | P30: 91.93019759 | Q30: 93.76880154 | R30: 95.64417757 | S30: 97.55706112 | T30: 99.50820234 | U30: 101.4983664 | V30: 103.5283337 | W30: 105.5989004 | X30: 107.7108784 | Y30: 109.865096 | Z30: 112.0623979
B31: Add: Scheduled Changes | F31: =F28 -> 76.92307692 | G31: =G28 -> 1.538461538 | H31: =H28 -> 1.569230769 | I31: 1.600615385 | J31: 1.632627692 | K31: 1.665280246 | L31: 1.698585851 | M31: 1.732557568 | N31: 1.767208719 | O31: 1.802552894 | P31: 1.838603952 | Q31: 1.875376031 | R31: 1.912883551 | S31: 1.951141222 | T31: 1.990164047 | U31: 2.029967328 | V31: 2.070566674 | W31: 2.111978008 | X31: 2.154217568 | Y31: 2.197301919 | Z31: -112.0623979
B32: Less: DSRA used for deficit
B33: Closing Balance | F33: =F30+F31-F32 -> 76.92307692 | G33: =G30+G31-G32 -> 78.46153846 | H33: =H30+H31-H32 -> 80.03076923 | I33: 81.63138462 | J33: 83.26401231 | K33: 84.92929255 | L33: 86.6278784 | M33: 88.36043597 | N33: 90.12764469 | O33: 91.93019759 | P33: 93.76880154 | Q33: 95.64417757 | R33: 97.55706112 | S33: 99.50820234 | T33: 101.4983664 | U33: 103.5283337 | V33: 105.5989004 | W33: 107.7108784 | X33: 109.865096 | Y33: 112.0623979 | Z33: 0
B34: LC Fees

Sheet Debt Funding
A1: Period | H1: 1 | I1: 2 | J1: 3 | K1: 4 | L1: 5 | M1: 6 | N1: 7 | O1: 8 | P1: 9 | Q1: 10 | R1: 11 | S1: 12 | T1: 13 | U1: 14 | V1: 15 | W1: 16 | X1: 17 | Y1: 18 | Z1: 19 | AA1: 20 | AB1: 21 | AC1: 22 | AD1: 23 | AE1: 24 | AF1: 25 | AG1: 26 | AH1: 27 | AI1: 28 | AJ1: 29 | AK1: 30 | AL1: 31 | AM1: 32 | AN1: 33 | AO1: 34 | AP1: 35 | AQ1: 36 | AR1: 37 | AS1: 38 | AT1: 39 | AU1: 40 | AV1: 41 | AW1: 42 | AX1: 43 | AY1: 44 | AZ1: 45 | BA1: 46 | BB1: 47 | BC1: 48 | BD1: 49 | BE1: 50 | BF1: 50 | BG1: 50 | BH1: 50 | BI1: 50 | BJ1: 50 | BK1: 50 | BL1: 50 | BM1: 50 | BN1: 50 | BO1: 50 | BP1: 50 | BQ1: 50 | BR1: 50 | BS1: 50 | BT1: 50 | BU1: 50 | BV1: 50 | BW1: 50 | BX1: 50 | BY1: 50 | BZ1: 50 | CA1: 50 | CB1: 50 | CC1: 50 | CD1: 50 | CE1: 50 | CF1: 50 | CG1: 50 | CH1: 50 | CI1: 50 | CJ1: 50
B2: Construction Phase | G2: =F8 -> 36 | H2: =H1<=$G$2 -> TRUE | I2: =I1<=$G$2 -> TRUE | J2: TRUE | K2: TRUE | L2: TRUE | M2: TRUE | N2: TRUE | O2: TRUE | P2: TRUE | Q2: TRUE | R2: TRUE | S2: TRUE | T2: TRUE | U2: TRUE | V2: TRUE | W2: TRUE | X2: TRUE | Y2: TRUE | Z2: TRUE | AA2: TRUE | AB2: TRUE | AC2: TRUE | AD2: TRUE | AE2: TRUE | AF2: TRUE | AG2: TRUE | AH2: TRUE | AI2: TRUE | AJ2: TRUE | AK2: TRUE | AL2: TRUE | AM2: TRUE | AN2: TRUE | AO2: TRUE | AP2: TRUE | AQ2: TRUE | AR2: FALSE | AS2: FALSE | AT2: FALSE | AU2: FALSE | AV2: FALSE | AW2: FALSE | AX2: FALSE | AY2: FALSE | AZ2: FALSE | BA2: FALSE | BB2: FALSE | BC2: FALSE | BD2: FALSE | BE2: FALSE | BF2: =BF1<=$G$2 -> FALSE | BG2: FALSE | BH2: FALSE | BI2: FALSE | BJ2: FALSE | BK2: FALSE | BL2: FALSE | BM2: FALSE | BN2: FALSE | BO2: FALSE | BP2: FALSE | BQ2: FALSE | BR2: FALSE | BS2: FALSE | BT2: FALSE | BU2: FALSE | BV2: FALSE | BW2: FALSE | BX2: FALSE | BY2: FALSE | BZ2: FALSE | CA2: FALSE | CB2: FALSE | CC2: FALSE | CD2: FALSE | CE2: FALSE | CF2: FALSE | CG2: FALSE | CH2: FALSE | CI2: FALSE | CJ2: FALSE
F3: 1 | G3: 12 | H3: =IF(H2,$F$3,$G$3) -> 1 | I3: =IF(I2,$F$3,$G$3) -> 1 | J3: 1 | K3: 1 | L3: 1 | M3: 1 | N3: 1 | O3: 1 | P3: 1 | Q3: 1 | R3: 1 | S3: 1 | T3: 1 | U3: 1 | V3: 1 | W3: 1 | X3: 1 | Y3: 1 | Z3: 1 | AA3: 1 | AB3: 1 | AC3: 1 | AD3: 1 | AE3: 1 | AF3: 1 | AG3: 1 | AH3: 1 | AI3: 1 | AJ3: 1 | AK3: 1 | AL3: 1 | AM3: 1 | AN3: 1 | AO3: 1 | AP3: 1 | AQ3: 1 | AR3: 12 | AS3: 12 | AT3: 12 | AU3: 12 | AV3: 12 | AW3: 12 | AX3: 12 | AY3: 12 | AZ3: 12 | BA3: 12 | BB3: 12 | BC3: 12 | BD3: 12 | BE3: 12 | BF3: =IF(BF2,$F$3,$G$3) -> 12 | BG3: =IF(BG2,$F$3,$G$3) -> 12 | BH3: =IF(BH2,$F$3,$G$3) -> 12 | BI3: =IF(BI2,$F$3,$G$3) -> 12 | BJ3: =IF(BJ2,$F$3,$G$3) -> 12 | BK3: =IF(BK2,$F$3,$G$3) -> 12 | BL3: =IF(BL2,$F$3,$G$3) -> 12 | BM3: =IF(BM2,$F$3,$G$3) -> 12 | BN3: =IF(BN2,$F$3,$G$3) -> 12 | BO3: =IF(BO2,$F$3,$G$3) -> 12 | BP3: =IF(BP2,$F$3,$G$3) -> 12 | BQ3: =IF(BQ2,$F$3,$G$3) -> 12 | BR3: =IF(BR2,$F$3,$G$3) -> 12 | BS3: =IF(BS2,$F$3,$G$3) -> 12 | BT3: =IF(BT2,$F$3,$G$3) -> 12 | BU3: =IF(BU2,$F$3,$G$3) -> 12 | BV3: =IF(BV2,$F$3,$G$3) -> 12 | BW3: =IF(BW2,$F$3,$G$3) -> 12 | BX3: =IF(BX2,$F$3,$G$3) -> 12 | BY3: =IF(BY2,$F$3,$G$3) -> 12 | BZ3: =IF(BZ2,$F$3,$G$3) -> 12 | CA3: =IF(CA2,$F$3,$G$3) -> 12 | CB3: =IF(CB2,$F$3,$G$3) -> 12 | CC3: =IF(CC2,$F$3,$G$3) -> 12 | CD3: =IF(CD2,$F$3,$G$3) -> 12 | CE3: =IF(CE2,$F$3,$G$3) -> 12 | CF3: =IF(CF2,$F$3,$G$3) -> 12 | CG3: =IF(CG2,$F$3,$G$3) -> 12 | CH3: =IF(CH2,$F$3,$G$3) -> 12 | CI3: =IF(CI2,$F$3,$G$3) -> 12 | CJ3: =IF(CJ2,$F$3,$G$3) -> 12
B4: Start Date | G4: 2017-04-01 | H4: =EDATE(G4,H3) -> 2017-05-01 | I4: =EDATE(H4,I3) -> 2017-06-01 | J4: 2017-07-01 | K4: 2017-08-01 | L4: 2017-09-01 | M4: 2017-10-01 | N4: 2017-11-01 | O4: 2017-12-01 | P4: 2018-01-01 | Q4: 2018-02-01 | R4: 2018-03-01 | S4: 2018-04-01 | T4: 2018-05-01 | U4: 2018-06-01 | V4: 2018-07-01 | W4: 2018-08-01 | X4: 2018-09-01 | Y4: 2018-10-01 | Z4: 2018-11-01 | AA4: 2018-12-01 | AB4: 2019-01-01 | AC4: 2019-02-01 | AD4: 2019-03-01 | AE4: 2019-04-01 | AF4: 2019-05-01 | AG4: 2019-06-01 | AH4: 2019-07-01 | AI4: 2019-08-01 | AJ4: 2019-09-01 | AK4: 2019-10-01 | AL4: 2019-11-01 | AM4: 2019-12-01 | AN4: 2020-01-01 | AO4: 2020-02-01 | AP4: 2020-03-01 | AQ4: 2020-04-01 | AR4: 2021-04-01 | AS4: 2022-04-01 | AT4: 2023-04-01 | AU4: 2024-04-01 | AV4: 2025-04-01 | AW4: 2026-04-01 | AX4: 2027-04-01 | AY4: 2028-04-01 | AZ4: 2029-04-01 | BA4: 2030-04-01 | BB4: 2031-04-01 | BC4: 2032-04-01 | BD4: 2033-04-01 | BE4: 2034-04-01 | BF4: =EDATE(BE4,BF3) -> 2035-04-01 | BG4: =EDATE(BF4,BG3) -> 2036-04-01 | BH4: =EDATE(BG4,BH3) -> 2037-04-01 | BI4: =EDATE(BH4,BI3) -> 2038-04-01 | BJ4: =EDATE(BI4,BJ3) -> 2039-04-01 | BK4: =EDATE(BJ4,BK3) -> 2040-04-01 | BL4: =EDATE(BK4,BL3) -> 2041-04-01 | BM4: =EDATE(BL4,BM3) -> 2042-04-01 | BN4: =EDATE(BM4,BN3) -> 2043-04-01 | BO4: =EDATE(BN4,BO3) -> 2044-04-01 | BP4: =EDATE(BO4,BP3) -> 2045-04-01 | BQ4: =EDATE(BP4,BQ3) -> 2046-04-01 | BR4: =EDATE(BQ4,BR3) -> 2047-04-01 | BS4: =EDATE(BR4,BS3) -> 2048-04-01 | BT4: =EDATE(BS4,BT3) -> 2049-04-01 | BU4: =EDATE(BT4,BU3) -> 2050-04-01 | BV4: =EDATE(BU4,BV3) -> 2051-04-01 | BW4: =EDATE(BV4,BW3) -> 2052-04-01 | BX4: =EDATE(BW4,BX3) -> 2053-04-01 | BY4: =EDATE(BX4,BY3) -> 2054-04-01 | BZ4: =EDATE(BY4,BZ3) -> 2055-04-01 | CA4: =EDATE(BZ4,CA3) -> 2056-04-01 | CB4: =EDATE(CA4,CB3) -> 2057-04-01 | CC4: =EDATE(CB4,CC3) -> 2058-04-01 | CD4: =EDATE(CC4,CD3) -> 2059-04-01 | CE4: =EDATE(CD4,CE3) -> 2060-04-01 | CF4: =EDATE(CE4,CF3) -> 2061-04-01 | CG4: =EDATE(CF4,CG3) -> 2062-04-01 | CH4: =EDATE(CG4,CH3) -> 2063-04-01 | CI4: =EDATE(CH4,CI3) -> 2064-04-01 | CJ4: =EDATE(CI4,CJ3) -> 2065-04-01
B5: Operating Phase | E5: =G8 -> 2021-04-01 | F5: =G9 -> 2046-04-01 | G5: =COUNTIF(H5:CJ5,TRUE) -> 25 | H5: =AND(H4>=$E$5,H4<$F$5) -> FALSE | I5: =AND(I4>=$E$5,I4<$F$5) -> FALSE | J5: FALSE | K5: FALSE | L5: FALSE | M5: FALSE | N5: FALSE | O5: FALSE | P5: FALSE | Q5: FALSE | R5: FALSE | S5: FALSE | T5: FALSE | U5: FALSE | V5: FALSE | W5: FALSE | X5: FALSE | Y5: FALSE | Z5: FALSE | AA5: FALSE | AB5: FALSE | AC5: FALSE | AD5: FALSE | AE5: FALSE | AF5: FALSE | AG5: FALSE | AH5: FALSE | AI5: FALSE | AJ5: FALSE | AK5: FALSE | AL5: FALSE | AM5: FALSE | AN5: FALSE | AO5: FALSE | AP5: FALSE | AQ5: FALSE | AR5: TRUE | AS5: TRUE | AT5: TRUE | AU5: TRUE | AV5: TRUE | AW5: TRUE | AX5: TRUE | AY5: TRUE | AZ5: TRUE | BA5: TRUE | BB5: TRUE | BC5: TRUE | BD5: TRUE | BE5: TRUE | BF5: =AND(BF4>=$E$5,BF4<$F$5) -> TRUE | BG5: =AND(BG4>=$E$5,BG4<$F$5) -> TRUE | BH5: =AND(BH4>=$E$5,BH4<$F$5) -> TRUE | BI5: =AND(BI4>=$E$5,BI4<$F$5) -> TRUE | BJ5: =AND(BJ4>=$E$5,BJ4<$F$5) -> TRUE | BK5: =AND(BK4>=$E$5,BK4<$F$5) -> TRUE | BL5: =AND(BL4>=$E$5,BL4<$F$5) -> TRUE | BM5: =AND(BM4>=$E$5,BM4<$F$5) -> TRUE | BN5: =AND(BN4>=$E$5,BN4<$F$5) -> TRUE | BO5: =AND(BO4>=$E$5,BO4<$F$5) -> TRUE | BP5: =AND(BP4>=$E$5,BP4<$F$5) -> TRUE | BQ5: =AND(BQ4>=$E$5,BQ4<$F$5) -> FALSE | BR5: =AND(BR4>=$E$5,BR4<$F$5) -> FALSE | BS5: =AND(BS4>=$E$5,BS4<$F$5) -> FALSE | BT5: =AND(BT4>=$E$5,BT4<$F$5) -> FALSE | BU5: =AND(BU4>=$E$5,BU4<$F$5) -> FALSE | BV5: =AND(BV4>=$E$5,BV4<$F$5) -> FALSE | BW5: =AND(BW4>=$E$5,BW4<$F$5) -> FALSE | BX5: =AND(BX4>=$E$5,BX4<$F$5) -> FALSE | BY5: =AND(BY4>=$E$5,BY4<$F$5) -> FALSE | BZ5: =AND(BZ4>=$E$5,BZ4<$F$5) -> FALSE | CA5: =AND(CA4>=$E$5,CA4<$F$5) -> FALSE | CB5: =AND(CB4>=$E$5,CB4<$F$5) -> FALSE | CC5: =AND(CC4>=$E$5,CC4<$F$5) -> FALSE | CD5: =AND(CD4>=$E$5,CD4<$F$5) -> FALSE | CE5: =AND(CE4>=$E$5,CE4<$F$5) -> FALSE | CF5: =AND(CF4>=$E$5,CF4<$F$5) -> FALSE | CG5: =AND(CG4>=$E$5,CG4<$F$5) -> FALSE | CH5: =AND(CH4>=$E$5,CH4<$F$5) -> FALSE | CI5: =AND(CI4>=$E$5,CI4<$F$5) -> FALSE | CJ5: =AND(CJ4>=$E$5,CJ4<$F$5) -> FALSE
A7: Assumptions
B8: Construction Period | E8: Months | F8: 36 | G8: =LOOKUP(F8+1,1:1,4:4) -> 2021-04-01
B9: Operating Period | E9: Years | F9: 25 | G9: =EDATE(G8,F9*12) -> 2046-04-01
B11: CAPEX | E11: MM | F11: 1000
B12: Operating CF | E12: MM | F12: 79.57203701
B14: Funding Assumptions
C15: Debt/Capital | E15: % | F15: 0.8
B17: 1 | D17: Equity 1st | F17: =B17=$F$20 -> FALSE
B18: 2 | D18: Pro Rata | F18: =B18=$F$20 -> TRUE
D20: Pro Rata | F20: =MATCH(D20,D17:D18,0) -> 2
C22: EBL | E22: TRUE
B24: Repayment Tenor | E24: Years | F24: 23
B25: Repayment Date | E25: Date | F25: =EDATE(G8,F24*12) -> 2044-04-01
B27: Interest Rate | E27: % p.a. | F27: 0.04
B28: EBL Interest Rate | F28: 0.015
A30: Operating CF
B31: CAPEX | F31: =F11 -> 1000 | G31: =F8 -> 36 | H31: =$F$31/$G$31*H2 -> 27.77777778 | I31: =$F$31/$G$31*I2 -> 27.77777778 | J31: 27.77777778 | K31: 27.77777778 | L31: 27.77777778 | M31: 27.77777778 | N31: 27.77777778 | O31: 27.77777778 | P31: 27.77777778 | Q31: 27.77777778 | R31: 27.77777778 | S31: 27.77777778 | T31: 27.77777778 | U31: 27.77777778 | V31: 27.77777778 | W31: 27.77777778 | X31: 27.77777778 | Y31: 27.77777778 | Z31: 27.77777778 | AA31: 27.77777778 | AB31: 27.77777778 | AC31: 27.77777778 | AD31: 27.77777778 | AE31: 27.77777778 | AF31: 27.77777778 | AG31: 27.77777778 | AH31: 27.77777778 | AI31: 27.77777778 | AJ31: 27.77777778 | AK31: 27.77777778 | AL31: 27.77777778 | AM31: 27.77777778 | AN31: 27.77777778 | AO31: 27.77777778 | AP31: 27.77777778 | AQ31: 27.77777778 | AR31: 0 | AS31: 0 | AT31: 0 | AU31: 0 | AV31: 0 | AW31: 0 | AX31: 0 | AY31: 0 | AZ31: 0 | BA31: 0 | BB31: 0 | BC31: 0 | BD31: 0 | BE31: 0 | BF31: =$F$31/$G$31*BF2 -> 0 | BG31: 0 | BH31: 0 | BI31: 0 | BJ31: 0 | BK31: 0 | BL31: 0 | BM31: 0 | BN31: 0 | BO31: 0 | BP31: 0 | BQ31: 0 | BR31: 0 | BS31: 0 | BT31: 0 | BU31: 0 | BV31: 0 | BW31: 0 | BX31: 0 | BY31: 0 | BZ31: 0 | CA31: 0 | CB31: 0 | CC31: 0 | CD31: 0 | CE31: 0 | CF31: 0 | CG31: 0 | CH31: 0 | CI31: 0 | CJ31: 0
B32: CFADS | F32: =F12 -> 79.57203701 | H32: =$F$32*H5 -> 0 | I32: =$F$32*I5 -> 0 | J32: 0 | K32: 0 | L32: 0 | M32: 0 | N32: 0 | O32: 0 | P32: 0 | Q32: 0 | R32: 0 | S32: 0 | T32: 0 | U32: 0 | V32: 0 | W32: 0 | X32: 0 | Y32: 0 | Z32: 0 | AA32: 0 | AB32: 0 | AC32: 0 | AD32: 0 | AE32: 0 | AF32: 0 | AG32: 0 | AH32: 0 | AI32: 0 | AJ32: 0 | AK32: 0 | AL32: 0 | AM32: 0 | AN32: 0 | AO32: 0 | AP32: 0 | AQ32: 0 | AR32: 79.57203701 | AS32: 79.57203701 | AT32: 79.57203701 | AU32: 79.57203701 | AV32: 79.57203701 | AW32: 79.57203701 | AX32: 79.57203701 | AY32: 79.57203701 | AZ32: 79.57203701 | BA32: 79.57203701 | BB32: 79.57203701 | BC32: 79.57203701 | BD32: 79.57203701 | BE32: 79.57203701 | BF32: 79.57203701 | BG32: 79.57203701 | BH32: 79.57203701 | BI32: 79.57203701 | BJ32: 79.57203701 | BK32: 79.57203701 | BL32: 79.57203701 | BM32: 79.57203701 | BN32: 79.57203701 | BO32: 79.57203701 | BP32: 79.57203701 | BQ32: 0 | BR32: 0 | BS32: 0 | BT32: 0 | BU32: =$F$32*BU5 -> 0 | BV32: 0 | BW32: 0 | BX32: 0 | BY32: 0 | BZ32: 0 | CA32: 0 | CB32: 0 | CC32: 0 | CD32: 0 | CE32: 0 | CF32: 0 | CG32: 0 | CH32: 0 | CI32: 0 | CJ32: 0
B33: Project CF | H33: =H32-H31 -> -27.77777778 | I33: =I32-I31 -> -27.77777778 | J33: -27.77777778 | K33: -27.77777778 | L33: -27.77777778 | M33: -27.77777778 | N33: -27.77777778 | O33: -27.77777778 | P33: -27.77777778 | Q33: -27.77777778 | R33: -27.77777778 | S33: -27.77777778 | T33: -27.77777778 | U33: -27.77777778 | V33: -27.77777778 | W33: -27.77777778 | X33: -27.77777778 | Y33: -27.77777778 | Z33: -27.77777778 | AA33: -27.77777778 | AB33: -27.77777778 | AC33: -27.77777778 | AD33: -27.77777778 | AE33: -27.77777778 | AF33: -27.77777778 | AG33: -27.77777778 | AH33: -27.77777778 | AI33: -27.77777778 | AJ33: -27.77777778 | AK33: -27.77777778 | AL33: -27.77777778 | AM33: -27.77777778 | AN33: -27.77777778 | AO33: -27.77777778 | AP33: -27.77777778 | AQ33: -27.77777778 | AR33: 79.57203701 | AS33: 79.57203701 | AT33: 79.57203701 | AU33: 79.57203701 | AV33: 79.57203701 | AW33: 79.57203701 | AX33: 79.57203701 | AY33: 79.57203701 | AZ33: 79.57203701 | BA33: 79.57203701 | BB33: 79.57203701 | BC33: 79.57203701 | BD33: 79.57203701 | BE33: 79.57203701 | BF33: 79.57203701 | BG33: 79.57203701 | BH33: 79.57203701 | BI33: 79.57203701 | BJ33: 79.57203701 | BK33: 79.57203701 | BL33: 79.57203701 | BM33: 79.57203701 | BN33: 79.57203701 | BO33: 79.57203701 | BP33: 79.57203701 | BQ33: 0 | BR33: 0 | BS33: 0 | BT33: 0 | BU33: =BU32-BU31 -> 0 | BV33: 0 | BW33: 0 | BX33: 0 | BY33: 0 | BZ33: 0 | CA33: 0 | CB33: 0 | CC33: 0 | CD33: 0 | CE33: 0 | CF33: 0 | CG33: 0 | CH33: 0 | CI33: 0 | CJ33: 0
B35: Project IRR | F35: =XIRR(H33:CJ33,H4:CJ4) -> 0.05372107327
A36: Debt Sizing | F36: Total
B37: Uses of Fund
C38: Project Cost | F38: =SUM(H31:BE31) -> 1000 | G38: Computed | H38: Function | I38: Diff.
C39: IDC/Loan | F39: =H39 -> 49.15636164 | G39: =SUM(H51:BE51) -> 49.15636164 | H39: =H42 -> 49.15636164 | I39: =H39-G39 -> 0
C40: IDC/EBL | F40: =H40 -> 4.194244909 | G40: =SUM(H52:CJ52) -> 4.194244909 | H40: =I42 -> 4.194244909 | I40: =H40-G40 -> 0
D41: Total | F41: =SUM(F38:F40) -> 1053.350607
H42: =IDCaccum(2:2,50:50,F85,56:56,E44,F94) -> 49.15636164 | I42: 4.194244909 | J42: 43 | K42: 1000
B43: Sources of Fund
C44: Debt | E44: =F15 -> 0.8 | F44: =E44*F41 -> 842.6804852
C45: Equity | F45: =F41-F44 -> 210.6701213
D46: Total | F46: =SUM(F44:F45) -> 1053.350607
A48: Funding During Construction
B49: Funding Needs Analysis
C50: Periodic CapEx | H50: =H31 -> 27.77777778 | I50: =I31 -> 27.77777778 | J50: 27.77777778 | K50: 27.77777778 | L50: 27.77777778 | M50: 27.77777778 | N50: 27.77777778 | O50: 27.77777778 | P50: 27.77777778 | Q50: 27.77777778 | R50: 27.77777778 | S50: 27.77777778 | T50: 27.77777778 | U50: 27.77777778 | V50: 27.77777778 | W50: 27.77777778 | X50: 27.77777778 | Y50: 27.77777778 | Z50: 27.77777778 | AA50: 27.77777778 | AB50: 27.77777778 | AC50: 27.77777778 | AD50: 27.77777778 | AE50: 27.77777778 | AF50: 27.77777778 | AG50: 27.77777778 | AH50: 27.77777778 | AI50: 27.77777778 | AJ50: 27.77777778 | AK50: 27.77777778 | AL50: 27.77777778 | AM50: 27.77777778 | AN50: 27.77777778 | AO50: 27.77777778 | AP50: 27.77777778 | AQ50: 27.77777778 | AR50: 0 | AS50: 0 | AT50: 0 | AU50: 0 | AV50: 0 | AW50: 0 | AX50: 0 | AY50: 0 | AZ50: 0 | BA50: 0 | BB50: 0 | BC50: 0 | BD50: 0 | BE50: 0 | BF50: =BF31 -> 0 | BG50: 0 | BH50: 0 | BI50: 0 | BJ50: 0 | BK50: 0 | BL50: 0 | BM50: 0 | BN50: 0 | BO50: 0 | BP50: 0 | BQ50: 0 | BR50: 0 | BS50: 0 | BT50: 0 | BU50: 0 | BV50: 0 | BW50: 0 | BX50: 0 | BY50: 0 | BZ50: 0 | CA50: 0 | CB50: 0 | CC50: 0 | CD50: 0 | CE50: 0 | CF50: 0 | CG50: 0 | CH50: 0 | CI50: 0 | CJ50: 0
C51: Periodic IDC | H51: =H86 -> 0 | I51: =I86 -> 0.07802597086 | J51: 0.1560519417 | K51: 0.2340779126 | L51: 0.3121038834 | M51: 0.3901298543 | N51: 0.4681558251 | O51: 0.546181796 | P51: 0.6242077668 | Q51: 0.7022337377 | R51: 0.7802597086 | S51: 0.8582856794 | T51: 0.9363116503 | U51: 1.014337621 | V51: 1.092363592 | W51: 1.170389563 | X51: 1.248415534 | Y51: 1.326441505 | Z51: 1.404467475 | AA51: 1.482493446 | AB51: 1.560519417 | AC51: 1.638545388 | AD51: 1.716571359 | AE51: 1.79459733 | AF51: 1.872623301 | AG51: 1.950649271 | AH51: 2.028675242 | AI51: 2.106701213 | AJ51: 2.184727184 | AK51: 2.262753155 | AL51: 2.340779126 | AM51: 2.418805097 | AN51: 2.496831067 | AO51: 2.574857038 | AP51: 2.652883009 | AQ51: 2.73090898 | AR51: 0 | AS51: 0 | AT51: 0 | AU51: 0 | AV51: 0 | AW51: 0 | AX51: 0 | AY51: 0 | AZ51: 0 | BA51: 0 | BB51: 0 | BC51: 0 | BD51: 0 | BE51: 0 | BF51: =BF86 -> 0 | BG51: 0 | BH51: 0 | BI51: 0 | BJ51: 0 | BK51: 0 | BL51: 0 | BM51: 0 | BN51: 0 | BO51: 0 | BP51: 0 | BQ51: 0 | BR51: 0 | BS51: 0 | BT51: 0 | BU51: 0 | BV51: 0 | BW51: 0 | BX51: 0 | BY51: 0 | BZ51: 0 | CA51: 0 | CB51: 0 | CC51: 0 | CD51: 0 | CE51: 0 | CF51: 0 | CG51: 0 | CH51: 0 | CI51: 0 | CJ51: 0
C52: Periodic EBL Interest | H52: =H94 -> 0 | I52: =I94 -> 0.005462483151 | J52: 0.01102932687 | K52: 0.01670066161 | L52: 0.02247661798 | M52: 0.02835732675 | N52: 0.03434291888 | O52: 0.04043352546 | P52: 0.04662927777 | Q52: 0.05293030722 | R52: 0.05933674543 | S52: 0.06584872415 | T52: 0.07246637531 | U52: 0.07918983099 | V52: 0.08601922346 | W52: 0.09295468513 | X52: 0.09999634859 | Y52: 0.1071443466 | Z52: 0.1143988121 | AA52: 0.1217598781 | AB52: 0.1292276779 | AC52: 0.1368023449 | AD52: 0.1444840127 | AE52: 0.1522728151 | AF52: 0.1601688859 | AG52: 0.1681723593 | AH52: 0.1762833695 | AI52: 0.1845020509 | AJ52: 0.1928285381 | AK52: 0.2012629659 | AL52: 0.2098054692 | AM52: 0.2184561831 | AN52: 0.2272152429 | AO52: 0.2360827839 | AP52: 0.2450589419 | AQ52: 0.2541438524 | AR52: 0 | AS52: 0 | AT52: 0 | AU52: 0 | AV52: 0 | AW52: 0 | AX52: 0 | AY52: 0 | AZ52: 0 | BA52: 0 | BB52: 0 | BC52: 0 | BD52: 0 | BE52: 0 | BF52: =BF94 -> 0 | BG52: 0 | BH52: 0 | BI52: 0 | BJ52: 0 | BK52: 0 | BL52: 0 | BM52: 0 | BN52: 0 | BO52: 0 | BP52: 0 | BQ52: 0 | BR52: 0 | BS52: 0 | BT52: 0 | BU52: 0 | BV52: 0 | BW52: 0 | BX52: 0 | BY52: 0 | BZ52: 0 | CA52: 0 | CB52: 0 | CC52: 0 | CD52: 0 | CE52: 0 | CF52: 0 | CG52: 0 | CH52: 0 | CI52: 0 | CJ52: 0
D53: Total Funding Needs | H53: =SUM(H50:H52) -> 27.77777778 | I53: =SUM(I50:I52) -> 27.86126623 | J53: 27.94485905 | K53: 28.02855635 | L53: 28.11235828 | M53: 28.19626496 | N53: 28.28027652 | O53: 28.3643931 | P53: 28.44861482 | Q53: 28.53294182 | R53: 28.61737423 | S53: 28.70191218 | T53: 28.7865558 | U53: 28.87130523 | V53: 28.95616059 | W53: 29.04112203 | X53: 29.12618966 | Y53: 29.21136363 | Z53: 29.29664407 | AA53: 29.3820311 | AB53: 29.46752487 | AC53: 29.55312551 | AD53: 29.63883315 | AE53: 29.72464792 | AF53: 29.81056996 | AG53: 29.89659941 | AH53: 29.98273639 | AI53: 30.06898104 | AJ53: 30.1553335 | AK53: 30.2417939 | AL53: 30.32836237 | AM53: 30.41503906 | AN53: 30.50182409 | AO53: 30.5887176 | AP53: 30.67571973 | AQ53: 30.76283061 | AR53: 0 | AS53: 0 | AT53: 0 | AU53: 0 | AV53: 0 | AW53: 0 | AX53: 0 | AY53: 0 | AZ53: 0 | BA53: 0 | BB53: 0 | BC53: 0 | BD53: 0 | BE53: 0 | BF53: =SUM(BF50:BF52) -> 0 | BG53: 0 | BH53: 0 | BI53: 0 | BJ53: 0 | BK53: 0 | BL53: 0 | BM53: 0 | BN53: 0 | BO53: 0 | BP53: 0 | BQ53: 0 | BR53: 0 | BS53: 0 | BT53: 0 | BU53: 0 | BV53: 0 | BW53: 0 | BX53: 0 | BY53: 0 | BZ53: 0 | CA53: 0 | CB53: 0 | CC53: 0 | CD53: 0 | CE53: 0 | CF53: 0 | CG53: 0 | CH53: 0 | CI53: 0 | CJ53: 0
B55: Pro Rata Funding
C56: Pro Rata Funding % | H56: =H50/$F$31 -> 0.02777777778 | I56: =I50/$F$31 -> 0.02777777778 | J56: 0.02777777778 | K56: 0.02777777778 | L56: 0.02777777778 | M56: 0.02777777778 | N56: 0.02777777778 | O56: 0.02777777778 | P56: 0.02777777778 | Q56: 0.02777777778 | R56: 0.02777777778 | S56: 0.02777777778 | T56: 0.02777777778 | U56: 0.02777777778 | V56: 0.02777777778 | W56: 0.02777777778 | X56: 0.02777777778 | Y56: 0.02777777778 | Z56: 0.02777777778 | AA56: 0.02777777778 | AB56: 0.02777777778 | AC56: 0.02777777778 | AD56: 0.02777777778 | AE56: 0.02777777778 | AF56: 0.02777777778 | AG56: 0.02777777778 | AH56: 0.02777777778 | AI56: 0.02777777778 | AJ56: 0.02777777778 | AK56: 0.02777777778 | AL56: 0.02777777778 | AM56: 0.02777777778 | AN56: 0.02777777778 | AO56: 0.02777777778 | AP56: 0.02777777778 | AQ56: 0.02777777778 | AR56: 0 | AS56: 0 | AT56: 0 | AU56: 0 | AV56: 0 | AW56: 0 | AX56: 0 | AY56: 0 | AZ56: 0 | BA56: 0 | BB56: 0 | BC56: 0 | BD56: 0 | BE56: 0 | BF56: =BF50/$F$31 -> 0 | BG56: 0 | BH56: 0 | BI56: 0 | BJ56: 0 | BK56: 0 | BL56: 0 | BM56: 0 | BN56: 0 | BO56: 0 | BP56: 0 | BQ56: 0 | BR56: 0 | BS56: 0 | BT56: 0 | BU56: 0 | BV56: 0 | BW56: 0 | BX56: 0 | BY56: 0 | BZ56: 0 | CA56: 0 | CB56: 0 | CC56: 0 | CD56: 0 | CE56: 0 | CF56: 0 | CG56: 0 | CH56: 0 | CI56: 0 | CJ56: 0
C58: Debt Funded | F58: =F44 -> 842.6804852 | H58: =$F$58*H56 -> 23.40779126 | I58: =$F$58*I56 -> 23.40779126 | J58: 23.40779126 | K58: 23.40779126 | L58: 23.40779126 | M58: 23.40779126 | N58: 23.40779126 | O58: 23.40779126 | P58: 23.40779126 | Q58: 23.40779126 | R58: 23.40779126 | S58: 23.40779126 | T58: 23.40779126 | U58: 23.40779126 | V58: 23.40779126 | W58: 23.40779126 | X58: 23.40779126 | Y58: 23.40779126 | Z58: 23.40779126 | AA58: 23.40779126 | AB58: 23.40779126 | AC58: 23.40779126 | AD58: 23.40779126 | AE58: 23.40779126 | AF58: 23.40779126 | AG58: 23.40779126 | AH58: 23.40779126 | AI58: 23.40779126 | AJ58: 23.40779126 | AK58: 23.40779126 | AL58: 23.40779126 | AM58: 23.40779126 | AN58: 23.40779126 | AO58: 23.40779126 | AP58: 23.40779126 | AQ58: 23.40779126 | AR58: 0 | AS58: 0 | AT58: 0 | AU58: 0 | AV58: 0 | AW58: 0 | AX58: 0 | AY58: 0 | AZ58: 0 | BA58: 0 | BB58: 0 | BC58: 0 | BD58: 0 | BE58: 0 | BF58: =$F$58*BF56 -> 0 | BG58: 0 | BH58: 0 | BI58: 0 | BJ58: 0 | BK58: 0 | BL58: 0 | BM58: 0 | BN58: 0 | BO58: 0 | BP58: 0 | BQ58: 0 | BR58: 0 | BS58: 0 | BT58: 0 | BU58: 0 | BV58: 0 | BW58: 0 | BX58: 0 | BY58: 0 | BZ58: 0 | CA58: 0 | CB58: 0 | CC58: 0 | CD58: 0 | CE58: 0 | CF58: 0 | CG58: 0 | CH58: 0 | CI58: 0 | CJ58: 0
C59: Equity | H59: =H53-H58 -> 4.369986521 | I59: =I53-I58 -> 4.453474975 | J59: 4.53706779 | K59: 4.620765095 | L59: 4.704567023 | M59: 4.788473702 | N59: 4.872485265 | O59: 4.956601843 | P59: 5.040823566 | Q59: 5.125150566 | R59: 5.209582975 | S59: 5.294120925 | T59: 5.378764547 | U59: 5.463513973 | V59: 5.548369337 | W59: 5.633330769 | X59: 5.718398403 | Y59: 5.803572372 | Z59: 5.888852809 | AA59: 5.974239845 | AB59: 6.059733616 | AC59: 6.145334254 | AD59: 6.231041893 | AE59: 6.316856666 | AF59: 6.402778708 | AG59: 6.488808152 | AH59: 6.574945133 | AI59: 6.661189785 | AJ59: 6.747542243 | AK59: 6.834002642 | AL59: 6.920571116 | AM59: 7.007247801 | AN59: 7.094032831 | AO59: 7.180926343 | AP59: 7.267928472 | AQ59: 7.355039354 | AR59: 0 | AS59: 0 | AT59: 0 | AU59: 0 | AV59: 0 | AW59: 0 | AX59: 0 | AY59: 0 | AZ59: 0 | BA59: 0 | BB59: 0 | BC59: 0 | BD59: 0 | BE59: 0 | BF59: =BF53-BF58 -> 0 | BG59: 0 | BH59: 0 | BI59: 0 | BJ59: 0 | BK59: 0 | BL59: 0 | BM59: 0 | BN59: 0 | BO59: 0 | BP59: 0 | BQ59: 0 | BR59: 0 | BS59: 0 | BT59: 0 | BU59: 0 | BV59: 0 | BW59: 0 | BX59: 0 | BY59: 0 | BZ59: 0 | CA59: 0 | CB59: 0 | CC59: 0 | CD59: 0 | CE59: 0 | CF59: 0 | CG59: 0 | CH59: 0 | CI59: 0 | CJ59: 0
B61: Equity 1st Funding
C62: Total Equity Commitment
C63: Equity already Funded
C64: Remaining Equity to Fund
C66: Opening Balance of Equity
C67: Add: Equity Funded Min
C68: Closing Balance
C70: Debt Funded
B72: Final Funding
C73: Debt Funding
C74: Equity Funding
A76: Debt Balance
B77: Repayment
C78: Repayment Switch | E78: =G8 -> 2021-04-01 | F78: =F25 -> 2044-04-01 | G78: =COUNTIF(H78:CJ78,TRUE) -> 23 | H78: =AND(H4>=$E$78,H4<$F$78) -> FALSE | I78: =AND(I4>=$E$78,I4<$F$78) -> FALSE | J78: FALSE | K78: FALSE | L78: FALSE | M78: FALSE | N78: FALSE | O78: FALSE | P78: FALSE | Q78: FALSE | R78: FALSE | S78: FALSE | T78: FALSE | U78: FALSE | V78: FALSE | W78: FALSE | X78: FALSE | Y78: FALSE | Z78: FALSE | AA78: FALSE | AB78: FALSE | AC78: FALSE | AD78: FALSE | AE78: FALSE | AF78: FALSE | AG78: FALSE | AH78: FALSE | AI78: FALSE | AJ78: FALSE | AK78: FALSE | AL78: FALSE | AM78: FALSE | AN78: FALSE | AO78: FALSE | AP78: FALSE | AQ78: FALSE | AR78: TRUE | AS78: TRUE | AT78: TRUE | AU78: TRUE | AV78: TRUE | AW78: TRUE | AX78: TRUE | AY78: TRUE | AZ78: TRUE | BA78: TRUE | BB78: TRUE | BC78: TRUE | BD78: TRUE | BE78: TRUE | BF78: TRUE | BG78: TRUE | BH78: TRUE | BI78: TRUE | BJ78: TRUE | BK78: TRUE | BL78: TRUE | BM78: TRUE | BN78: TRUE | BO78: FALSE | BP78: FALSE | BQ78: FALSE | BR78: FALSE | BS78: FALSE | BT78: FALSE | BU78: =AND(BU4>=$E$78,BU4<$F$78) -> FALSE | BV78: FALSE | BW78: FALSE | BX78: FALSE | BY78: FALSE | BZ78: FALSE | CA78: FALSE | CB78: FALSE | CC78: FALSE | CD78: FALSE | CE78: FALSE | CF78: FALSE | CG78: FALSE | CH78: FALSE | CI78: FALSE | CJ78: FALSE
C79: Total Payment | G79: =PMT(F27,G78,-F44) -> 56.72002867 | H79: =$G$79*H78 -> 0 | I79: =$G$79*I78 -> 0 | J79: 0 | K79: 0 | L79: 0 | M79: 0 | N79: 0 | O79: 0 | P79: 0 | Q79: 0 | R79: 0 | S79: 0 | T79: 0 | U79: 0 | V79: 0 | W79: 0 | X79: 0 | Y79: 0 | Z79: 0 | AA79: 0 | AB79: 0 | AC79: 0 | AD79: 0 | AE79: 0 | AF79: 0 | AG79: 0 | AH79: 0 | AI79: 0 | AJ79: 0 | AK79: 0 | AL79: 0 | AM79: 0 | AN79: 0 | AO79: 0 | AP79: 0 | AQ79: 0 | AR79: 56.72002867 | AS79: 56.72002867 | AT79: 56.72002867 | AU79: 56.72002867 | AV79: 56.72002867 | AW79: 56.72002867 | AX79: 56.72002867 | AY79: 56.72002867 | AZ79: 56.72002867 | BA79: 56.72002867 | BB79: 56.72002867 | BC79: 56.72002867 | BD79: 56.72002867 | BE79: 56.72002867 | BF79: 56.72002867 | BG79: 56.72002867 | BH79: 56.72002867 | BI79: 56.72002867 | BJ79: 56.72002867 | BK79: 56.72002867 | BL79: 56.72002867 | BM79: 56.72002867 | BN79: 56.72002867 | BO79: 0 | BP79: 0 | BQ79: 0 | BR79: 0 | BS79: 0 | BT79: 0 | BU79: =$G$79*BU78 -> 0 | BV79: 0 | BW79: 0 | BX79: 0 | BY79: 0 | BZ79: 0 | CA79: 0 | CB79: 0 | CC79: 0 | CD79: 0 | CE79: 0 | CF79: 0 | CG79: 0 | CH79: 0 | CI79: 0 | CJ79: 0
B80: Opening Debt Balance | H80: =G83 -> 0 | I80: =H83 -> 23.40779126 | J80: 46.81558251 | K80: 70.22337377 | L80: 93.63116503 | M80: 117.0389563 | N80: 140.4467475 | O80: 163.8545388 | P80: 187.2623301 | Q80: 210.6701213 | R80: 234.0779126 | S80: 257.4857038 | T80: 280.8934951 | U80: 304.3012863 | V80: 327.7090776 | W80: 351.1168688 | X80: 374.5246601 | Y80: 397.9324514 | Z80: 421.3402426 | AA80: 444.7480339 | AB80: 468.1558251 | AC80: 491.5636164 | AD80: 514.9714076 | AE80: 538.3791989 | AF80: 561.7869902 | AG80: 585.1947814 | AH80: 608.6025727 | AI80: 632.0103639 | AJ80: 655.4181552 | AK80: 678.8259464 | AL80: 702.2337377 | AM80: 725.641529 | AN80: 749.0493202 | AO80: 772.4571115 | AP80: 795.8649027 | AQ80: 819.272694 | AR80: 842.6804852 | AS80: 819.667676 | AT80: 795.7343544 | AU80: 770.8436999 | AV80: 744.9574192 | AW80: 718.0356873 | AX80: 690.0370861 | AY80: 660.9185409 | AZ80: 630.6352539 | BA80: 599.1406354 | BB80: 566.3862321 | BC80: 532.3216527 | BD80: 496.8944902 | BE80: 460.0502411 | BF80: =BE83 -> 421.7322221 | BG80: =BF83 -> 381.8814823 | BH80: =BG83 -> 340.4367129 | BI80: =BH83 -> 297.3341528 | BJ80: =BI83 -> 252.5074902 | BK80: =BJ83 -> 205.8877612 | BL80: =BK83 -> 157.403243 | BM80: =BL83 -> 106.979344 | BN80: =BM83 -> 54.5384891 | BO80: =BN83 -> -2.131628207e-12 | BP80: =BO83 -> -2.216893336e-12 | BQ80: =BP83 -> -2.305569069e-12 | BR80: =BQ83 -> -2.305569069e-12 | BS80: =BR83 -> -2.305569069e-12 | BT80: =BS83 -> -2.305569069e-12 | BU80: =BT83 -> -2.305569069e-12 | BV80: =BU83 -> -2.305569069e-12 | BW80: =BV83 -> -2.305569069e-12 | BX80: =BW83 -> -2.305569069e-12 | BY80: =BX83 -> -2.305569069e-12 | BZ80: =BY83 -> -2.305569069e-12 | CA80: =BZ83 -> -2.305569069e-12 | CB80: =CA83 -> -2.305569069e-12 | CC80: =CB83 -> -2.305569069e-12 | CD80: =CC83 -> -2.305569069e-12 | CE80: =CD83 -> -2.305569069e-12 | CF80: =CE83 -> -2.305569069e-12 | CG80: =CF83 -> -2.305569069e-12 | CH80: =CG83 -> -2.305569069e-12 | CI80: =CH83 -> -2.305569069e-12 | CJ80: =CI83 -> -2.305569069e-12
B81: Add: Drawdowns | H81: =H58 -> 23.40779126 | I81: =I58 -> 23.40779126 | J81: 23.40779126 | K81: 23.40779126 | L81: 23.40779126 | M81: 23.40779126 | N81: 23.40779126 | O81: 23.40779126 | P81: 23.40779126 | Q81: 23.40779126 | R81: 23.40779126 | S81: 23.40779126 | T81: 23.40779126 | U81: 23.40779126 | V81: 23.40779126 | W81: 23.40779126 | X81: 23.40779126 | Y81: 23.40779126 | Z81: 23.40779126 | AA81: 23.40779126 | AB81: 23.40779126 | AC81: 23.40779126 | AD81: 23.40779126 | AE81: 23.40779126 | AF81: 23.40779126 | AG81: 23.40779126 | AH81: 23.40779126 | AI81: 23.40779126 | AJ81: 23.40779126 | AK81: 23.40779126 | AL81: 23.40779126 | AM81: 23.40779126 | AN81: 23.40779126 | AO81: 23.40779126 | AP81: 23.40779126 | AQ81: 23.40779126 | AR81: 0 | AS81: 0 | AT81: 0 | AU81: 0 | AV81: 0 | AW81: 0 | AX81: 0 | AY81: 0 | AZ81: 0 | BA81: 0 | BB81: 0 | BC81: 0 | BD81: 0 | BE81: 0 | BF81: =BF58 -> 0 | BG81: 0 | BH81: 0 | BI81: 0 | BJ81: 0 | BK81: 0 | BL81: 0 | BM81: 0 | BN81: 0 | BO81: 0 | BP81: 0 | BQ81: 0 | BR81: 0 | BS81: 0 | BT81: 0 | BU81: 0 | BV81: 0 | BW81: 0 | BX81: 0 | BY81: 0 | BZ81: 0 | CA81: 0 | CB81: 0 | CC81: 0 | CD81: 0 | CE81: 0 | CF81: 0 | CG81: 0 | CH81: 0 | CI81: 0 | CJ81: 0
B82: Less: Repayments | H82: =H79-H87 -> 0 | I82: =I79-I87 -> 0 | J82: 0 | K82: 0 | L82: 0 | M82: 0 | N82: 0 | O82: 0 | P82: 0 | Q82: 0 | R82: 0 | S82: 0 | T82: 0 | U82: 0 | V82: 0 | W82: 0 | X82: 0 | Y82: 0 | Z82: 0 | AA82: 0 | AB82: 0 | AC82: 0 | AD82: 0 | AE82: 0 | AF82: 0 | AG82: 0 | AH82: 0 | AI82: 0 | AJ82: 0 | AK82: 0 | AL82: 0 | AM82: 0 | AN82: 0 | AO82: 0 | AP82: 0 | AQ82: 0 | AR82: 23.01280926 | AS82: 23.93332163 | AT82: 24.89065449 | AU82: 25.88628067 | AV82: 26.9217319 | AW82: 27.99860117 | AX82: 29.11854522 | AY82: 30.28328703 | AZ82: 31.49461851 | BA82: 32.75440325 | BB82: 34.06457938 | BC82: 35.42716256 | BD82: 36.84424906 | BE82: 38.31801902 | BF82: 39.85073978 | BG82: 41.44476937 | BH82: 43.10256015 | BI82: 44.82666255 | BJ82: 46.61972906 | BK82: 48.48451822 | BL82: 50.42389895 | BM82: 52.44085491 | BN82: 54.5384891 | BO82: 8.526512829e-14 | BP82: 8.867573342e-14 | BQ82: 0 | BR82: 0 | BS82: 0 | BT82: 0 | BU82: =BU79-BU87 -> 0 | BV82: 0 | BW82: 0 | BX82: 0 | BY82: 0 | BZ82: 0 | CA82: 0 | CB82: 0 | CC82: 0 | CD82: 0 | CE82: 0 | CF82: 0 | CG82: 0 | CH82: 0 | CI82: 0 | CJ82: 0
B83: Closing Balance | H83: =H80+H81-H82 -> 23.40779126 | I83: =I80+I81-I82 -> 46.81558251 | J83: 70.22337377 | K83: 93.63116503 | L83: 117.0389563 | M83: 140.4467475 | N83: 163.8545388 | O83: 187.2623301 | P83: 210.6701213 | Q83: 234.0779126 | R83: 257.4857038 | S83: 280.8934951 | T83: 304.3012863 | U83: 327.7090776 | V83: 351.1168688 | W83: 374.5246601 | X83: 397.9324514 | Y83: 421.3402426 | Z83: 444.7480339 | AA83: 468.1558251 | AB83: 491.5636164 | AC83: 514.9714076 | AD83: 538.3791989 | AE83: 561.7869902 | AF83: 585.1947814 | AG83: 608.6025727 | AH83: 632.0103639 | AI83: 655.4181552 | AJ83: 678.8259464 | AK83: 702.2337377 | AL83: 725.641529 | AM83: 749.0493202 | AN83: 772.4571115 | AO83: 795.8649027 | AP83: 819.272694 | AQ83: 842.6804852 | AR83: 819.667676 | AS83: 795.7343544 | AT83: 770.8436999 | AU83: 744.9574192 | AV83: 718.0356873 | AW83: 690.0370861 | AX83: 660.9185409 | AY83: 630.6352539 | AZ83: 599.1406354 | BA83: 566.3862321 | BB83: 532.3216527 | BC83: 496.8944902 | BD83: 460.0502411 | BE83: 421.7322221 | BF83: =BF80+BF81-BF82 -> 381.8814823 | BG83: 340.4367129 | BH83: 297.3341528 | BI83: 252.5074902 | BJ83: 205.8877612 | BK83: 157.403243 | BL83: 106.979344 | BM83: 54.5384891 | BN83: -2.131628207e-12 | BO83: -2.216893336e-12 | BP83: -2.305569069e-12 | BQ83: -2.305569069e-12 | BR83: -2.305569069e-12 | BS83: -2.305569069e-12 | BT83: -2.305569069e-12 | BU83: -2.305569069e-12 | BV83: -2.305569069e-12 | BW83: -2.305569069e-12 | BX83: -2.305569069e-12 | BY83: -2.305569069e-12 | BZ83: -2.305569069e-12 | CA83: -2.305569069e-12 | CB83: -2.305569069e-12 | CC83: -2.305569069e-12 | CD83: -2.305569069e-12 | CE83: -2.305569069e-12 | CF83: -2.305569069e-12 | CG83: -2.305569069e-12 | CH83: -2.305569069e-12 | CI83: -2.305569069e-12 | CJ83: -2.305569069e-12
B84: Interest Rate | F84: =F27 -> 0.04 | H84: =$F$84/12*H3 -> 0.003333333333 | I84: =$F$84/12*I3 -> 0.003333333333 | J84: 0.003333333333 | K84: 0.003333333333 | L84: 0.003333333333 | M84: 0.003333333333 | N84: 0.003333333333 | O84: 0.003333333333 | P84: 0.003333333333 | Q84: 0.003333333333 | R84: 0.003333333333 | S84: 0.003333333333 | T84: 0.003333333333 | U84: 0.003333333333 | V84: 0.003333333333 | W84: 0.003333333333 | X84: 0.003333333333 | Y84: 0.003333333333 | Z84: 0.003333333333 | AA84: 0.003333333333 | AB84: 0.003333333333 | AC84: 0.003333333333 | AD84: 0.003333333333 | AE84: 0.003333333333 | AF84: 0.003333333333 | AG84: 0.003333333333 | AH84: 0.003333333333 | AI84: 0.003333333333 | AJ84: 0.003333333333 | AK84: 0.003333333333 | AL84: 0.003333333333 | AM84: 0.003333333333 | AN84: 0.003333333333 | AO84: 0.003333333333 | AP84: 0.003333333333 | AQ84: 0.003333333333 | AR84: 0.04 | AS84: 0.04 | AT84: 0.04 | AU84: 0.04 | AV84: 0.04 | AW84: 0.04 | AX84: 0.04 | AY84: 0.04 | AZ84: 0.04 | BA84: 0.04 | BB84: 0.04 | BC84: 0.04 | BD84: 0.04 | BE84: 0.04 | BF84: 0.04 | BG84: 0.04 | BH84: 0.04 | BI84: 0.04 | BJ84: 0.04 | BK84: 0.04 | BL84: 0.04 | BM84: 0.04 | BN84: 0.04 | BO84: 0.04 | BP84: 0.04 | BQ84: 0.04 | BR84: 0.04 | BS84: 0.04 | BT84: 0.04 | BU84: =$F$84/12*BU3 -> 0.04 | BV84: 0.04 | BW84: 0.04 | BX84: 0.04 | BY84: 0.04 | BZ84: 0.04 | CA84: 0.04 | CB84: 0.04 | CC84: 0.04 | CD84: 0.04 | CE84: 0.04 | CF84: 0.04 | CG84: 0.04 | CH84: 0.04 | CI84: 0.04 | CJ84: 0.04
B85: Interest Cost | F85: =F27/12 -> 0.003333333333 | H85: =H80*H84 -> 0 | I85: =I80*I84 -> 0.07802597086 | J85: 0.1560519417 | K85: 0.2340779126 | L85: 0.3121038834 | M85: 0.3901298543 | N85: 0.4681558251 | O85: 0.546181796 | P85: 0.6242077668 | Q85: 0.7022337377 | R85: 0.7802597086 | S85: 0.8582856794 | T85: 0.9363116503 | U85: 1.014337621 | V85: 1.092363592 | W85: 1.170389563 | X85: 1.248415534 | Y85: 1.326441505 | Z85: 1.404467475 | AA85: 1.482493446 | AB85: 1.560519417 | AC85: 1.638545388 | AD85: 1.716571359 | AE85: 1.79459733 | AF85: 1.872623301 | AG85: 1.950649271 | AH85: 2.028675242 | AI85: 2.106701213 | AJ85: 2.184727184 | AK85: 2.262753155 | AL85: 2.340779126 | AM85: 2.418805097 | AN85: 2.496831067 | AO85: 2.574857038 | AP85: 2.652883009 | AQ85: 2.73090898 | AR85: 33.70721941 | AS85: 32.78670704 | AT85: 31.82937417 | AU85: 30.83374799 | AV85: 29.79829677 | AW85: 28.72142749 | AX85: 27.60148344 | AY85: 26.43674164 | AZ85: 25.22541015 | BA85: 23.96562541 | BB85: 22.65544928 | BC85: 21.29286611 | BD85: 19.87577961 | BE85: 18.40200964 | BF85: 16.86928888 | BG85: 15.27525929 | BH85: 13.61746852 | BI85: 11.89336611 | BJ85: 10.10029961 | BK85: 8.235510447 | BL85: 6.296129718 | BM85: 4.27917376 | BN85: 2.181539564 | BO85: -8.526512829e-14 | BP85: -8.867573342e-14 | BQ85: -9.222276276e-14 | BR85: -9.222276276e-14 | BS85: -9.222276276e-14 | BT85: -9.222276276e-14 | BU85: =BU80*BU84 -> -9.222276276e-14 | BV85: -9.222276276e-14 | BW85: -9.222276276e-14 | BX85: -9.222276276e-14 | BY85: -9.222276276e-14 | BZ85: -9.222276276e-14 | CA85: -9.222276276e-14 | CB85: -9.222276276e-14 | CC85: -9.222276276e-14 | CD85: -9.222276276e-14 | CE85: -9.222276276e-14 | CF85: -9.222276276e-14 | CG85: -9.222276276e-14 | CH85: -9.222276276e-14 | CI85: -9.222276276e-14 | CJ85: -9.222276276e-14
B86: Interest allocated to Construction | H86: =H85*H2 -> 0 | I86: 0.07802597086 | J86: 0.1560519417 | K86: 0.2340779126 | L86: 0.3121038834 | M86: 0.3901298543 | N86: 0.4681558251 | O86: 0.546181796 | P86: 0.6242077668 | Q86: 0.7022337377 | R86: 0.7802597086 | S86: 0.8582856794 | T86: 0.9363116503 | U86: 1.014337621 | V86: 1.092363592 | W86: 1.170389563 | X86: 1.248415534 | Y86: 1.326441505 | Z86: 1.404467475 | AA86: 1.482493446 | AB86: 1.560519417 | AC86: 1.638545388 | AD86: 1.716571359 | AE86: 1.79459733 | AF86: 1.872623301 | AG86: 1.950649271 | AH86: 2.028675242 | AI86: 2.106701213 | AJ86: 2.184727184 | AK86: 2.262753155 | AL86: 2.340779126 | AM86: 2.418805097 | AN86: =AN85*AN2 -> 2.496831067 | AO86: 2.574857038 | AP86: 2.652883009 | AQ86: 2.73090898 | AR86: 0 | AS86: 0 | AT86: 0 | AU86: 0 | AV86: 0 | AW86: 0 | AX86: 0 | AY86: 0 | AZ86: 0 | BA86: 0 | BB86: 0 | BC86: 0 | BD86: 0 | BE86: 0 | BF86: =BF85*BF2 -> 0 | BG86: 0 | BH86: 0 | BI86: 0 | BJ86: 0 | BK86: 0 | BL86: 0 | BM86: 0 | BN86: 0 | BO86: 0 | BP86: 0 | BQ86: 0 | BR86: 0 | BS86: 0 | BT86: 0 | BU86: 0 | BV86: 0 | BW86: 0 | BX86: 0 | BY86: 0 | BZ86: 0 | CA86: 0 | CB86: 0 | CC86: 0 | CD86: 0 | CE86: 0 | CF86: 0 | CG86: 0 | CH86: 0 | CI86: 0 | CJ86: 0
B87: Interest allocated to Operating Expense after Construction | H87: =H85*H5 -> 0 | I87: =I85*I5 -> 0 | J87: 0 | K87: 0 | L87: 0 | M87: 0 | N87: 0 | O87: 0 | P87: 0 | Q87: 0 | R87: 0 | S87: 0 | T87: 0 | U87: 0 | V87: 0 | W87: 0 | X87: 0 | Y87: 0 | Z87: 0 | AA87: 0 | AB87: 0 | AC87: 0 | AD87: 0 | AE87: 0 | AF87: 0 | AG87: 0 | AH87: 0 | AI87: 0 | AJ87: 0 | AK87: 0 | AL87: 0 | AM87: 0 | AN87: 0 | AO87: 0 | AP87: 0 | AQ87: 0 | AR87: 33.70721941 | AS87: 32.78670704 | AT87: 31.82937417 | AU87: 30.83374799 | AV87: 29.79829677 | AW87: 28.72142749 | AX87: 27.60148344 | AY87: 26.43674164 | AZ87: 25.22541015 | BA87: 23.96562541 | BB87: 22.65544928 | BC87: 21.29286611 | BD87: 19.87577961 | BE87: 18.40200964 | BF87: 16.86928888 | BG87: 15.27525929 | BH87: 13.61746852 | BI87: 11.89336611 | BJ87: 10.10029961 | BK87: 8.235510447 | BL87: 6.296129718 | BM87: 4.27917376 | BN87: 2.181539564 | BO87: -8.526512829e-14 | BP87: -8.867573342e-14 | BQ87: 0 | BR87: 0 | BS87: 0 | BT87: 0 | BU87: =BU85*BU5 -> 0 | BV87: 0 | BW87: 0 | BX87: 0 | BY87: 0 | BZ87: 0 | CA87: 0 | CB87: 0 | CC87: 0 | CD87: 0 | CE87: 0 | CF87: 0 | CG87: 0 | CH87: 0 | CI87: 0 | CJ87: 0
A89: EBL Balance
B90: Opening Balance | H90: =G93 -> 0 | I90: =H93 -> 4.369986521 | J90: 8.823461496 | K90: 13.36052929 | L90: 17.98129438 | M90: 22.6858614 | N90: 27.47433511 | O90: 32.34682037 | P90: 37.30342221 | Q90: 42.34424578 | R90: 47.46939635 | S90: 52.67897932 | T90: 57.97310025 | U90: 63.35186479 | V90: 68.81537877 | W90: 74.3637481 | X90: 79.99707887 | Y90: 85.71547727 | Z90: 91.51904965 | AA90: 97.40790246 | AB90: 103.3821423 | AC90: 109.4418759 | AD90: 115.5872102 | AE90: 121.8182521 | AF90: 128.1351087 | AG90: 134.5378874 | AH90: 141.0266956 | AI90: 147.6016407 | AJ90: 154.2628305 | AK90: 161.0103728 | AL90: 167.8443754 | AM90: 174.7649465 | AN90: 181.7721943 | AO90: 188.8662271 | AP90: 196.0471535 | AQ90: 203.315082 | AR90: 0 | AS90: 0 | AT90: 0 | AU90: 0 | AV90: 0 | AW90: 0 | AX90: 0 | AY90: 0 | AZ90: 0 | BA90: 0 | BB90: 0 | BC90: 0 | BD90: 0 | BE90: 0 | BF90: =BE93 -> 0 | BG90: 0 | BH90: 0 | BI90: 0 | BJ90: 0 | BK90: 0 | BL90: 0 | BM90: 0 | BN90: 0 | BO90: 0 | BP90: 0 | BQ90: 0 | BR90: 0 | BS90: 0 | BT90: 0 | BU90: 0 | BV90: 0 | BW90: 0 | BX90: 0 | BY90: 0 | BZ90: 0 | CA90: 0 | CB90: 0 | CC90: 0 | CD90: 0 | CE90: 0 | CF90: 0 | CG90: 0 | CH90: 0 | CI90: 0 | CJ90: 0
B91: Add: EBL DD | F91: =E22 -> TRUE | H91: =$F$91*H59 -> 4.369986521 | I91: =$F$91*I59 -> 4.453474975 | J91: 4.53706779 | K91: 4.620765095 | L91: 4.704567023 | M91: 4.788473702 | N91: 4.872485265 | O91: 4.956601843 | P91: 5.040823566 | Q91: 5.125150566 | R91: 5.209582975 | S91: 5.294120925 | T91: 5.378764547 | U91: 5.463513973 | V91: 5.548369337 | W91: 5.633330769 | X91: 5.718398403 | Y91: 5.803572372 | Z91: 5.888852809 | AA91: 5.974239845 | AB91: 6.059733616 | AC91: 6.145334254 | AD91: 6.231041893 | AE91: 6.316856666 | AF91: 6.402778708 | AG91: 6.488808152 | AH91: 6.574945133 | AI91: 6.661189785 | AJ91: 6.747542243 | AK91: 6.834002642 | AL91: 6.920571116 | AM91: 7.007247801 | AN91: 7.094032831 | AO91: 7.180926343 | AP91: 7.267928472 | AQ91: 7.355039354 | AR91: 0 | AS91: 0 | AT91: 0 | AU91: 0 | AV91: 0 | AW91: 0 | AX91: 0 | AY91: 0 | AZ91: 0 | BA91: 0 | BB91: 0 | BC91: 0 | BD91: 0 | BE91: 0 | BF91: =$F$91*BF59 -> 0 | BG91: 0 | BH91: 0 | BI91: 0 | BJ91: 0 | BK91: 0 | BL91: 0 | BM91: 0 | BN91: 0 | BO91: 0 | BP91: 0 | BQ91: 0 | BR91: 0 | BS91: 0 | BT91: 0 | BU91: 0 | BV91: 0 | BW91: 0 | BX91: 0 | BY91: 0 | BZ91: 0 | CA91: 0 | CB91: 0 | CC91: 0 | CD91: 0 | CE91: 0 | CF91: 0 | CG91: 0 | CH91: 0 | CI91: 0 | CJ91: 0
B92: Less: Repayment at COD | F92: =G2 -> 36 | H92: =(H1=$F$92)*(H90+H91) -> 0 | I92: =(I1=$F$92)*(I90+I91) -> 0 | J92: 0 | K92: 0 | L92: 0 | M92: 0 | N92: 0 | O92: 0 | P92: 0 | Q92: 0 | R92: 0 | S92: 0 | T92: 0 | U92: 0 | V92: 0 | W92: 0 | X92: 0 | Y92: 0 | Z92: 0 | AA92: 0 | AB92: 0 | AC92: 0 | AD92: 0 | AE92: 0 | AF92: 0 | AG92: 0 | AH92: 0 | AI92: 0 | AJ92: 0 | AK92: 0 | AL92: 0 | AM92: 0 | AN92: 0 | AO92: 0 | AP92: 0 | AQ92: 210.6701213 | AR92: 0 | AS92: 0 | AT92: 0 | AU92: 0 | AV92: 0 | AW92: 0 | AX92: 0 | AY92: 0 | AZ92: 0 | BA92: 0 | BB92: 0 | BC92: 0 | BD92: 0 | BE92: 0 | BF92: =(BF1=$F$92)*(BF90+BF91) -> 0 | BG92: =(BG1=$F$92)*(BG90+BG91) -> 0 | BH92: =(BH1=$F$92)*(BH90+BH91) -> 0 | BI92: =(BI1=$F$92)*(BI90+BI91) -> 0 | BJ92: =(BJ1=$F$92)*(BJ90+BJ91) -> 0 | BK92: =(BK1=$F$92)*(BK90+BK91) -> 0 | BL92: =(BL1=$F$92)*(BL90+BL91) -> 0 | BM92: =(BM1=$F$92)*(BM90+BM91) -> 0 | BN92: =(BN1=$F$92)*(BN90+BN91) -> 0 | BO92: =(BO1=$F$92)*(BO90+BO91) -> 0 | BP92: =(BP1=$F$92)*(BP90+BP91) -> 0 | BQ92: =(BQ1=$F$92)*(BQ90+BQ91) -> 0 | BR92: =(BR1=$F$92)*(BR90+BR91) -> 0 | BS92: =(BS1=$F$92)*(BS90+BS91) -> 0 | BT92: =(BT1=$F$92)*(BT90+BT91) -> 0 | BU92: =(BU1=$F$92)*(BU90+BU91) -> 0 | BV92: =(BV1=$F$92)*(BV90+BV91) -> 0 | BW92: =(BW1=$F$92)*(BW90+BW91) -> 0 | BX92: =(BX1=$F$92)*(BX90+BX91) -> 0 | BY92: =(BY1=$F$92)*(BY90+BY91) -> 0 | BZ92: =(BZ1=$F$92)*(BZ90+BZ91) -> 0 | CA92: =(CA1=$F$92)*(CA90+CA91) -> 0 | CB92: =(CB1=$F$92)*(CB90+CB91) -> 0 | CC92: =(CC1=$F$92)*(CC90+CC91) -> 0 | CD92: =(CD1=$F$92)*(CD90+CD91) -> 0 | CE92: =(CE1=$F$92)*(CE90+CE91) -> 0 | CF92: =(CF1=$F$92)*(CF90+CF91) -> 0 | CG92: =(CG1=$F$92)*(CG90+CG91) -> 0 | CH92: =(CH1=$F$92)*(CH90+CH91) -> 0 | CI92: =(CI1=$F$92)*(CI90+CI91) -> 0 | CJ92: =(CJ1=$F$92)*(CJ90+CJ91) -> 0
B93: Closing Balance | H93: =H90+H91-H92 -> 4.369986521 | I93: =I90+I91-I92 -> 8.823461496 | J93: 13.36052929 | K93: 17.98129438 | L93: 22.6858614 | M93: 27.47433511 | N93: 32.34682037 | O93: 37.30342221 | P93: 42.34424578 | Q93: 47.46939635 | R93: 52.67897932 | S93: 57.97310025 | T93: 63.35186479 | U93: 68.81537877 | V93: 74.3637481 | W93: 79.99707887 | X93: 85.71547727 | Y93: 91.51904965 | Z93: 97.40790246 | AA93: 103.3821423 | AB93: 109.4418759 | AC93: 115.5872102 | AD93: 121.8182521 | AE93: 128.1351087 | AF93: 134.5378874 | AG93: 141.0266956 | AH93: 147.6016407 | AI93: 154.2628305 | AJ93: 161.0103728 | AK93: 167.8443754 | AL93: 174.7649465 | AM93: 181.7721943 | AN93: 188.8662271 | AO93: 196.0471535 | AP93: 203.315082 | AQ93: 0 | AR93: 0 | AS93: 0 | AT93: 0 | AU93: 0 | AV93: 0 | AW93: 0 | AX93: 0 | AY93: 0 | AZ93: 0 | BA93: 0 | BB93: 0 | BC93: 0 | BD93: 0 | BE93: 0 | BF93: =BF90+BF91-BF92 -> 0 | BG93: =BG90+BG91-BG92 -> 0 | BH93: =BH90+BH91-BH92 -> 0 | BI93: =BI90+BI91-BI92 -> 0 | BJ93: =BJ90+BJ91-BJ92 -> 0 | BK93: =BK90+BK91-BK92 -> 0 | BL93: =BL90+BL91-BL92 -> 0 | BM93: =BM90+BM91-BM92 -> 0 | BN93: =BN90+BN91-BN92 -> 0 | BO93: =BO90+BO91-BO92 -> 0 | BP93: =BP90+BP91-BP92 -> 0 | BQ93: =BQ90+BQ91-BQ92 -> 0 | BR93: =BR90+BR91-BR92 -> 0 | BS93: =BS90+BS91-BS92 -> 0 | BT93: =BT90+BT91-BT92 -> 0 | BU93: =BU90+BU91-BU92 -> 0 | BV93: =BV90+BV91-BV92 -> 0 | BW93: =BW90+BW91-BW92 -> 0 | BX93: =BX90+BX91-BX92 -> 0 | BY93: =BY90+BY91-BY92 -> 0 | BZ93: =BZ90+BZ91-BZ92 -> 0 | CA93: =CA90+CA91-CA92 -> 0 | CB93: =CB90+CB91-CB92 -> 0 | CC93: =CC90+CC91-CC92 -> 0 | CD93: =CD90+CD91-CD92 -> 0 | CE93: =CE90+CE91-CE92 -> 0 | CF93: =CF90+CF91-CF92 -> 0 | CG93: =CG90+CG91-CG92 -> 0 | CH93: =CH90+CH91-CH92 -> 0 | CI93: =CI90+CI91-CI92 -> 0 | CJ93: =CJ90+CJ91-CJ92 -> 0
B94: EBL Interest Cost | F94: =F28/12 -> 0.00125 | H94: =H90*$F$94 -> 0 | I94: =I90*$F$94 -> 0.005462483151 | J94: 0.01102932687 | K94: 0.01670066161 | L94: 0.02247661798 | M94: 0.02835732675 | N94: 0.03434291888 | O94: 0.04043352546 | P94: 0.04662927777 | Q94: 0.05293030722 | R94: 0.05933674543 | S94: 0.06584872415 | T94: 0.07246637531 | U94: 0.07918983099 | V94: 0.08601922346 | W94: 0.09295468513 | X94: 0.09999634859 | Y94: 0.1071443466 | Z94: 0.1143988121 | AA94: 0.1217598781 | AB94: 0.1292276779 | AC94: 0.1368023449 | AD94: 0.1444840127 | AE94: 0.1522728151 | AF94: 0.1601688859 | AG94: 0.1681723593 | AH94: 0.1762833695 | AI94: 0.1845020509 | AJ94: 0.1928285381 | AK94: 0.2012629659 | AL94: 0.2098054692 | AM94: 0.2184561831 | AN94: 0.2272152429 | AO94: 0.2360827839 | AP94: 0.2450589419 | AQ94: 0.2541438524 | AR94: 0 | AS94: 0 | AT94: 0 | AU94: 0 | AV94: 0 | AW94: 0 | AX94: 0 | AY94: 0 | AZ94: 0 | BA94: 0 | BB94: 0 | BC94: 0 | BD94: 0 | BE94: 0 | BF94: =BF90*$F$94 -> 0 | BG94: 0 | BH94: 0 | BI94: 0 | BJ94: 0 | BK94: 0 | BL94: 0 | BM94: 0 | BN94: 0 | BO94: 0 | BP94: 0 | BQ94: 0 | BR94: 0 | BS94: 0 | BT94: 0 | BU94: 0 | BV94: 0 | BW94: 0 | BX94: 0 | BY94: 0 | BZ94: 0 | CA94: 0 | CB94: 0 | CC94: 0 | CD94: 0 | CE94: 0 | CF94: 0 | CG94: 0 | CH94: 0 | CI94: 0 | CJ94: 0
A97: Equity CF W/O EBL | H97: =-H59+H32-H79 -> -4.369986521 | I97: =-I59+I32-I79 -> -4.453474975 | J97: -4.53706779 | K97: -4.620765095 | L97: -4.704567023 | M97: -4.788473702 | N97: -4.872485265 | O97: -4.956601843 | P97: -5.040823566 | Q97: -5.125150566 | R97: -5.209582975 | S97: -5.294120925 | T97: -5.378764547 | U97: -5.463513973 | V97: -5.548369337 | W97: -5.633330769 | X97: -5.718398403 | Y97: -5.803572372 | Z97: -5.888852809 | AA97: -5.974239845 | AB97: -6.059733616 | AC97: -6.145334254 | AD97: -6.231041893 | AE97: -6.316856666 | AF97: -6.402778708 | AG97: -6.488808152 | AH97: -6.574945133 | AI97: -6.661189785 | AJ97: -6.747542243 | AK97: -6.834002642 | AL97: -6.920571116 | AM97: -7.007247801 | AN97: -7.094032831 | AO97: -7.180926343 | AP97: -7.267928472 | AQ97: -7.355039354 | AR97: 22.85200835 | AS97: 22.85200835 | AT97: 22.85200835 | AU97: 22.85200835 | AV97: 22.85200835 | AW97: 22.85200835 | AX97: 22.85200835 | AY97: 22.85200835 | AZ97: 22.85200835 | BA97: 22.85200835 | BB97: 22.85200835 | BC97: 22.85200835 | BD97: 22.85200835 | BE97: 22.85200835 | BF97: 22.85200835 | BG97: 22.85200835 | BH97: 22.85200835 | BI97: 22.85200835 | BJ97: 22.85200835 | BK97: 22.85200835 | BL97: 22.85200835 | BM97: 22.85200835 | BN97: 22.85200835 | BO97: 79.57203701 | BP97: 79.57203701 | BQ97: 0 | BR97: 0 | BS97: 0 | BT97: 0 | BU97: =-BU59+BU32-BU79 -> 0 | BV97: 0 | BW97: 0 | BX97: 0 | BY97: 0 | BZ97: 0 | CA97: 0 | CB97: 0 | CC97: 0 | CD97: 0 | CE97: 0 | CF97: 0 | CG97: 0 | CH97: 0 | CI97: 0 | CJ97: 0
A98: Equity IRR W/O EBL | F98: =XIRR(H97:CJ97,H4:CJ4) -> 0.09050585926
A100: Equity CF W/ EBL | H100: =H97+H91-H92-0.00000001 -> -1e-08 | I100: =I97+I91-I92 -> 0 | J100: 0 | K100: 0 | L100: 0 | M100: 0 | N100: 0 | O100: 0 | P100: 0 | Q100: 0 | R100: 0 | S100: 0 | T100: 0 | U100: 0 | V100: 0 | W100: 0 | X100: 0 | Y100: 0 | Z100: 0 | AA100: 0 | AB100: 0 | AC100: 0 | AD100: 0 | AE100: 0 | AF100: 0 | AG100: 0 | AH100: 0 | AI100: 0 | AJ100: 0 | AK100: 0 | AL100: 0 | AM100: 0 | AN100: 0 | AO100: 0 | AP100: 0 | AQ100: -210.6701213 | AR100: 22.85200835 | AS100: 22.85200835 | AT100: 22.85200835 | AU100: 22.85200835 | AV100: 22.85200835 | AW100: 22.85200835 | AX100: 22.85200835 | AY100: 22.85200835 | AZ100: 22.85200835 | BA100: 22.85200835 | BB100: 22.85200835 | BC100: 22.85200835 | BD100: 22.85200835 | BE100: 22.85200835 | BF100: 22.85200835 | BG100: 22.85200835 | BH100: 22.85200835 | BI100: 22.85200835 | BJ100: 22.85200835 | BK100: 22.85200835 | BL100: 22.85200835 | BM100: 22.85200835 | BN100: 22.85200835 | BO100: 79.57203701 | BP100: 79.57203701 | BQ100: 0 | BR100: 0 | BS100: 0 | BT100: 0 | BU100: =BU97+BU91-BU92 -> 0 | BV100: 0 | BW100: 0 | BX100: 0 | BY100: 0 | BZ100: 0 | CA100: 0 | CB100: 0 | CC100: 0 | CD100: 0 | CE100: 0 | CF100: 0 | CG100: 0 | CH100: 0 | CI100: 0 | CJ100: 0
A101: Equity IRR W/ EBL | F101: =XIRR(H100:CJ100,H4:CJ4) -> 0.1042823732
A103: Target Equity IRR | F103: 0.09
A104: IRR Computed | F104: =IF(F107,F101,F98) -> 0.09050585926
A105: Difference | F105: =F104-F103 -> 0.0005058592558
A107: With EBL | F107: FALSE
A109: Bid Price | F109: =F12 -> 79.57203701

Sheet Waterfall Chartdata1
O1: =CHOOSE(U1,BF1,BF1,BF1,0,0,0,0,-BF1) -> 0.01145216152 | P1: =CHOOSE(U1,0,BA1,Q1,-BA1,-BA1,0,BA1,-BA1) -> 0 | Q1: =IF(AX1,BA1+R1,0) -> 0 | S1: =CHOOSE(U1,AV1,AV1-BA1,AV1-BA1,AV1,AV1-BF1,AV1,R1-T1,AV1) -> 0.1 | T1: =CHOOSE(U1,0,0,0,AV1-BF1,BF1,-BF1,-BF1,0) -> 0 | U1: =AE1*1+AD1*2+AC1*3+AB1*4+AA1*5+Z1*6+Y1*7+X1*8 -> 1 | V1: =SUMPRODUCT(X1:AE1*1) -> 1 | X1: =AND(AV1<0,BA1>0) -> FALSE | Y1: =AND(BA1<0,AU1<0,NOT(AY1)) -> FALSE | Z1: =AH1 -> FALSE | AA1: =AND(AF1,NOT(AX1),NOT(AB1),NOT(AD1),AU1>0) -> FALSE | AB1: =AND(NOT(AX1),AJ1<0,AF1,NOT(Y1),AG1) -> FALSE | AC1: =AND(AX1,BA1<0) -> FALSE | AD1: =AND(AF1,BA1>0,AV1>0) -> FALSE | AE1: =AND(AY1,AV1>0) -> TRUE | AF1: =NOT(AY1) -> FALSE | AG1: =BA1<0 -> FALSE | AH1: =AND(AV1<0,AY1) -> FALSE | AJ1: =AV1-BF1 -> 0.08854783848 | AU1: =BA1 -> 0.1 | AV1: =BA1 -> 0.1 | AW1: =IF(AV1>0,1,0) -> 1 | AX1: FALSE | AY1: TRUE | AZ1: =waterfall_graph_data1 -> Base Case | BA1: 0.1 | BB1: =AU1 -> 0.1 | BF1: 0.01145216152 | BJ1: =IF(AY1,BB1,BA1) -> 0.1 | BQ1: =AZ1 -> Base Case | BS1: =BB1 -> 0.1 | BT1: =BQ1&BR1 -> Base Case | BU1: =S1 -> 0.1 | BV1: 0 | BW1: =P1 -> 0 | BX1: =O1 -> 0.01145216152 | BY1: =BB1 -> 0.1
O2: 0 | P2: 4.440892099e-16 | Q2: 0 | R2: =AV1 -> 0.1 | S2: 0.08854783848 | T2: 0.01145216152 | U2: 5 | V2: 1 | X2: FALSE | Y2: FALSE | Z2: FALSE | AA2: TRUE | AB2: FALSE | AC2: FALSE | AD2: FALSE | AE2: FALSE | AF2: TRUE | AG2: TRUE | AH2: FALSE | AJ2: 0.08854783848 | AU2: =IF(AX2,AV1,AV2) -> 0.1 | AV2: =AV1+BA2 -> 0.1 | AW2: 1 | AX2: =AV2*AV1<0 -> FALSE | AY2: FALSE | AZ2: DSCR | BA2: -4.440892099e-16 | BB2: 0.1 | BF2: =BF1 -> 0.01145216152 | BJ2: -4.440892099e-16 | BQ2: DSCR | BS2: 0.1 | BT2: DSCR | BU2: 0.08854783848 | BV2: 0.01145216152 | BW2: 4.440892099e-16 | BX2: 0 | BY2: =BB1 -> 0.1 | BZ2: =BB2 -> 0.1
O3: 0 | P3: 0 | Q3: 0 | R3: 0.1 | S3: 0.08854783848 | T3: 0.01145216152 | U3: 5 | V3: 1 | X3: FALSE | Y3: FALSE | Z3: FALSE | AA3: TRUE | AB3: FALSE | AC3: FALSE | AD3: FALSE | AE3: FALSE | AF3: TRUE | AG3: FALSE | AH3: FALSE | AJ3: 0.08854783848 | AU3: 0.1 | AV3: 0.1 | AW3: 1 | AX3: FALSE | AY3: FALSE | AZ3: Debt to Capital | BA3: 0 | BB3: 0.1 | BF3: 0.01145216152 | BJ3: 0 | BQ3: Debt to Capital | BS3: 0.1 | BT3: Debt to Capital | BU3: 0.08854783848 | BV3: 0.01145216152 | BW3: 0 | BX3: 0 | BZ3: =BB2 -> 0.1 | CA3: =BB3 -> 0.1
O4: 0 | P4: 0 | Q4: 0 | R4: 0.1 | S4: 0.08854783848 | T4: 0.01145216152 | U4: 5 | V4: 1 | X4: FALSE | Y4: FALSE | Z4: FALSE | AA4: TRUE | AB4: FALSE | AC4: FALSE | AD4: FALSE | AE4: FALSE | AF4: TRUE | AG4: FALSE | AH4: FALSE | AJ4: 0.08854783848 | AU4: 0.1 | AV4: 0.1 | AW4: 1 | AX4: FALSE | AY4: FALSE | AZ4: Tenor | BA4: 0 | BB4: 0.1 | BF4: 0.01145216152 | BJ4: 0 | BQ4: Tenor | BS4: 0.1 | BT4: Tenor | BU4: 0.08854783848 | BV4: 0.01145216152 | BW4: 0 | BX4: 0 | CA4: =BB3 -> 0.1 | CB4: =BB4 -> 0.1
O5: 0.01145216152 | P5: 4.440892099e-16 | Q5: 0 | R5: 0.1 | S5: 0.1 | T5: 0 | U5: 2 | V5: 1 | X5: FALSE | Y5: FALSE | Z5: FALSE | AA5: FALSE | AB5: FALSE | AC5: FALSE | AD5: TRUE | AE5: FALSE | AF5: TRUE | AG5: FALSE | AH5: FALSE | AJ5: 0.08854783848 | AU5: 0.1 | AV5: 0.1 | AW5: 1 | AX5: FALSE | AY5: FALSE | AZ5: Credit Spread | BA5: 4.440892099e-16 | BB5: 0.1 | BF5: 0.01145216152 | BJ5: 4.440892099e-16 | BQ5: Credit Spread | BS5: 0.1 | BT5: Credit Spread | BU5: 0.1 | BV5: 0 | BW5: 4.440892099e-16 | BX5: 0.01145216152 | CB5: =BB4 -> 0.1 | CC5: =BB5 -> 0.1
O6: 0 | P6: 4.440892099e-16 | Q6: 0 | R6: 0.1 | S6: 0.08854783848 | T6: 0.01145216152 | U6: 5 | V6: 1 | X6: FALSE | Y6: FALSE | Z6: FALSE | AA6: TRUE | AB6: FALSE | AC6: FALSE | AD6: FALSE | AE6: FALSE | AF6: TRUE | AG6: TRUE | AH6: FALSE | AJ6: 0.08854783848 | AU6: 0.1 | AV6: 0.1 | AW6: 1 | AX6: FALSE | AY6: FALSE | AZ6: SIBOR | BA6: -4.440892099e-16 | BB6: 0.1 | BF6: 0.01145216152 | BJ6: -4.440892099e-16 | BQ6: SIBOR | BS6: 0.1 | BT6: SIBOR | BU6: 0.08854783848 | BV6: 0.01145216152 | BW6: 4.440892099e-16 | BX6: 0 | CC6: =BB5 -> 0.1 | CD6: =BB6 -> 0.1
O7: 0 | P7: 0 | Q7: 0 | R7: 0.1 | S7: 0.08854783848 | T7: 0.01145216152 | U7: 5 | V7: 1 | X7: FALSE | Y7: FALSE | Z7: FALSE | AA7: TRUE | AB7: FALSE | AC7: FALSE | AD7: FALSE | AE7: FALSE | AF7: TRUE | AG7: FALSE | AH7: FALSE | AJ7: 0.08854783848 | AU7: 0.1 | AV7: 0.1 | AW7: 1 | AX7: FALSE | AY7: FALSE | AZ7: Dev Fee | BA7: 0 | BB7: 0.1 | BF7: 0.01145216152 | BJ7: 0 | BQ7: Dev Fee | BS7: 0.1 | BT7: Dev Fee | BU7: 0.08854783848 | BV7: 0.01145216152 | BW7: 0 | BX7: 0 | CD7: =BB6 -> 0.1 | CE7: =BB7 -> 0.1
O8: 0.01145216152 | P8: 0 | Q8: 0 | R8: 0.1 | S8: 0.1 | T8: 0 | U8: 1 | V8: 1 | X8: FALSE | Y8: FALSE | Z8: FALSE | AA8: FALSE | AB8: FALSE | AC8: FALSE | AD8: FALSE | AE8: TRUE | AF8: FALSE | AG8: FALSE | AH8: FALSE | AJ8: 0.08854783848 | AU8: 0.1 | AV8: 0.1 | AW8: 1 | AX8: FALSE | AY8: TRUE | AZ8: Aggressive case | BA8: 0 | BB8: 0.1 | BF8: 0.01145216152 | BJ8: 0.1 | BQ8: Aggressive case | BS8: 0.1 | BT8: Aggressive case | BU8: 0.1 | BV8: 0 | BW8: 0 | BX8: 0.01145216152 | CE8: =BB7 -> 0.1
B9: =COLUMN() -> 2 | C9: =COLUMN() -> 3 | D9: =COLUMN() -> 4 | E9: =COLUMN() -> 5 | F9: =COLUMN() -> 6 | G9: =COLUMN() -> 7 | H9: =COLUMN() -> 8 | I9: =COLUMN() -> 9 | J9: =COLUMN() -> 10 | K9: =COLUMN() -> 11 | L9: =COLUMN() -> 12 | M9: =COLUMN() -> 13 | N9: =COLUMN() -> 14 | O9: =COLUMN() -> 15 | P9: =COLUMN() -> 16 | Q9: =COLUMN() -> 17 | R9: =COLUMN() -> 18 | S9: =COLUMN() -> 19 | T9: =COLUMN() -> 20 | U9: =COLUMN() -> 21 | V9: =COLUMN() -> 22 | W9: =COLUMN() -> 23 | X9: =COLUMN() -> 24 | Y9: =COLUMN() -> 25 | Z9: =COLUMN() -> 26 | AA9: =COLUMN() -> 27 | AB9: =COLUMN() -> 28 | AC9: =COLUMN() -> 29 | AD9: =COLUMN() -> 30 | AE9: =COLUMN() -> 31 | AF9: =COLUMN() -> 32 | AG9: =COLUMN() -> 33 | AH9: =COLUMN() -> 34 | AI9: =COLUMN() -> 35 | AJ9: =COLUMN() -> 36 | AK9: =COLUMN() -> 37 | AL9: =COLUMN() -> 38 | AM9: =COLUMN() -> 39 | AN9: =COLUMN() -> 40 | AO9: =COLUMN() -> 41 | AP9: =COLUMN() -> 42 | AQ9: =COLUMN() -> 43 | AR9: =COLUMN() -> 44 | AS9: =COLUMN() -> 45 | AT9: =COLUMN() -> 46 | AU9: =COLUMN() -> 47 | AV9: =COLUMN() -> 48 | AW9: =COLUMN() -> 49 | AX9: =COLUMN() -> 50 | AY9: =COLUMN() -> 51 | AZ9: =COLUMN() -> 52 | BA9: =COLUMN() -> 53 | BB9: =COLUMN() -> 54 | BC9: =COLUMN() -> 55 | BD9: =COLUMN() -> 56 | BE9: =COLUMN() -> 57 | BF9: =COLUMN() -> 58 | BG9: =COLUMN() -> 59 | BH9: =COLUMN() -> 60 | BI9: =COLUMN() -> 61 | BJ9: =COLUMN() -> 62 | BK9: =COLUMN() -> 63 | BL9: =COLUMN() -> 64 | BM9: =COLUMN() -> 65 | BN9: =COLUMN() -> 66 | BO9: =COLUMN() -> 67 | BP9: =COLUMN() -> 68 | BQ9: =COLUMN() -> 69 | BR9: =COLUMN() -> 70 | BS9: =COLUMN() -> 71 | BT9: =COLUMN() -> 72 | BU9: =COLUMN() -> 73 | BV9: =COLUMN() -> 74 | BW9: =COLUMN() -> 75 | BX9: =COLUMN() -> 76 | BY9: =COLUMN() -> 77 | BZ9: =COLUMN() -> 78 | CA9: =COLUMN() -> 79 | CB9: =COLUMN() -> 80 | CC9: =COLUMN() -> 81 | CD9: =COLUMN() -> 82 | CE9: =COLUMN() -> 83 | CF9: =COLUMN() -> 84 | CG9: =COLUMN() -> 85 | CH9: =COLUMN() -> 86 | CI9: =COLUMN() -> 87 | CJ9: =COLUMN() -> 88 | CK9: =COLUMN() -> 89 | CL9: =COLUMN() -> 90 | CM9: =COLUMN() -> 91 | CN9: =COLUMN() -> 92 | CO9: =COLUMN() -> 93 | CP9: =COLUMN() -> 94 | CQ9: =COLUMN() -> 95 | CR9: =COLUMN() -> 96 | CS9: =COLUMN() -> 97 | CT9: =COLUMN() -> 98 | CU9: =COLUMN() -> 99 | CV9: =COLUMN() -> 100
O10: Final | P10: Final | Q10: Change | R10: Prior | S10: Final | T10: Final | U10: Code | V10: Sumproduct | X10: Negative | Y10: Negative | Z10: Negative | AA10: Negative | AB10: Not | AC10: Chg | AD10: Pos | AE10: Pos | AF10: Not | AG10: Neg | AH10: Neg | AJ10: Label | AU10: Cum | AV10: Raw | AX10: Chg | AY10: Tot or | AZ10: Read | BA10: Read | BB10: Conect | BF10: Label | BJ10: Label | BT10: X | BU10: Base | BV10: Label | BW10: Incr- | BX10: Label | BY10: Con-
O11: Positive | P11: Increment | Q11: Sign | R11: Cumulative | S11: Base | T11: Neg | U11: Number | V11: Test | X11: Base | Y11: Cumulative | Z11: Cumulative | AA11: Increment | AB11: Enough | AC11: Sign | AD11: Incr | AE11: Cum | AF11: Tot or | AG11: Incr | AH11: Label | AJ11: Space | AU11: Adj | AV11: Cum | AX11: Sign | AY11: Sub | AZ11: Label | BA11: Data | BB11: Adj | BF11: Input | BJ11: to Show | BT11: Axis | BU11: Bar | BV11: Minus | BW11: ment | BX11: Plus | BY11: nector
O12: Label | Q12: Adjustment | S12: Bar | T12: Label | X12: Pos Incr | Y12: and Incr | Z12: Switch | AA12: Switch | AB12: Space | AC12: Negative | AD12: Switch | AE12: Switch | AF12: Subtotal | AG12: Switch | AH12: Switch | AJ12: Avail
O13: Space | T13: Space | X13: Cde 8 | Y13: Cde 7 | Z13: Cde 6 | AA13: Cde 5 | AB13: Cde 4 | AC13: Cde 3 | AD13: Cde 2 | AE13: Cde 1 | AX13: Chart Title
S15: 1 - Cum
S16: 2 - Cum - Incr
